Trans No.,Service Area Categorisation,Service Division Categorisation,Responsible Unit,Unit Code,Expenses Type,Expenses Sub Type,Expense Code,Narrative,Amount,Invoice Date,Cap/Rev,Supplier Name
1,Central Services,Corporate Mangmt not separated,Chief Exec's Office,A01001,Supplies & Services           ,Grants and Subscriptions      ,DJ04,Subscriptions                           ,"35,000.00",15/01/2016,R,REDACTED
2,Central Services,SupS Chief Execs,Local Involvement Network,A01039,Third Party Payments          ,Private Contractors           ,EH10,Contract Payments                       ,"10,423.75",07/01/2016,R,MERTON VOLUNTARY SERV COUNCIL 
3,Central Services,SupS Chief Execs,Local Involvement Network,A01039,Third Party Payments          ,Private Contractors           ,EH10,Contract Payments                       ,"10,423.75",02/09/2015,R,MERTON VOLUNTARY SERV COUNCIL 
4,Central Services,SupS Chief Execs,Local Involvement Network,A01039,Third Party Payments          ,Private Contractors           ,EH10,Contract Payments                       ,"10,423.75",01/12/2015,R,MERTON VOLUNTARY SERV COUNCIL 
5,Central Services,SupS Chief Execs,Local Involvement Network,A01039,Third Party Payments          ,Private Contractors           ,EH10,Contract Payments                       ,"2,954.00",12/01/2016,R,VOICEABILITY                  
6,Cultural Env Reg&Plan Services,Comm Safety (Crime Reduction),Crime and Strategy Team,A01100,Supplies & Services           ,Expenses                      ,DH50,Special Projects                        ,"2,545.00",29/12/2015,R,COMMONSIDE COMMUNITY DEV TRUST
7,Cultural Env Reg&Plan Services,Comm Safety (Crime Reduction),Crime and Strategy Team,A01100,Supplies & Services           ,Services                      ,DF03,Consultants                             ,"1,000.00",23/12/2015,R,SARAH TANBURN ASSOCIATES LTD  
8,Cultural Env Reg&Plan Services,Comm Safety (Crime Reduction),CCTV,A01200,Supplies & Services           ,Comms and Computing           ,DG15,Network Maintenance                     ,"4,417.35",01/12/2015,R,BT REDCARE                    
9,Cultural Env Reg&Plan Services,Comm Safety (Crime Reduction),CCTV,A01200,Supplies & Services           ,Comms and Computing           ,DG15,Network Maintenance                     ,"10,401.84",04/01/2016,R,BT REDCARE                    
10,Cultural Env Reg&Plan Services,Comm Safety (Crime Reduction),CCTV,A01200,Supplies & Services           ,Equip Furniture/Materials     ,DA01,Equipment - R & M                       ,"1,178.82",11/12/2015,R,EUROVIA INFRASTRUCTURE LTD    
11,Cultural Env Reg&Plan Services,Comm Safety (Crime Reduction),CCTV,A01200,Supplies & Services           ,Services                      ,DF57,Consulting Engineers Fees               ,"1,228.41",06/01/2016,R,GLOBAL MSC SECURITY LTD       
12,Cultural Env Reg&Plan Services,Comm Safety (Crime Reduction),CCTV,A01200,Supplies & Services           ,Services                      ,DF57,Consulting Engineers Fees               ,"1,818.25",03/12/2015,R,GLOBAL MSC SECURITY LTD       
13,Cultural Env Reg&Plan Services,Comm Safety (Crime Reduction),CCTV,A01200,Premises Related Expenditure  ,Energy Costs                  ,BB02,Electricity                             ,"1,056.74",09/01/2016,R,SCOTTISHPOWER                 
14,Cultural Env Reg&Plan Services,Comm Safety (Crime Reduction),CCTV,A01200,Supplies & Services           ,Comms and Computing           ,DG15,Network Maintenance                     ,800.00,01/04/2015,R,VIRGIN MEDIA PAYMENTS LIMITED 
15,Cultural Env Reg&Plan Services,Comm Safety (Crime Reduction),CCTV,A01200,Supplies & Services           ,Comms and Computing           ,DG15,Network Maintenance                     ,"-5,080.00",01/04/2015,R,VIRGIN MEDIA PAYMENTS LTD     
16,Cultural Env Reg&Plan Services,Comm Safety (Crime Reduction),CCTV,A01200,Supplies & Services           ,Comms and Computing           ,DG15,Network Maintenance                     ,"5,080.00",01/04/2015,R,VIRGIN MEDIA PAYMENTS LTD     
17,Central Services,SupS Chief Execs,NON-STATUTORY MARKETING & COMM,A02019,Supplies & Services           ,Services                      ,DF02,Misc Advertising/Publicity              ,537.50,26/11/2015,R,JCDECAUX UNITED KINGDOM       
18,Central Services,SupS Chief Execs,NON-STATUTORY MARKETING & COMM,A02019,Supplies & Services           ,Services                      ,DF02,Misc Advertising/Publicity              ,537.50,26/11/2015,R,JCDECAUX UNITED KINGDOM       
19,Central Services,SupS Chief Execs,NON-STATUTORY MARKETING & COMM,A02019,Supplies & Services           ,Services                      ,DF02,Misc Advertising/Publicity              ,537.50,26/11/2015,R,JCDECAUX UNITED KINGDOM       
20,Central Services,SupS Chief Execs,NON-STATUTORY MARKETING & COMM,A02019,Supplies & Services           ,Services                      ,DF02,Misc Advertising/Publicity              ,537.50,26/11/2015,R,JCDECAUX UNITED KINGDOM       
21,Central Services,SupS Chief Execs,NON-STATUTORY MARKETING & COMM,A02019,Supplies & Services           ,Prntng Stnry Gen Off Exp      ,DE22,Marketing                               ,"4,000.00",11/12/2015,R,LONDON LETTERBOX MARKETING    
22,Central Services,SupS Chief Execs,NON-STATUTORY MARKETING & COMM,A02019,Supplies & Services           ,Services                      ,DF02,Misc Advertising/Publicity              ,"1,985.00",25/11/2015,R,RADIO JACKIE LTD              
23,Central Services,SupS Chief Execs,NON-STATUTORY MARKETING & COMM,A02019,Premises Related Expenditure  ,Rents                         ,BC03,Room/venue rental hire                  ,"2,210.00",22/06/2015,R,SOUTH THAMES COLLEGE          
24,Central Services,SupS Chief Execs,NON-STATUTORY MARKETING & COMM,A02019,Supplies & Services           ,Services                      ,DF35,Graphic Design                          ,"1,445.00",08/01/2016,R,TA2                           
25,Central Services,SupS Chief Execs,Press and Public Relations.,A02026,Supplies & Services           ,Expenses                      ,DH21,Christma Lights                         ,518.64,21/01/2016,R,MAY GURNEY LTD T/A CARTLEDGE  
26,CS -Oth Operating Inc & Expend,T/A Corporate Services,Prting Jobs - Internal,A03040,Supplies & Services           ,Prntng Stnry Gen Off Exp      ,DE05,Micro-filming                           ,"-1,834.31",13/01/2016,R,MISL LTD                      
27,CS -Oth Operating Inc & Expend,T/A Corporate Services,Prting Jobs - Internal,A03040,Supplies & Services           ,Prntng Stnry Gen Off Exp      ,DE05,Micro-filming                           ,602.94,19/01/2016,R,MISL LTD                      
28,CS -Oth Operating Inc & Expend,T/A Corporate Services,Prting Jobs - Internal,A03040,Supplies & Services           ,Prntng Stnry Gen Off Exp      ,DE05,Micro-filming                           ,673.54,13/01/2016,R,MISL LTD                      
29,CS -Oth Operating Inc & Expend,T/A Corporate Services,Prting Jobs - Internal,A03040,Supplies & Services           ,Prntng Stnry Gen Off Exp      ,DE05,Micro-filming                           ,886.25,24/12/2015,R,MISL LTD                      
30,CS -Oth Operating Inc & Expend,T/A Corporate Services,Prting Jobs - Internal,A03040,Supplies & Services           ,Prntng Stnry Gen Off Exp      ,DE05,Micro-filming                           ,909.53,13/01/2016,R,MISL LTD                      
31,CS -Oth Operating Inc & Expend,T/A Corporate Services,Prting Jobs - Internal,A03040,Supplies & Services           ,Prntng Stnry Gen Off Exp      ,DE05,Micro-filming                           ,"1,274.78",11/01/2016,R,MISL LTD                      
32,CS -Oth Operating Inc & Expend,T/A Corporate Services,Prting Jobs - Internal,A03040,Supplies & Services           ,Prntng Stnry Gen Off Exp      ,DE05,Micro-filming                           ,"1,834.31",31/12/2015,R,MISL LTD                      
33,CS -Oth Operating Inc & Expend,T/A Corporate Services,Prting Jobs - Internal,A03040,Supplies & Services           ,Prntng Stnry Gen Off Exp      ,DE05,Micro-filming                           ,"2,867.90",13/01/2016,R,MISL LTD                      
34,CS -Oth Operating Inc & Expend,T/A Corporate Services,Prting Jobs - Internal,A03040,Supplies & Services           ,Prntng Stnry Gen Off Exp      ,DE05,Micro-filming                           ,"3,491.96",04/01/2016,R,MISL LTD                      
35,CS -Oth Operating Inc & Expend,T/A Corporate Services,Prting Jobs - Internal,A03040,Supplies & Services           ,Prntng Stnry Gen Off Exp      ,DE05,Micro-filming                           ,"12,010.50",24/12/2015,R,MISL LTD                      
36,CS -Oth Operating Inc & Expend,T/A Corporate Services,Prtng Jobs - Ext Agncy,A03041,Supplies & Services           ,Prntng Stnry Gen Off Exp      ,DE01,External Printing                       ,527.00,31/12/2015,R,IMPRESS PRINT SERVICES LTD    
37,CS -Oth Operating Inc & Expend,T/A Corporate Services,Prtng Jobs - Ext Agncy,A03041,Supplies & Services           ,Prntng Stnry Gen Off Exp      ,DE01,External Printing                       ,555.00,31/12/2015,R,LIMETREE OFFSET LTD           
38,CS -Oth Operating Inc & Expend,T/A Corporate Services,PrintUnit-HighVolPhtcopying,A03042,Supplies & Services           ,Prntng Stnry Gen Off Exp      ,DE01,External Printing                       ,910.00,16/10/2015,R,ALLWAG PROMOTIONS LTD         
39,CS -Oth Operating Inc & Expend,T/A Corporate Services,PrintUnit-HighVolPhtcopying,A03042,Supplies & Services           ,Prntng Stnry Gen Off Exp      ,DE03,Stationery                              ,"9,122.38",05/01/2016,R,ENCORE ENVELOPES LIMITED      
40,CS -Oth Operating Inc & Expend,T/A Corporate Services,PrintUnit-HighVolPhtcopying,A03042,Supplies & Services           ,Equip Furniture/Materials     ,DA01,Equipment - R & M                       ,990.00,22/01/2016,R,MORGANA SYSTEMS LIMITED       
41,CS -Oth Operating Inc & Expend,T/A Corporate Services,PrintUnit-HighVolPhtcopying,A03042,Supplies & Services           ,Equip Furniture/Materials     ,DA06,Paper-Internal Print Jobs               ,"10,050.00",11/01/2016,R,RAINBOW OFFICE SUPPLIES LTD   
42,CS -Oth Operating Inc & Expend,T/A Corporate Services,Translation Services,A04060,Supplies & Services           ,Services                      ,DF45,Payment of Sessional Workers            ,605.00,31/12/2015,R,COSMIC EUROPE LIMTED          
43,Central Services,SupS Best Value,Merton Link,A04070,Supplies & Services           ,Comms and Computing           ,DG50,Other IT Expenditure                    ,"1,000.00",19/01/2016,R,Q-MATIC UK LTD                
44,Central Services,SupS Best Value,Merton Link,A04070,Supplies & Services           ,Grants and Subscriptions      ,DJ04,Subscriptions                           ,"1,330.00",30/10/2015,R,SOCITM LTD                    
45,Central Services,Grants - Voluntary Groups,VOLUNTARY SECTOR COORDINATION,A04082,Supplies & Services           ,Grants and Subscriptions      ,DJ54,Contributions                           ,"54,318.00",04/01/2016,R,LONDON COUNCILS               
46,Central Services,SupS Comm and Member Services,COMMERICIAL SERVICES,A04085,Employees                     ,Direct Employee Expenses      ,AA17,Agency Staff & Casual Paymts            ,"1,000.00",06/01/2016,R,HAYS RECRUITING EXPERTS       
47,Central Services,SupS Comm and Member Services,COMMERICIAL SERVICES,A04085,Employees                     ,Direct Employee Expenses      ,AA17,Agency Staff & Casual Paymts            ,"1,073.50",06/01/2016,R,HAYS RECRUITING EXPERTS       
48,Central Services,SupS Comm and Member Services,COMMERICIAL SERVICES,A04085,Employees                     ,Direct Employee Expenses      ,AA17,Agency Staff & Casual Paymts            ,"1,610.25",30/12/2015,R,HAYS RECRUITING EXPERTS       
49,Central Services,SupS Comm and Member Services,COMMERICIAL SERVICES,A04085,Employees                     ,Direct Employee Expenses      ,AA17,Agency Staff & Casual Paymts            ,"1,732.50",12/01/2016,R,HAYS RECRUITING EXPERTS       
50,Central Services,SupS Comm and Member Services,COMMERICIAL SERVICES,A04085,Employees                     ,Direct Employee Expenses      ,AA17,Agency Staff & Casual Paymts            ,"1,907.50",12/01/2016,R,HAYS RECRUITING EXPERTS       
51,Central Services,SupS Comm and Member Services,COMMERICIAL SERVICES,A04085,Employees                     ,Direct Employee Expenses      ,AA17,Agency Staff & Casual Paymts            ,"1,907.50",12/01/2016,R,HAYS RECRUITING EXPERTS       
52,Central Services,SupS Comm and Member Services,COMMERICIAL SERVICES,A04085,Employees                     ,Direct Employee Expenses      ,AA17,Agency Staff & Casual Paymts            ,"1,980.00",13/01/2016,R,HAYS RECRUITING EXPERTS       
53,Central Services,SupS Comm and Member Services,COMMERICIAL SERVICES,A04085,Employees                     ,Direct Employee Expenses      ,AA17,Agency Staff & Casual Paymts            ,"2,024.00",13/01/2016,R,HAYS RECRUITING EXPERTS       
54,Central Services,SupS Comm and Member Services,COMMERICIAL SERVICES,A04085,Employees                     ,Direct Employee Expenses      ,AA17,Agency Staff & Casual Paymts            ,"2,034.00",30/12/2015,R,HAYS RECRUITING EXPERTS       
55,Central Services,SupS Comm and Member Services,COMMERICIAL SERVICES,A04085,Employees                     ,Direct Employee Expenses      ,AA17,Agency Staff & Casual Paymts            ,"2,034.00",20/01/2016,R,HAYS RECRUITING EXPERTS       
56,Central Services,SupS Comm and Member Services,COMMERICIAL SERVICES,A04085,Employees                     ,Direct Employee Expenses      ,AA17,Agency Staff & Casual Paymts            ,"2,452.00",13/01/2016,R,HAYS RECRUITING EXPERTS       
57,Central Services,SupS Comm and Member Services,COMMERICIAL SERVICES,A04085,Employees                     ,Direct Employee Expenses      ,AA17,Agency Staff & Casual Paymts            ,"2,475.00",13/01/2016,R,HAYS RECRUITING EXPERTS       
58,Central Services,SupS Comm and Member Services,COMMERICIAL SERVICES,A04085,Employees                     ,Direct Employee Expenses      ,AA17,Agency Staff & Casual Paymts            ,"2,475.00",27/01/2016,R,HAYS RECRUITING EXPERTS       
59,Central Services,SupS Comm and Member Services,COMMERICIAL SERVICES,A04085,Employees                     ,Direct Employee Expenses      ,AA17,Agency Staff & Casual Paymts            ,"2,475.00",13/01/2016,R,HAYS RECRUITING EXPERTS       
60,Central Services,SupS Comm and Member Services,COMMERICIAL SERVICES,A04085,Employees                     ,Direct Employee Expenses      ,AA17,Agency Staff & Casual Paymts            ,"2,475.00",27/01/2016,R,HAYS RECRUITING EXPERTS       
61,Central Services,SupS Comm and Member Services,COMMERICIAL SERVICES,A04085,Employees                     ,Direct Employee Expenses      ,AA17,Agency Staff & Casual Paymts            ,"2,475.00",27/01/2016,R,HAYS RECRUITING EXPERTS       
62,Central Services,SupS Comm and Member Services,COMMERICIAL SERVICES,A04085,Employees                     ,Direct Employee Expenses      ,AA17,Agency Staff & Casual Paymts            ,"2,683.75",22/12/2015,R,HAYS RECRUITING EXPERTS       
63,Central Services,SupS Comm and Member Services,COMMERICIAL SERVICES,A04085,Employees                     ,Direct Employee Expenses      ,AA17,Agency Staff & Casual Paymts            ,"2,683.75",03/12/2015,R,HAYS RECRUITING EXPERTS       
64,Central Services,SupS Comm and Member Services,COMMERICIAL SERVICES,A04085,Employees                     ,Direct Employee Expenses      ,AA17,Agency Staff & Casual Paymts            ,"2,683.75",13/01/2016,R,HAYS RECRUITING EXPERTS       
65,Central Services,SupS Comm and Member Services,COMMERICIAL SERVICES,A04085,Employees                     ,Direct Employee Expenses      ,AA17,Agency Staff & Casual Paymts            ,"2,683.75",16/12/2015,R,HAYS RECRUITING EXPERTS       
66,Central Services,SupS Comm and Member Services,COMMERICIAL SERVICES,A04085,Employees                     ,Direct Employee Expenses      ,AA17,Agency Staff & Casual Paymts            ,"2,725.00",13/01/2016,R,HAYS RECRUITING EXPERTS       
67,Highways & Transport Services,On-street parking,Blue Badge Service,A04088,Supplies & Services           ,Services                      ,DF14,Doctors and Other Fees                  ,600.00,18/05/2015,R,LLOYDS TSB COMMERCIAL FINANCE 
68,Highways & Transport Services,On-street parking,Blue Badge Service,A04088,Supplies & Services           ,Comms and Computing           ,DG15,Network Maintenance                     ,"1,063.27",01/12/2015,R,NORTHGATE  INFORMATION SOLUT. 
69,Highways & Transport Services,On-street parking,Blue Badge Service,A04088,Supplies & Services           ,Comms and Computing           ,DG15,Network Maintenance                     ,715.31,04/01/2016,R,NORTHGATE INFORMATION SOLUTION
70,Central Services,Registn Birth/Death/Marriage,Reg of B. Deaths & Ms,B06143,Supplies & Services           ,Comms and Computing           ,DG15,Network Maintenance                     ,"4,412.62",04/01/2016,R,BT REDCARE                    
71,Central Services,SupS Health & Safety,Learning and Development,B06146,Employees                     ,Indirect Employee Expenses    ,AB57,EXTERNAL TRAINING COSTS                 ,"7,550.00",29/10/2015,R,24SEVEN GROUP LTD             
72,Central Services,SupS Health & Safety,Learning and Development,B06146,Employees                     ,Indirect Employee Expenses    ,AB57,EXTERNAL TRAINING COSTS                 ,"9,332.00",29/10/2015,R,24SEVEN GROUP LTD             
73,Central Services,SupS Health & Safety,Learning and Development,B06146,Employees                     ,Indirect Employee Expenses    ,AB57,EXTERNAL TRAINING COSTS                 ,"1,530.00",27/10/2015,R,CIPFA                         
74,Central Services,SupS Health & Safety,Learning and Development,B06146,Employees                     ,Indirect Employee Expenses    ,AB57,EXTERNAL TRAINING COSTS                 ,"1,290.00",21/12/2015,R,OXFORD BROOKES UNIVERSITY     
75,Central Services,SupS Health & Safety,Learning and Development,B06146,Employees                     ,Indirect Employee Expenses    ,AB57,EXTERNAL TRAINING COSTS                 ,"2,500.00",21/12/2015,R,UNIVERSITY COLLEGE LONDON     
76,,,Library Self Service                    ,CC011AB,Vehicles Plant Equipment and Machinery,,D5,Software                                ,"6,600.00",15/12/2015,C,AXIELL                        
77,,,The Gables Mitcham                      ,CC021AB,New Construction Conversion and Renovation,,B4,Contractor - Site works                 ,"133,601.16",12/01/2016,C,MOY CONSTRUCTION CO LTD       
78,,,Disabled Facilities Grant DCLG          ,CE004RA,Other Capital Expenditure,,E1,Grants                                  ,815.63,21/01/2016,C,ABLE 2 OCCUP.THERAPY SERV.LTD 
79,,,Disabled Facilities Grant DCLG          ,CE004RA,Other Capital Expenditure,,E1,Grants                                  ,"1,187.22",21/01/2016,C,CBS ADAPTATION                
80,,,Disabled Facilities Grant DCLG          ,CE004RA,Other Capital Expenditure,,E1,Grants                                  ,"1,456.54",28/01/2016,C,CBS ADAPTATION                
81,,,Disabled Facilities Grant DCLG          ,CE004RA,Other Capital Expenditure,,E1,Grants                                  ,"2,456.63",28/01/2016,C,CBS ADAPTATION                
82,,,Disabled Facilities Grant DCLG          ,CE004RA,Other Capital Expenditure,,E1,Grants                                  ,"10,000.00",29/01/2016,C,GARVEY BROS BUILDERS          
83,,,Disabled Facilities Grant DCLG          ,CE004RA,Other Capital Expenditure,,E1,Grants                                  ,"1,507.50",08/01/2016,C,STAYING FIRST                 
84,,,Disabled Facilities Grant DCLG          ,CE004RA,Other Capital Expenditure,,E1,Grants                                  ,"5,025.00",11/01/2016,C,WHITEHOUSE B'LDING SPECIALIST 
85,,,Colliers Wd- Regeneration Fund          ,CE006FB,New Construction Conversion and Renovation,,B6,Other Costs - Site works                ,"489,640.00",08/12/2015,C,TRANSPORT FOR LONDON          
86,,,Parks Investment                        ,CE013SA,New Construction Conversion and Renovation,,B4,Contractor - Site works                 ,"3,875.00",12/01/2016,C,JUST METAL UK LTD             
87,,,B489 Landscape Colliers Wd Rc           ,CE022CA,New Construction Conversion and Renovation,,B4,Contractor - Site works                 ,"2,907.00",18/01/2016,C,EUROPEAN ASBESTOS SERVICES    
88,,,B506 Colliers Wood Rec                  ,CE022CB,New Construction Conversion and Renovation,,B4,Contractor - Site works                 ,"4,719.00",18/01/2016,C,EUROPEAN ASBESTOS SERVICES    
89,,,B521 - Morden Park                      ,CE027CA,New Construction Conversion and Renovation,,B4,Contractor - Site works                 ,"29,780.00",18/01/2016,C,EUROPEAN ASBESTOS SERVICES    
90,,,Repairs to Footways                     ,CE029FA,New Construction Conversion and Renovation,,B4,Contractor - Site works                 ,"1,455.18",15/01/2016,C,FM CONWAY LTD                 
91,,,Repairs to Footways                     ,CE029FA,New Construction Conversion and Renovation,,B4,Contractor - Site works                 ,"8,000.00",15/01/2016,C,FM CONWAY LTD                 
92,,,Leisure Centre Plant & Machine          ,CE038MA,Vehicles Plant Equipment and Machinery,,D3,Equipment                               ,"13,518.51",20/01/2016,C,HELEC                         
93,,,Leisure Centre Plant & Machine          ,CE038MA,Vehicles Plant Equipment and Machinery,,D3,Equipment                               ,"13,518.51",20/01/2016,C,HELEC                         
94,,,Morden Leisure Centre                   ,CE045AA,New Construction Conversion and Renovation,,B2,Site Surveys D&S Structure              ,"1,800.00",18/01/2016,C,ASHDOWN SITE INVESTIGATION    
95,,,Morden Leisure Centre                   ,CE045AA,New Construction Conversion and Renovation,,B2,Site Surveys D&S Structure              ,"6,958.60",18/12/2015,C,ASHDOWN SITE INVESTIGATION    
96,,,Morden Leisure Centre                   ,CE045AA,New Construction Conversion and Renovation,,B1,Consultants Fees D&S Structure          ,"52,652.00",20/01/2016,C,FAITHFUL AND GOULD            
97,,,Morden Leisure Centre                   ,CE045AA,New Construction Conversion and Renovation,,B1,Consultants Fees D&S Structure          ,"73,907.00",30/11/2015,C,FAITHFUL AND GOULD            
98,,,Morden Leisure Centre                   ,CE045AA,New Construction Conversion and Renovation,,B1,Consultants Fees D&S Structure          ,"113,107.00",15/12/2015,C,FAITHFUL AND GOULD            
99,,,Morden Leisure Centre                   ,CE045AA,New Construction Conversion and Renovation,,B1,Consultants Fees D&S Structure          ,"5,500.00",16/12/2015,C,GARDINER & THEOBALD LLP       
100,,,Morden Leisure Centre                   ,CE045AA,New Construction Conversion and Renovation,,B1,Consultants Fees D&S Structure          ,"1,000.00",31/12/2015,C,SWEETT (UK) LIMITED           
101,,,Town Centre Investment                  ,CE061FB,New Construction Conversion and Renovation,,B6,Other Costs - Site works                ,"21,673.31",08/12/2015,C,TRANSPORT FOR LONDON          
102,,,Mitcham Town Centre Imprvmnt            ,CE061FE,New Construction Conversion and Renovation,,B4,Contractor - Site works                 ,"3,970.00",30/12/2015,C,MAY GURNEY LTD T/A CARTLEDGE  
103,,,Mitcham Town Centre Imprvmnt            ,CE061FE,New Construction Conversion and Renovation,,B4,Contractor - Site works                 ,"32,902.56",21/01/2016,C,MAY GURNEY LTD T/A CARTLEDGE  
104,,,Colliers Wood Town Centre Impr          ,CE061FF,New Construction Conversion and Renovation,,B6,Other Costs - Site works                ,"90,000.00",08/12/2015,C,TRANSPORT FOR LONDON          
105,,,Rediscover Mitcham                      ,CE061FG,New Construction Conversion and Renovation,,B4,Contractor - Site works                 ,"1,454.00",30/12/2015,C,MAY GURNEY LTD T/A CARTLEDGE  
106,,,Street Lighting Replacement Pr          ,CE068FA,New Construction Conversion and Renovation,,B4,Contractor - Site works                 ,"2,553.32",21/01/2016,C,MAY GURNEY LTD T/A CARTLEDGE  
107,,,Street Lighting Replacement Pr          ,CE068FA,New Construction Conversion and Renovation,,B4,Contractor - Site works                 ,"2,751.39",30/12/2015,C,MAY GURNEY LTD T/A CARTLEDGE  
108,,,Street Lighting Replacement Pr          ,CE068FA,New Construction Conversion and Renovation,,B4,Contractor - Site works                 ,"6,279.80",21/01/2016,C,MAY GURNEY LTD T/A CARTLEDGE  
109,,,Street Lighting Replacement Pr          ,CE068FA,New Construction Conversion and Renovation,,B4,Contractor - Site works                 ,"29,644.56",30/12/2015,C,MAY GURNEY LTD T/A CARTLEDGE  
110,,,Street Lighting Replacement Pr          ,CE068FA,New Construction Conversion and Renovation,,B4,Contractor - Site works                 ,"37,617.15",30/12/2015,C,MAY GURNEY LTD T/A CARTLEDGE  
111,,,Replacement of Fleet Vehicles           ,CE082EA,Vehicles Plant Equipment and Machinery,,D1,Vehicles                                ,"96,000.00",07/01/2016,C,HOPKINSONS FAIRDEALS          
112,,,Replacement of Fleet Vehicles           ,CE082EA,Vehicles Plant Equipment and Machinery,,D1,Vehicles                                ,"11,995.00",23/11/2015,C,PRIORITY HIRE LIMITED         
113,,,Alley Gating Scheme - Fly Tip           ,CE087FA,Other Capital Expenditure,,E1,Grants                                  ,"2,274.13",05/01/2016,C,GRILLESAFE SECURITY LTD       
114,,,Alley Gating Scheme - Fly Tip           ,CE087FA,Other Capital Expenditure,,E1,Grants                                  ,"3,953.52",11/01/2016,C,SITA SOUTH EAST LTD           
115,,,Waste Phase B - Replace RCVs            ,CE092EA,Vehicles Plant Equipment and Machinery,,D1,Vehicles                                ,"38,000.00",12/01/2016,C,ADDEX GROUP                   
116,,,Cycle access/parking                    ,CE104FG,New Construction Conversion and Renovation,,B4,Contractor - Site works                 ,"2,121.17",18/01/2016,C,FM CONWAY LTD                 
117,,,A298/A238 Strategic Corridor            ,CE104FQ,New Construction Conversion and Renovation,,B6,Other Costs - Site works                ,"207,000.00",08/12/2015,C,TRANSPORT FOR LONDON          
118,,,Casualty Reduction & Schools            ,CE104RA,New Construction Conversion and Renovation,,B4,Contractor - Site works                 ,"1,600.23",15/01/2016,C,FM CONWAY LTD                 
119,,,Casualty Reduction & Schools            ,CE104RA,New Construction Conversion and Renovation,,B4,Contractor - Site works                 ,"2,741.71",15/01/2016,C,FM CONWAY LTD                 
120,,,Casualty Reduction & Schools            ,CE104RA,New Construction Conversion and Renovation,,B4,Contractor - Site works                 ,"3,246.16",15/01/2016,C,FM CONWAY LTD                 
121,,,Casualty Reduction & Schools            ,CE104RA,New Construction Conversion and Renovation,,B4,Contractor - Site works                 ,"5,000.00",15/01/2016,C,FM CONWAY LTD                 
122,,,Casualty Reduction & Schools            ,CE104RA,New Construction Conversion and Renovation,,B4,Contractor - Site works                 ,"5,668.20",22/01/2016,C,FM CONWAY LTD                 
123,,,Casualty Reduction & Schools            ,CE104RA,New Construction Conversion and Renovation,,B4,Contractor - Site works                 ,"10,500.00",15/01/2016,C,FM CONWAY LTD                 
124,,,Casualty Reduction & Schools            ,CE104RA,New Construction Conversion and Renovation,,B4,Contractor - Site works                 ,"15,000.00",15/01/2016,C,FM CONWAY LTD                 
125,,,Casualty Reduction & Schools            ,CE104RA,New Construction Conversion and Renovation,,B4,Contractor - Site works                 ,"1,278.07",21/01/2016,C,MAY GURNEY LTD T/A CARTLEDGE  
126,,,Casualty Reduction & Schools            ,CE104RA,New Construction Conversion and Renovation,,B6,Other Costs - Site works                ,789.00,17/11/2015,C,UK POWER NETWORKS (OPERATIONS)
127,,,Bus Stop Compliance                     ,CE105FR,New Construction Conversion and Renovation,,B4,Contractor - Site works                 ,"1,034.47",21/01/2016,C,MAY GURNEY LTD T/A CARTLEDGE  
128,,,Machinery Grounds Maintenance           ,CE110SK,Vehicles Plant Equipment and Machinery,,D3,Equipment                               ,"1,250.00",15/01/2016,C,SPALDINGS (UK) LTD            
129,,,B646a Lombard Industrial Estat          ,CE137FB,New Construction Conversion and Renovation,,B4,Contractor - Site works                 ,"5,028.68",21/01/2016,C,MAY GURNEY LTD T/A CARTLEDGE  
130,,,Merton Abbey Temp Accomodation          ,CS022AC,New Construction Conversion and Renovation,,B2,Site Surveys D&S Structure              ,615.00,18/12/2015,C,KEEGANS LIMITED               
131,,,Merton Abbey Temp Accomodation          ,CS022AC,New Construction Conversion and Renovation,,B1,Consultants Fees D&S Structure          ,750.00,17/12/2015,C,STACE LLP                     
132,,,Pelham School Expansion                 ,CS023AC,New Construction Conversion and Renovation,,B1,Consultants Fees D&S Structure          ,605.00,22/12/2015,C,EIGHT ASSOCIATES              
133,,,Dundonald expansion                     ,CS031AC,New Construction Conversion and Renovation,,B1,Consultants Fees D&S Structure          ,550.00,22/12/2015,C,EIGHT ASSOCIATES              
134,,,Dundonald expansion                     ,CS031AC,New Construction Conversion and Renovation,,B1,Consultants Fees D&S Structure          ,"12,767.00",31/12/2015,C,HAVERSTOCK ASSOCIATES LLP     
135,,,Dundonald expansion                     ,CS031AC,New Construction Conversion and Renovation,,B4,Contractor - Site works                 ,"160,000.00",21/01/2016,C,KIND & COMPANY (BUILDERS) LTD 
136,,,Dundonald expansion                     ,CS031AC,New Construction Conversion and Renovation,,B1,Consultants Fees D&S Structure          ,"1,071.75",31/12/2015,C,SYNERGY CPC LLP               
137,,,Dundonald expansion                     ,CS031AC,New Construction Conversion and Renovation,,B1,Consultants Fees D&S Structure          ,"1,883.25",31/12/2015,C,SYNERGY CPC LLP               
138,,,Poplar Permanent Expansion              ,CS034AB,New Construction Conversion and Renovation,,B4,Contractor - Site works                 ,"14,214.02",22/01/2016,C,FM CONWAY LTD                 
139,,,Poplar Permanent Expansion              ,CS034AB,New Construction Conversion and Renovation,,B1,Consultants Fees D&S Structure          ,"1,000.00",17/12/2015,C,STACE LLP                     
140,,,Singlegate expansion                    ,CS049AA,New Construction Conversion and Renovation,,B1,Consultants Fees D&S Structure          ,"10,940.42",13/01/2016,C,ATKINS LIMITED                
141,,,Singlegate expansion                    ,CS049AA,New Construction Conversion and Renovation,,B5,Suppliers - Site works                  ,"16,920.00",14/01/2016,C,BLOOMING MAD LANDSCAPES       
142,,,Singlegate expansion                    ,CS049AA,New Construction Conversion and Renovation,,B4,Contractor - Site works                 ,"77,941.31",22/01/2016,C,KIND & COMPANY (BUILDERS) LTD 
143,,,Wimbledon Park expansion                ,CS050AA,New Construction Conversion and Renovation,,B5,Suppliers - Site works                  ,"16,920.00",25/01/2016,C,BLOOMING MAD LANDSCAPES       
144,,,Schs Cap Maint & Accessibility          ,CS080SD,New Construction Conversion and Renovation,,B4,Contractor - Site works                 ,"12,000.00",30/10/2015,C,EUROPA NATIONWIDE TECH.SER.LTD
145,,,Schs Cap Maint & Accessibility          ,CS080SD,New Construction Conversion and Renovation,,B4,Contractor - Site works                 ,945.00,16/11/2015,C,JHW INSULATION                
146,,,Schs Cap Maint & Accessibility          ,CS080SD,New Construction Conversion and Renovation,,B6,Other Costs - Site works                ,"3,400.00",05/01/2016,C,REDACTED
147,,,Hatfield                                ,CS081SA,New Construction Conversion and Renovation,,B1,Consultants Fees D&S Structure          ,"2,140.04",07/01/2016,C,NPS PROPERTY CONSULTANTS LTD  
148,,,Harris Merton 4fe                       ,CS085SB,New Construction Conversion and Renovation,,B1,Consultants Fees D&S Structure          ,"1,166.00",30/12/2015,C,SUMMERS INMAN                 
149,,,St Marks 4fe                            ,CS085SC,New Construction Conversion and Renovation,,B4,Contractor - Site works                 ,"9,733.00",05/01/2016,C,WILLMOTT DIXON CONSTRUCT'N LTD
150,,,Harris Morden 4fe now 2fe               ,CS085SD,New Construction Conversion and Renovation,,B1,Consultants Fees D&S Structure          ,883.00,30/12/2015,C,SUMMERS INMAN                 
151,,,Harris Merton 2fe                       ,CS085SG,New Construction Conversion and Renovation,,B4,Contractor - Site works                 ,"6,457.00",05/01/2016,C,WILLMOTT DIXON CONSTRUCT'N LTD
152,,,Harris Merton 2fe                       ,CS085SG,New Construction Conversion and Renovation,,B4,Contractor - Site works                 ,"16,963.00",05/01/2016,C,WILLMOTT DIXON CONSTRUCT'N LTD
153,,,Harris Morden 2fe                       ,CS085SH,New Construction Conversion and Renovation,,B4,Contractor - Site works                 ,"14,699.00",05/01/2016,C,WILLMOTT DIXON CONSTRUCT'N LTD
154,,,Harris Morden 2fe                       ,CS085SH,New Construction Conversion and Renovation,,B4,Contractor - Site works                 ,"16,185.00",05/01/2016,C,WILLMOTT DIXON CONSTRUCT'N LTD
155,,,Perseid                                 ,CS092AA,New Construction Conversion and Renovation,,B1,Consultants Fees D&S Structure          ,721.85,11/01/2016,C,NPS SOUTH EAST                
156,,,Improving Information Systems           ,CT020NB,Vehicles Plant Equipment and Machinery,,D5,Software                                ,"2,500.00",17/12/2015,C,ADVANCED BUSINESS SOLUTIONS   
157,Central Services,Council tax collection,Local Taxation Services,E02100,Supplies & Services           ,Comms and Computing           ,DG09,Computer Purchases - Misc               ,"4,800.00",24/12/2015,R,BLAZIE                        
158,Central Services,Council tax collection,Local Taxation Services,E02100,Supplies & Services           ,Comms and Computing           ,DG09,Computer Purchases - Misc               ,625.00,07/01/2016,R,INFORM CPI LTD                
159,Central Services,Council tax collection,Local Taxation Services,E02100,Supplies & Services           ,Comms and Computing           ,DG09,Computer Purchases - Misc               ,"2,373.00",08/01/2016,R,MAG:NET SOLUTIONS             
160,Central Services,Council tax collection,Local Taxation Services,E02100,Supplies & Services           ,Comms and Computing           ,DG09,Computer Purchases - Misc               ,"28,020.00",07/01/2016,R,ONESTEP SOLUTIONS PLC         
161,Central Services,Council tax collection,Local Taxation Services,E02100,Supplies & Services           ,Services                      ,DF11,Counsel's Fees                          ,"1,032.00",05/01/2016,R,REDACTED
162,Central Services,Council tax collection,Local Taxation Services,E02100,Supplies & Services           ,Services                      ,DF11,Counsel's Fees                          ,679.00,21/01/2016,R,WELBECK LAW LLP               
163,Central Services,Council tax collection,Local Taxation Services,E02100,Supplies & Services           ,Services                      ,DF11,Counsel's Fees                          ,"1,077.00",04/01/2016,R,WELBECK LAW LLP               
164,Central Services,Council tax collection,Local Taxation Services,E02100,Supplies & Services           ,Services                      ,DF11,Counsel's Fees                          ,"1,107.00",06/01/2016,R,WELBECK LAW LLP               
165,Central Services,Council tax collection,Local Taxation Services,E02100,Supplies & Services           ,Services                      ,DF11,Counsel's Fees                          ,"1,107.00",04/01/2016,R,WELBECK LAW LLP               
166,Central Services,Council tax collection,Local Taxation Services,E02100,Supplies & Services           ,Services                      ,DF11,Counsel's Fees                          ,"1,107.00",04/01/2016,R,WELBECK LAW LLP               
167,Central Services,Council tax collection,Local Taxation Services,E02100,Supplies & Services           ,Services                      ,DF11,Counsel's Fees                          ,"3,893.00",15/12/2015,R,WELBECK LAW LLP               
168,Central Services,Council tax collection,Local Taxation Bailiffs,E02101,Supplies & Services           ,Services                      ,DF18,Bailiffs' fees                          ,925.99,01/01/2016,R,DATA INTERCHANGE PLC          
169,Housing Services,HB Administration,Benefits Administration,E02120,Supplies & Services           ,Services                      ,DF09,Miscellaneous Fees                      ,"2,052.54",18/01/2016,R,REDACTED
170,Housing Services,HB Administration,Local Welfare Support,E02123,Transfer Payments             ,Housing Benefits              ,FA95,Other Payments                          ,"10,000.00",08/01/2016,R,WIMBLEDON FOODBANK            
171,Central Services,SupS Corporate Finance,TRANSACTIONS,E02139,Supplies & Services           ,Comms and Computing           ,DG50,Other IT Expenditure                    ,587.94,18/12/2015,R,SPECIALIST COMPUTER CENT. PLC 
172,Central Services,SupS Payroll,Payroll,E02140,Third Party Payments          ,Private Contractors           ,EH10,Contract Payments                       ,"5,832.18",30/12/2015,R,LONDON BOROUGH OF SUTTON      
173,Central Services,SupS Payroll,Payroll,E02140,Third Party Payments          ,Private Contractors           ,EH10,Contract Payments                       ,"6,095.99",13/01/2016,R,LONDON BOROUGH OF SUTTON      
174,Central Services,SupS Payroll,Payroll,E02140,Third Party Payments          ,Private Contractors           ,EH10,Contract Payments                       ,"12,283.05",29/12/2015,R,LONDON BOROUGH OF SUTTON      
175,Central Services,SupS Payroll,Payroll,E02140,Third Party Payments          ,Private Contractors           ,EH10,Contract Payments                       ,"13,808.00",13/01/2016,R,LONDON BOROUGH OF SUTTON      
176,Central Services,SupS Payroll,Payroll,E02140,Employees                     ,Direct Employee Expenses      ,AA04,Shared Services Salaries                ,"31,691.73",22/01/2016,R,LONDON BOROUGH OF SUTTON      
177,Central Services,SupS Payroll,Trinity Project,E02141,Supplies & Services           ,Services                      ,DF03,Consultants                             ,"7,585.00",30/12/2015,R,LONDON BOROUGH OF SUTTON      
178,Central Services,SupS Pensions,Pensions,E02160,Supplies & Services           ,Comms and Computing           ,DG02,Software Licences                       ,"54,040.50",08/01/2016,R,HEYWOOD                       
179,Central Services,SupS Facilities,Post Room,E02220,Supplies & Services           ,Comms and Computing           ,DG04,Postage - General                       ,"1,119.00",08/12/2015,R,CHESSINGTON CARS AND COURIERS 
180,Central Services,SupS Facilities,Post Room,E02220,Supplies & Services           ,Comms and Computing           ,DG04,Postage - General                       ,"1,156.00",28/11/2015,R,CHESSINGTON CARS AND COURIERS 
181,Central Services,SupS Facilities,Post Room,E02220,Supplies & Services           ,Comms and Computing           ,DG04,Postage - General                       ,"5,000.00",14/01/2016,R,NEOPOST FINANCE LIMITED       
182,Central Services,SupS Facilities,Post Room,E02220,Supplies & Services           ,Equip Furniture/Materials     ,DA01,Equipment - R & M                       ,"1,414.35",23/12/2015,R,NEOPOST LTD                   
183,Central Services,SupS Facilities,Post Room,E02220,Supplies & Services           ,Comms and Computing           ,DG04,Postage - General                       ,684.77,16/11/2015,R,STREETWISE COURIERS           
184,Central Services,SupS Facilities,Civic Centre,E02222,Premises Related Expenditure  ,RepairsAlterations&MtceOfBldgs,BA29,BUILD MAINT MGT FEES                    ,"10,020.14",10/12/2015,R,UNIQUE OFFICE SOLUTIONS LTD   
185,Central Services,SupS Facilities,Facilities,E02231,Premises Related Expenditure  ,RepairsAlterations&MtceOfBldgs,BA02,ENERGY CONSERVATION                     ,"2,820.00",18/01/2016,R,BRIAR ASSOCIATES              
186,Central Services,SupS Facilities,Corporate Services Buildings,E02240,Premises Related Expenditure  ,RepairsAlterations&MtceOfBldgs,BA03,DDM - Mechanical                        ,"14,548.37",22/12/2015,R,ENER-G COMBINED POWER LIMITED 
187,Central Services,SupS Facilities,Corporate Services Buildings,E02240,Premises Related Expenditure  ,RepairsAlterations&MtceOfBldgs,BA03,DDM - Mechanical                        ,554.31,11/01/2016,R,EUROPA NATIONWIDE TECH.SER.LTD
188,Central Services,SupS Facilities,Corporate Services Buildings,E02240,Premises Related Expenditure  ,RepairsAlterations&MtceOfBldgs,BA29,Build Maint Mgt Fees                    ,"2,542.38",11/01/2016,R,EUROPA NATIONWIDE TECH.SER.LTD
189,Central Services,SupS Facilities,Corporate Services Buildings,E02240,Premises Related Expenditure  ,RepairsAlterations&MtceOfBldgs,BA03,DDM - Mechanical                        ,"3,786.72",11/01/2016,R,EUROPA NATIONWIDE TECH.SER.LTD
190,Central Services,SupS Facilities,Corporate Services Buildings,E02240,Premises Related Expenditure  ,Energy Costs                  ,BB03,Gas (incl. Butane)                      ,"17,953.70",11/01/2016,R,GAZPROM MARKETING&TRADING LTD 
191,Central Services,SupS Facilities,Corporate Services Buildings,E02240,Premises Related Expenditure  ,Water Services                ,BE01,Use of Water (Metered)                  ,838.26,30/12/2015,R,SUTTON AND EAST SURREY WATER  
192,Central Services,SupS Facilities,Corporate Services Buildings,E02240,Premises Related Expenditure  ,Water Services                ,BE01,Use of Water (Metered)                  ,992.28,30/12/2015,R,SUTTON AND EAST SURREY WATER  
193,Central Services,SupS Facilities,Corporate Services Buildings,E02240,Premises Related Expenditure  ,Water Services                ,BE01,Use of Water (Metered)                  ,"1,118.62",30/12/2015,R,SUTTON AND EAST SURREY WATER  
194,Central Services,SupS Facilities,Corporate Services Buildings,E02240,Premises Related Expenditure  ,Water Services                ,BE01,Use of Water (Metered)                  ,"1,530.45",30/12/2015,R,SUTTON AND EAST SURREY WATER  
195,Childrens & Education Services,Strategic Management,PDC,E02254,Premises Related Expenditure  ,Energy Costs                  ,BB03,Gas (incl. Butane)                      ,703.07,11/01/2016,R,GAZPROM MARKETING&TRADING LTD 
196,Childrens & Education Services,Strategic Management,PDC,E02254,Premises Related Expenditure  ,Cleaning and Domestic Supplies,BH03,Cleaning Services                       ,"2,397.51",31/12/2015,R,JULIUS RUTHERFOORD & CO LTD   
197,Childrens & Education Services,Strategic Management,PDC,E02254,Premises Related Expenditure  ,Energy Costs                  ,BB02,Electricity                             ,754.40,04/01/2016,R,SCOTTISHPOWER                 
198,Childrens & Education Services,Strategic Management,PDC,E02254,Premises Related Expenditure  ,Water Services                ,BE01,Use of Water (Metered)                  ,883.98,30/12/2015,R,SUTTON AND EAST SURREY WATER  
199,Adult Social Care,OP 65 & Over Day Care,Pollards Hill Day Centre,E02270,Premises Related Expenditure  ,Cleaning and Domestic Supplies,BH03,Cleaning Services                       ,674.17,31/12/2015,R,BIRKIN CLEANING SERVICES LTD  
200,Adult Social Care,OP 65 & Over Day Care,Pollards Hill Day Centre,E02270,Premises Related Expenditure  ,Cleaning and Domestic Supplies,BH03,Cleaning Services                       ,835.04,31/12/2015,R,BIRKIN CLEANING SERVICES LTD  
201,Adult Social Care,OP 65 & Over Day Care,Pollards Hill Day Centre,E02270,Premises Related Expenditure  ,Cleaning and Domestic Supplies,BH03,Cleaning Services                       ,"1,222.20",31/12/2015,R,BIRKIN CLEANING SERVICES LTD  
202,Adult Social Care,OP 65 & Over Day Care,Pollards Hill Day Centre,E02270,Premises Related Expenditure  ,Cleaning and Domestic Supplies,BH03,Cleaning Services                       ,"1,239.08",31/12/2015,R,BIRKIN CLEANING SERVICES LTD  
203,Adult Social Care,OP 65 & Over Day Care,Pollards Hill Day Centre,E02270,Premises Related Expenditure  ,Cleaning and Domestic Supplies,BH03,Cleaning Services                       ,"1,421.80",31/12/2015,R,BIRKIN CLEANING SERVICES LTD  
204,Adult Social Care,OP 65 & Over Day Care,Pollards Hill Day Centre,E02270,Premises Related Expenditure  ,Cleaning and Domestic Supplies,BH03,Cleaning Services                       ,"1,492.52",31/12/2015,R,BIRKIN CLEANING SERVICES LTD  
205,Adult Social Care,OP 65 & Over Day Care,Pollards Hill Day Centre,E02270,Premises Related Expenditure  ,Cleaning and Domestic Supplies,BH03,Cleaning Services                       ,"1,540.02",31/12/2015,R,BIRKIN CLEANING SERVICES LTD  
206,Adult Social Care,OP 65 & Over Day Care,Pollards Hill Day Centre,E02270,Premises Related Expenditure  ,Cleaning and Domestic Supplies,BH03,Cleaning Services                       ,"1,673.61",31/12/2015,R,BIRKIN CLEANING SERVICES LTD  
207,Adult Social Care,OP 65 & Over Day Care,Pollards Hill Day Centre,E02270,Premises Related Expenditure  ,Cleaning and Domestic Supplies,BH03,Cleaning Services                       ,"3,093.61",31/12/2015,R,BIRKIN CLEANING SERVICES LTD  
208,Adult Social Care,OP 65 & Over Day Care,Pollards Hill Day Centre,E02270,Premises Related Expenditure  ,Cleaning and Domestic Supplies,BH03,Cleaning Services                       ,"6,596.17",31/12/2015,R,BIRKIN CLEANING SERVICES LTD  
209,Adult Social Care,OP 65 & Over Day Care,Pollards Hill Day Centre,E02270,Premises Related Expenditure  ,Cleaning and Domestic Supplies,BH01,Cleaning Materials                      ,504.00,06/01/2016,R,GREENHAM TRADING LTD          
210,Adult Social Care,OP 65 & Over Day Care,Pollards Hill Day Centre,E02270,Premises Related Expenditure  ,Cleaning and Domestic Supplies,BH01,Cleaning Materials                      ,504.00,22/01/2016,R,GREENHAM TRADING LTD          
211,Cultural Env Reg&Plan Services,Parks & Open Spaces,E & R Buildings,E02344,Premises Related Expenditure  ,RepairsAlterations&MtceOfBldgs,BA03,DDM - Mechanical                        ,542.34,11/01/2016,R,EUROPA NATIONWIDE TECH.SER.LTD
212,Cultural Env Reg&Plan Services,Parks & Open Spaces,E & R Buildings,E02344,Premises Related Expenditure  ,RepairsAlterations&MtceOfBldgs,BA05,DDM - Electrical                        ,883.95,23/04/2015,R,EUROPA NATIONWIDE TECH.SER.LTD
213,Adult Social Care,PS u65 Day Care,C & H Buildings,E02345,Premises Related Expenditure  ,RepairsAlterations&MtceOfBldgs,BA03,DDM - Mechanical                        ,515.15,11/01/2016,R,EUROPA NATIONWIDE TECH.SER.LTD
214,Adult Social Care,PS u65 Day Care,C & H Buildings,E02345,Premises Related Expenditure  ,RepairsAlterations&MtceOfBldgs,BA05,DDM - Electrical                        ,535.54,28/11/2014,R,EUROPA NATIONWIDE TECH.SER.LTD
215,Adult Social Care,PS u65 Day Care,C & H Buildings,E02345,Premises Related Expenditure  ,RepairsAlterations&MtceOfBldgs,BA05,DDM - Electrical                        ,872.40,08/01/2016,R,EUROPA NATIONWIDE TECH.SER.LTD
216,Adult Social Care,PS u65 Day Care,C & H Buildings,E02345,Premises Related Expenditure  ,RepairsAlterations&MtceOfBldgs,BA03,DDM - Mechanical                        ,"1,355.81",13/01/2016,R,EUROPA NATIONWIDE TECH.SER.LTD
217,Adult Social Care,PS u65 Day Care,C & H Buildings,E02345,Premises Related Expenditure  ,RepairsAlterations&MtceOfBldgs,BA03,DDM - Mechanical                        ,"1,589.50",08/01/2016,R,EUROPA NATIONWIDE TECH.SER.LTD
218,Cultural Env Reg&Plan Services,Parks & Open Spaces,Leisure Buildings,E02350,Premises Related Expenditure  ,RepairsAlterations&MtceOfBldgs,BA03,DDM - Mechanical                        ,531.14,16/10/2014,R,EUROPA NATIONWIDE TECH.SER.LTD
219,Cultural Env Reg&Plan Services,Parks & Open Spaces,Leisure Buildings,E02350,Premises Related Expenditure  ,RepairsAlterations&MtceOfBldgs,BA03,DDM - Mechanical                        ,557.57,11/01/2016,R,EUROPA NATIONWIDE TECH.SER.LTD
220,Cultural Env Reg&Plan Services,Parks & Open Spaces,Leisure Buildings,E02350,Premises Related Expenditure  ,RepairsAlterations&MtceOfBldgs,BA01,DDM - General Building                  ,631.00,22/12/2015,R,SALTASH ENTERPRISES LTD       
221,Central Services,SupS DOF,AD RESOURCES,E04061,Supplies & Services           ,Comms and Computing           ,DG50,Other IT Expenditure                    ,"7,405.00",19/12/2015,R,REAL ASSET MANAGEMENT PLC     
222,Central Services,SupS Strategic Finance,Business Planning,E06221,Supplies & Services           ,Comms and Computing           ,DG50,Other IT Expenditure                    ,579.20,23/12/2015,R,REAL ASSET MANAGEMENT PLC     
223,Central Services,SupS Strategic Finance,Business Planning,E06221,Supplies & Services           ,Grants and Subscriptions      ,DJ04,Subscriptions                           ,524.12,01/09/2015,R,RICS BUSINESS SERVICE LTD     
224,Central Services,SupS Strategic Finance,Treasury & Insurance,E06222,Employees                     ,Direct Employee Expenses      ,AA17,Agency Staff & Casual Paymts            ,"1,356.00",06/01/2016,R,HAYS RECRUITING EXPERTS       
225,Central Services,SupS Strategic Finance,Treasury & Insurance,E06222,Employees                     ,Direct Employee Expenses      ,AA17,Agency Staff & Casual Paymts            ,"1,808.00",30/12/2015,R,HAYS RECRUITING EXPERTS       
226,Central Services,SupS Strategic Finance,Treasury & Insurance,E06222,Employees                     ,Direct Employee Expenses      ,AA17,Agency Staff & Casual Paymts            ,"2,260.00",13/01/2016,R,HAYS RECRUITING EXPERTS       
227,Central Services,SupS Strategic Finance,Treasury & Insurance,E06222,Employees                     ,Direct Employee Expenses      ,AA17,Agency Staff & Casual Paymts            ,"2,260.00",20/01/2016,R,HAYS RECRUITING EXPERTS       
228,Central Services,GENERATED ACCOUNT,Parking Cash Collect'n Contrct,E06225,Third Party Payments          ,Private Contractors           ,EH02,Miscellaneous Hired Services            ,"8,986.33",30/11/2015,R,BANKING AUTOMATION LTD        
229,Central Services,GENERATED ACCOUNT,Parking Cash Collect'n Contrct,E06225,Third Party Payments          ,Private Contractors           ,EH02,Miscellaneous Hired Services            ,"9,142.15",31/12/2015,R,BANKING AUTOMATION LTD        
230,Central Services,GENERATED ACCOUNT,Establishments' Cash Collect'n,E06226,Third Party Payments          ,Private Contractors           ,EH02,Miscellaneous Hired Services            ,599.85,30/11/2015,R,BANKING AUTOMATION LTD        
231,Central Services,GENERATED ACCOUNT,Establishments' Cash Collect'n,E06226,Third Party Payments          ,Private Contractors           ,EH02,Miscellaneous Hired Services            ,697.50,31/12/2015,R,BANKING AUTOMATION LTD        
232,Central Services,Registration of electors,Electoral Registration,E10285,Supplies & Services           ,Comms and Computing           ,DG04,Postage - General                       ,"1,401.99",23/12/2015,R,FINANCIAL DATA MANAGEMENT PLC 
233,Central Services,Registration of electors,Electoral Registration,E10285,Supplies & Services           ,Prntng Stnry Gen Off Exp      ,DE01,External Printing                       ,"2,656.23",31/10/2015,R,FINANCIAL DATA MANAGEMENT PLC 
234,Central Services,SupS Legal,Shared Legal Service,E10288,Supplies & Services           ,Prntng Stnry Gen Off Exp      ,DE30,General Office Expense                  ,858.70,31/12/2015,R,RESTORE PLC                   
235,Central Services,SupS Legal,Shared Legal Service,E10288,Supplies & Services           ,Equip Furniture/Materials     ,DA80,Books                                   ,665.00,07/01/2016,R,THOMSON REUTERS               
236,Central Services,SupS Legal,Shared Legal Service,E10288,Supplies & Services           ,Comms and Computing           ,DG02,Software Licences                       ,"1,040.38",12/01/2016,R,TWOFOLD LTD                   
237,Central Services,SupS Legal,Shared Legal Service,E10288,Supplies & Services           ,Comms and Computing           ,DG50,Other IT Expenditure                    ,"5,000.00",21/12/2015,R,ZYLPHA LIMITED                
238,Central Services,SupS Legal,Richmond Legal,E10289,Supplies & Services           ,Services                      ,DF95,Services from Provider                  ,911.91,11/01/2016,R,SEARCHFLOW LTD                
239,Central Services,SupS Legal,Kingston Legal                          ,E10292,Supplies & Services           ,Services                      ,DF11,Counsel's Fees                          ,"10,750.00",05/01/2016,R,GERALD GOURIET QC             
240,Central Services,SupS Legal,Kingston Legal                          ,E10292,Supplies & Services           ,Services                      ,DF95,Services from Provider                  ,647.28,19/11/2015,R,SEARCHFLOW LTD                
241,Central Services,SupS Legal,Sutton Legal                            ,E10293,Supplies & Services           ,Services                      ,DF14,Doctors and Other Fees                  ,"1,580.00",22/12/2015,R,JK ASSESSMENT SERVICES        
242,Central Services,SupS Legal,Sutton Legal                            ,E10293,Supplies & Services           ,Services                      ,DF95,Services from Provider                  ,"1,285.00",19/01/2016,R,ORMERODS SOLICITORS           
243,Central Services,SupS Legal,Sutton Legal                            ,E10293,Supplies & Services           ,Services                      ,DF11,Counsel's Fees                          ,520.00,01/12/2015,R,REDACTED
244,Central Services,SupS Legal,Sutton Legal                            ,E10293,Supplies & Services           ,Services                      ,DF14,Doctors and Other Fees                  ,522.80,13/01/2016,R,REDACTED
245,Central Services,SupS Legal,Sutton Legal                            ,E10293,Supplies & Services           ,Services                      ,DF14,Doctors and Other Fees                  ,562.60,08/11/2015,R,REDACTED
246,Central Services,SupS Legal,Sutton Legal                            ,E10293,Supplies & Services           ,Services                      ,DF11,Counsel's Fees                          ,600.00,03/10/2015,R,REDACTED
247,Central Services,SupS Legal,Sutton Legal                            ,E10293,Supplies & Services           ,Services                      ,DF11,Counsel's Fees                          ,602.50,21/12/2015,R,REDACTED
248,Central Services,SupS Legal,Sutton Legal                            ,E10293,Supplies & Services           ,Services                      ,DF14,Doctors and Other Fees                  ,713.70,21/01/2016,R,REDACTED
249,Central Services,SupS Legal,Sutton Legal                            ,E10293,Supplies & Services           ,Services                      ,DF14,Doctors and Other Fees                  ,726.00,25/01/2016,R,REDACTED
250,Central Services,SupS Legal,Sutton Legal                            ,E10293,Supplies & Services           ,Services                      ,DF14,Doctors and Other Fees                  ,900.00,11/08/2015,R,REDACTED
251,Central Services,SupS Legal,Sutton Legal                            ,E10293,Supplies & Services           ,Services                      ,DF11,Counsel's Fees                          ,940.00,12/01/2016,R,REDACTED
252,Central Services,SupS Legal,Sutton Legal                            ,E10293,Supplies & Services           ,Services                      ,DF11,Counsel's Fees                          ,"1,100.00",14/09/2015,R,REDACTED
253,Central Services,SupS Legal,Sutton Legal                            ,E10293,Supplies & Services           ,Services                      ,DF11,Counsel's Fees                          ,"1,500.00",19/01/2016,R,REDACTED
254,Central Services,SupS Legal,Sutton Legal                            ,E10293,Supplies & Services           ,Services                      ,DF11,Counsel's Fees                          ,"1,580.00",06/07/2015,R,REDACTED
255,Central Services,SupS Legal,Sutton Legal                            ,E10293,Supplies & Services           ,Services                      ,DF11,Counsel's Fees                          ,"5,900.00",04/12/2015,R,REDACTED
256,Central Services,SupS Legal,Sutton Legal                            ,E10293,Supplies & Services           ,Services                      ,DF95,Services from Provider                  ,"1,080.00",06/10/2015,R,STEPHENSONS SOLICITORS LLP    
257,Central Services,SupS Legal,Sutton Legal                            ,E10293,Supplies & Services           ,Services                      ,DF95,Services from Provider                  ,"6,020.00",06/10/2015,R,STEPHENSONS SOLICITORS LLP    
258,Central Services,SupS Legal,Achieving for Children (AFC),E10295,Supplies & Services           ,Services                      ,DF14,Doctors and Other Fees                  ,"1,068.75",19/01/2016,R,JW FAMILY ASSESSMENT SERV LTD 
259,Central Services,SupS Legal,Achieving for Children (AFC),E10295,Supplies & Services           ,Services                      ,DF14,Doctors and Other Fees                  ,"1,477.48",17/01/2015,R,LISA HOLMES LTD               
260,Central Services,SupS Legal,Achieving for Children (AFC),E10295,Supplies & Services           ,Services                      ,DF11,Counsel's Fees                          ,575.00,21/01/2016,R,REDACTED
261,Central Services,SupS Legal,Achieving for Children (AFC),E10295,Supplies & Services           ,Services                      ,DF11,Counsel's Fees                          ,600.00,03/09/2015,R,REDACTED
262,Central Services,SupS Legal,Achieving for Children (AFC),E10295,Supplies & Services           ,Services                      ,DF11,Counsel's Fees                          ,610.00,29/10/2015,R,REDACTED
263,Central Services,SupS Legal,Achieving for Children (AFC),E10295,Supplies & Services           ,Services                      ,DF11,Counsel's Fees                          ,649.58,12/01/2016,R,REDACTED
264,Central Services,SupS Legal,Achieving for Children (AFC),E10295,Supplies & Services           ,Services                      ,DF11,Counsel's Fees                          ,665.00,03/12/2015,R,REDACTED
265,Central Services,SupS Legal,Achieving for Children (AFC),E10295,Supplies & Services           ,Services                      ,DF14,Doctors and Other Fees                  ,675.00,26/06/2015,R,REDACTED
266,Central Services,SupS Legal,Achieving for Children (AFC),E10295,Supplies & Services           ,Services                      ,DF11,Counsel's Fees                          ,716.67,26/01/2016,R,REDACTED
267,Central Services,SupS Legal,Achieving for Children (AFC),E10295,Supplies & Services           ,Services                      ,DF11,Counsel's Fees                          ,950.00,10/11/2015,R,REDACTED
268,Central Services,SupS Legal,Achieving for Children (AFC),E10295,Supplies & Services           ,Services                      ,DF11,Counsel's Fees                          ,950.00,30/12/2015,R,REDACTED
269,Central Services,SupS Legal,Achieving for Children (AFC),E10295,Supplies & Services           ,Services                      ,DF11,Counsel's Fees                          ,"1,030.00",11/12/2015,R,REDACTED
270,Central Services,SupS Legal,Achieving for Children (AFC),E10295,Supplies & Services           ,Services                      ,DF11,Counsel's Fees                          ,"1,130.00",14/10/2015,R,REDACTED
271,Central Services,SupS Legal,Achieving for Children (AFC),E10295,Supplies & Services           ,Services                      ,DF11,Counsel's Fees                          ,"1,340.00",01/12/2015,R,REDACTED
272,Central Services,SupS Legal,Achieving for Children (AFC),E10295,Supplies & Services           ,Services                      ,DF11,Counsel's Fees                          ,"1,516.25",18/01/2016,R,REDACTED
273,Central Services,SupS Legal,Achieving for Children (AFC),E10295,Supplies & Services           ,Services                      ,DF11,Counsel's Fees                          ,"1,560.00",26/01/2016,R,REDACTED
274,Central Services,SupS IT,Social Care Info System (SCI)           ,E14357,Employees                     ,Direct Employee Expenses      ,AA17,Agency Staff & Casual Paymts            ,"1,871.36",27/12/2015,R,REDACTED
275,Central Services,SupS IT,Social Care Info System (SCI)           ,E14357,Employees                     ,Direct Employee Expenses      ,AA17,Agency Staff & Casual Paymts            ,"2,339.20",29/11/2015,R,REDACTED
276,Central Services,SupS IT,Social Care Info System (SCI)           ,E14357,Employees                     ,Direct Employee Expenses      ,AA17,Agency Staff & Casual Paymts            ,"1,500.10",30/11/2015,R,REDACTED
277,Central Services,SupS IT,Social Care Info System (SCI)           ,E14357,Employees                     ,Direct Employee Expenses      ,AA17,Agency Staff & Casual Paymts            ,"1,500.10",08/01/2016,R,REDACTED
278,Central Services,SupS IT,Social Care Info System (SCI)           ,E14357,Employees                     ,Direct Employee Expenses      ,AA17,Agency Staff & Casual Paymts            ,"2,914.48",16/11/2015,R,REDACTED
279,Central Services,SupS IT,Social Care Info System (SCI)           ,E14357,Employees                     ,Direct Employee Expenses      ,AA17,Agency Staff & Casual Paymts            ,"3,125.00",08/01/2016,R,REDACTED
280,Central Services,SupS IT,Social Care Info System (SCI)           ,E14357,Employees                     ,Direct Employee Expenses      ,AA17,Agency Staff & Casual Paymts            ,"7,050.00",21/01/2016,R,REDACTED
281,Central Services,SupS IT,Social Care Info System (SCI)           ,E14357,Employees                     ,Direct Employee Expenses      ,AA17,Agency Staff & Casual Paymts            ,"4,668.56",04/01/2016,R,REDACTED
282,Central Services,SupS IT,Social Care Info System (SCI)           ,E14357,Employees                     ,Direct Employee Expenses      ,AA17,Agency Staff & Casual Paymts            ,"6,464.16",19/01/2016,R,REDACTED
283,Central Services,SupS IT,BI IT Projects,E14360,Supplies & Services           ,Comms and Computing           ,DG65,Application Licences                    ,"46,410.00",15/01/2016,R,OLM SYSTEMS                   
284,Central Services,SupS IT,BI IT Projects,E14360,Employees                     ,Direct Employee Expenses      ,AA17,Agency Staff & Casual Paymts            ,"1,330.00",06/01/2016,R,REDACTED
285,Central Services,SupS IT,BI IT Projects,E14360,Employees                     ,Direct Employee Expenses      ,AA17,Agency Staff & Casual Paymts            ,"1,900.00",12/01/2016,R,REDACTED
286,Central Services,SupS IT,BI IT Projects,E14360,Employees                     ,Direct Employee Expenses      ,AA17,Agency Staff & Casual Paymts            ,"1,900.00",20/01/2016,R,REDACTED
287,CS -Oth Operating Inc & Expend,SupS Codes No Longer Used,No longer used,E14362,Supplies & Services           ,Services                      ,DF95,Services from Provider                  ,769.51,22/12/2015,R,POST OFFICE LTD               
288,Central Services,SupS IT,AD I&T,E14363,Supplies & Services           ,Comms and Computing           ,DG63,Software Licences - Data                ,"4,893.00",30/11/2015,R,INSIGHT DIRECT (UK) LTD       
289,Central Services,SupS IT,AD I&T,E14363,Supplies & Services           ,Comms and Computing           ,DG63,Software Licences - Data                ,"5,000.00",30/11/2015,R,INSIGHT DIRECT (UK) LTD       
290,Central Services,SupS IT,AD I&T,E14363,Supplies & Services           ,Comms and Computing           ,DG63,Software Licences - Data                ,"6,000.00",30/11/2015,R,INSIGHT DIRECT (UK) LTD       
291,Central Services,SupS IT,AD I&T,E14363,Employees                     ,Direct Employee Expenses      ,AA17,Agency Staff & Casual Paymts            ,"9,102.50",26/01/2016,R,REDACTED
292,Central Services,SupS IT,Systems & Projects,E14366,Supplies & Services           ,Comms and Computing           ,DG07,Computer Software                       ,"11,074.56",01/12/2015,R,ALIGNED ASSETS                
293,Central Services,SupS IT,Systems & Projects,E14366,Employees                     ,Direct Employee Expenses      ,AA17,Agency Staff & Casual Paymts            ,652.40,23/12/2015,R,BIBBY FACTORS LEICESTER       
294,Central Services,SupS IT,Systems & Projects,E14366,Employees                     ,Direct Employee Expenses      ,AA17,Agency Staff & Casual Paymts            ,840.00,07/12/2015,R,BIBBY FACTORS LEICESTER       
295,Central Services,SupS IT,Systems & Projects,E14366,Employees                     ,Direct Employee Expenses      ,AA17,Agency Staff & Casual Paymts            ,"1,083.60",11/01/2016,R,BIBBY FACTORS LEICESTER       
296,Central Services,SupS IT,Systems & Projects,E14366,Employees                     ,Direct Employee Expenses      ,AA17,Agency Staff & Casual Paymts            ,"1,120.00",11/01/2016,R,BIBBY FACTORS LEICESTER       
297,Central Services,SupS IT,Systems & Projects,E14366,Employees                     ,Direct Employee Expenses      ,AA17,Agency Staff & Casual Paymts            ,"1,120.00",11/01/2016,R,BIBBY FACTORS LEICESTER       
298,Central Services,SupS IT,Systems & Projects,E14366,Employees                     ,Direct Employee Expenses      ,AA17,Agency Staff & Casual Paymts            ,"1,400.00",03/12/2015,R,BIBBY FACTORS LEICESTER       
299,Central Services,SupS IT,Systems & Projects,E14366,Employees                     ,Direct Employee Expenses      ,AA17,Agency Staff & Casual Paymts            ,"1,400.00",17/12/2015,R,BIBBY FACTORS LEICESTER       
300,Central Services,SupS IT,Systems & Projects,E14366,Employees                     ,Direct Employee Expenses      ,AA17,Agency Staff & Casual Paymts            ,"1,400.00",23/11/2015,R,BIBBY FACTORS LEICESTER       
301,Central Services,SupS IT,Systems & Projects,E14366,Supplies & Services           ,Comms and Computing           ,DG61,Computer Servs Special                  ,"1,900.00",20/01/2016,R,CACI LIMITED                  
302,Central Services,SupS IT,Systems & Projects,E14366,Supplies & Services           ,Comms and Computing           ,DG61,Computer Servs Special                  ,"2,850.00",20/01/2016,R,CACI LIMITED                  
303,Central Services,SupS IT,Operations & Telecomms,E14367,Supplies & Services           ,Comms and Computing           ,DG54,Corporate Telephones                    ,"2,245.27",02/01/2016,R,COLT TELECOMMUNICATIONS       
304,Central Services,SupS IT,Operations & Telecomms,E14367,Supplies & Services           ,Comms and Computing           ,DG15,Network Maintenance                     ,"3,505.75",31/12/2015,R,NET-CTRL                      
305,Central Services,SupS IT,Operations & Telecomms,E14367,Supplies & Services           ,Comms and Computing           ,DG54,Corporate Telephones                    ,"7,178.32",17/01/2016,R,ORANGE P'MENT PRO'SING AIRTIME
306,Central Services,SupS IT,Operations & Telecomms,E14367,Supplies & Services           ,Comms and Computing           ,DG54,Corporate Telephones                    ,750.34,26/01/2016,R,VIRGIN MEDIA PAYMENTS LTD     
307,Central Services,SupS IT,Operations & Telecomms,E14367,Supplies & Services           ,Comms and Computing           ,DG54,Corporate Telephones                    ,751.12,24/12/2015,R,VIRGIN MEDIA PAYMENTS LTD     
308,Central Services,SupS IT,Distributed Services,E14368,Supplies & Services           ,Comms and Computing           ,DG63,Software Licences - Data                ,"2,464.00",16/01/2016,R,NETFORT TECHNOLOGIES LTD      
309,Central Services,SupS IT,Distributed Services,E14368,Supplies & Services           ,Comms and Computing           ,DG63,Software Licences - Data                ,"5,478.00",16/01/2016,R,NETFORT TECHNOLOGIES LTD      
310,Central Services,SupS IT,Distributed Services,E14368,Supplies & Services           ,Comms and Computing           ,DG63,Software Licences - Data                ,"1,126.00",19/01/2016,R,NU NETWORK PRODUCTS LTD       
311,Central Services,SupS IT,Distributed Services,E14368,Supplies & Services           ,Comms and Computing           ,DG63,Software Licences - Data                ,"1,784.00",19/01/2016,R,NU NETWORK PRODUCTS LTD       
312,Central Services,SupS IT,Corp Saving-IT Consolidation,E14370,Premises Related Expenditure  ,RepairsAlterations&MtceOfBldgs,BA03,DDM - Mechanical                        ,"1,077.51",13/01/2016,R,EUROPA NATIONWIDE TECH.SER.LTD
313,Central Services,SupS IT,Corp Saving-IT Consolidation,E14370,Premises Related Expenditure  ,RepairsAlterations&MtceOfBldgs,BA06,Repairs & Maintenance General           ,"5,248.80",31/12/2015,R,FUTURE TECH                   
314,Central Services,SupS IT,Corp Saving-IT Consolidation,E14370,Premises Related Expenditure  ,RepairsAlterations&MtceOfBldgs,BA01,DDM - General Building                  ,"6,678.90",18/12/2015,R,STONEWEST                     
315,Central Services,SupS IT,No longer used,E14371,Supplies & Services           ,Comms and Computing           ,DG50,Other IT Expenditure                    ,"275,903.26",03/07/2015,R,GENERAL DYNAMICS IT LIMITED   
316,Central Services,SupS IT,No longer used,E14371,Employees                     ,Direct Employee Expenses      ,AA17,Agency Staff & Casual Paymts            ,"2,331.00",06/01/2016,R,HAYS RECRUITING EXPERTS       
317,Central Services,SupS IT,No longer used,E14371,Employees                     ,Direct Employee Expenses      ,AA17,Agency Staff & Casual Paymts            ,"3,330.00",06/01/2016,R,HAYS RECRUITING EXPERTS       
318,Central Services,SupS IT,No longer used,E14371,Employees                     ,Direct Employee Expenses      ,AA17,Agency Staff & Casual Paymts            ,"3,330.00",10/12/2015,R,HAYS RECRUITING EXPERTS       
319,Central Services,SupS IT,No longer used,E14371,Employees                     ,Direct Employee Expenses      ,AA17,Agency Staff & Casual Paymts            ,"3,330.00",06/01/2016,R,HAYS RECRUITING EXPERTS       
320,Central Services,SupS IT,No longer used,E14371,Employees                     ,Direct Employee Expenses      ,AA17,Agency Staff & Casual Paymts            ,"10,200.00",12/01/2016,R,MILESTONES COMMUNICATIONS LTD 
321,Cultural Env Reg&Plan Services,Mgt & Support (Env),Senior Mgt. - E.S.C.,G00100,Supplies & Services           ,Services                      ,DF03,Consultants                             ,"8,950.00",02/01/2016,R,SARAH TANBURN ASSOCIATES LTD  
322,Cultural Env Reg&Plan Services,BC Regs & Other not split,HoS - PP&D                              ,G00111,Supplies & Services           ,Services                      ,DF96,LBM Legal Services                      ,"1,402.50",18/01/2016,R,REDACTED
323,Cultural Env Reg&Plan Services,BC Regs & Other not split,HoS - PP&D                              ,G00111,Supplies & Services           ,Services                      ,DF11,Counsel's Fees                          ,"4,750.00",30/12/2015,R,REDACTED
324,Highways & Transport Services,Repair prin/oth rds not split,Walk Sheets,G00127,Third Party Payments          ,Private Contractors           ,EH56,Carriageway/Fway Maint                  ,"2,621.17",15/01/2016,R,FM CONWAY LTD                 
325,Highways & Transport Services,Repair prin/oth rds not split,Walk Sheets,G00127,Third Party Payments          ,Private Contractors           ,EH56,Carriageway/Fway Maint                  ,"4,800.00",22/01/2016,R,FM CONWAY LTD                 
326,Highways & Transport Services,Repair prin/oth rds not split,Walk Sheets,G00127,Third Party Payments          ,Private Contractors           ,EH56,Carriageway/Fway Maint                  ,"7,676.15",22/01/2016,R,FM CONWAY LTD                 
327,Highways & Transport Services,Saf mtc prin/oth rds not split,Traffic Signals .,G00170,Third Party Payments          ,Other Agencies                ,EJ57,Traffic Signals Control Unit            ,"70,031.15",08/01/2016,R,TRANSPORT FOR LONDON          
328,Highways & Transport Services,,TRAF & HWYS CAPITAL PROJECTS,G00210,Supplies & Services           ,Services                      ,DF05,Surveys (General)                       ,"6,854.42",19/01/2016,R,HIGHWAY SURVEYORS             
329,Highways & Transport Services,Transport Plg/Policy/Strategy,CPZ implementation & Consultat,G00211,Third Party Payments          ,Private Contractors           ,EH56,Carriageway/Fway Maint                  ,502.37,22/01/2016,R,FM CONWAY LTD                 
330,Highways & Transport Services,Transport Plg/Policy/Strategy,CPZ implementation & Consultat,G00211,Third Party Payments          ,Private Contractors           ,EH56,Carriageway/Fway Maint                  ,503.32,22/01/2016,R,FM CONWAY LTD                 
331,Highways & Transport Services,Transport Plg/Policy/Strategy,CPZ implementation & Consultat,G00211,Third Party Payments          ,Private Contractors           ,EH56,Carriageway/Fway Maint                  ,"2,077.53",22/01/2016,R,FM CONWAY LTD                 
332,Highways & Transport Services,Transport Plg/Policy/Strategy,CPZ implementation & Consultat,G00211,Third Party Payments          ,Private Contractors           ,EH56,Carriageway/Fway Maint                  ,"3,948.44",22/01/2016,R,FM CONWAY LTD                 
333,Highways & Transport Services,Transport Plg/Policy/Strategy,CPZ implementation & Consultat,G00211,Third Party Payments          ,Private Contractors           ,EH56,Carriageway/Fway Maint                  ,"4,000.00",22/01/2016,R,FM CONWAY LTD                 
334,Highways & Transport Services,Transport Plg/Policy/Strategy,CPZ implementation & Consultat,G00211,Third Party Payments          ,Private Contractors           ,EH56,Carriageway/Fway Maint                  ,"12,000.00",15/01/2016,R,FM CONWAY LTD                 
335,Highways & Transport Services,Traffic Management,Tr Man & Accid Sch,G00220,Supplies & Services           ,Comms and Computing           ,DG07,Computer Software                       ,630.00,17/12/2015,R,KEYSOFT SOLUTIONS             
336,Highways & Transport Services,Street Lighting.,Street Lighting .,G00260,Third Party Payments          ,Private Contractors           ,EH10,Contract Payments                       ,"3,813.00",01/01/2016,R,DUCREUX LTD                   
337,Highways & Transport Services,Street Lighting.,Street Lighting .,G00260,Third Party Payments          ,Private Contractors           ,EH01,Miscellaneous Agency Services           ,777.96,21/01/2016,R,MAY GURNEY LTD T/A CARTLEDGE  
338,Highways & Transport Services,Street Lighting.,Street Lighting .,G00260,Third Party Payments          ,Private Contractors           ,EH01,Miscellaneous Agency Services           ,"1,242.13",21/01/2016,R,MAY GURNEY LTD T/A CARTLEDGE  
339,Highways & Transport Services,Street Lighting.,Street Lighting .,G00260,Third Party Payments          ,Private Contractors           ,EH01,Miscellaneous Agency Services           ,"3,531.62",21/01/2016,R,MAY GURNEY LTD T/A CARTLEDGE  
340,Highways & Transport Services,Street Lighting.,Street Lighting .,G00260,Premises Related Expenditure  ,Energy Costs                  ,BB02,Electricity                             ,"15,196.24",04/01/2016,R,SCOTTISHPOWER                 
341,Highways & Transport Services,Street Lighting.,Street Lighting .,G00260,Premises Related Expenditure  ,Energy Costs                  ,BB02,Electricity                             ,"35,903.94",04/01/2016,R,SCOTTISHPOWER                 
342,Highways & Transport Services,Street Lighting.,Street Lighting .,G00260,Third Party Payments          ,Private Contractors           ,EH01,Miscellaneous Agency Services           ,642.00,06/01/2016,R,UK POWER NETWORKS (OPERATIONS)
343,Highways & Transport Services,Off-street parking,Car Parks (Unloc),G00291,Third Party Payments          ,Private Contractors           ,EH02,Miscellaneous Hired Services            ,"3,666.00",31/12/2015,R,COBALT TELEPHONE TECHNOLOGIES 
344,Highways & Transport Services,Off-street parking,St. Georges Car Park WEST M/S,G00302,Premises Related Expenditure  ,Rents                         ,BC01,Miscellaneous Rents                     ,"3,552.07",30/11/2015,R,REDACTED
345,Highways & Transport Services,On-street parking,On Street Parking.,G00311,Premises Related Expenditure  ,RepairsAlterations&MtceOfBldgs,BA06,Repairs & Maintenance General           ,755.98,07/01/2016,R,FACTOR 21                     
346,Highways & Transport Services,Road Safety Education,Bikeability                             ,G00327,Employees                     ,Indirect Employee Expenses    ,AB57,External Training Costs                 ,"4,000.00",06/01/2016,R,CYCLE CONFIDENT               
347,Highways & Transport Services,CYCLIST TRAINER,CYCLIST TRAINER,G00328,Third Party Payments          ,Private Contractors           ,EH10,Contract Payments                       ,"2,098.77",06/01/2016,R,CYCLE CONFIDENT               
348,Highways & Transport Services,CYCLIST TRAINER,CYCLIST TRAINER,G00328,Third Party Payments          ,Private Contractors           ,EH10,Contract Payments                       ,"7,134.29",09/12/2015,R,CYCLE CONFIDENT               
349,Highways & Transport Services,Parking Enforcement not split,Operational Running Costs,G00331,Supplies & Services           ,Services                      ,DF57,Consulting Engineers Fees               ,"3,000.00",03/12/2015,R,GLOBAL MSC SECURITY LTD       
350,Highways & Transport Services,Parking Enforcement not split,Operational Running Costs,G00331,Supplies & Services           ,Services                      ,DF57,Consulting Engineers Fees               ,"3,000.00",06/01/2016,R,GLOBAL MSC SECURITY LTD       
351,Highways & Transport Services,Parking Enforcement not split,Operational Running Costs,G00331,Third Party Payments          ,Other Agencies                ,EJ58,Parking Cttee for London                ,"20,000.00",11/01/2016,R,HMCTS                         
352,Highways & Transport Services,Parking Enforcement not split,Operational Running Costs,G00331,Supplies & Services           ,Equip Furniture/Materials     ,DA04,Materials                               ,"1,199.00",19/01/2016,R,JD ASSOCIATES                 
353,Highways & Transport Services,Parking Enforcement not split,Operational Running Costs,G00331,Supplies & Services           ,Equip Furniture/Materials     ,DA09,Equip-Purchases                         ,"3,870.00",20/01/2016,R,PARKEON LTD                   
354,Highways & Transport Services,Parking Enforcement not split,Operational Running Costs,G00331,Supplies & Services           ,Equip Furniture/Materials     ,DA09,Equip-Purchases                         ,929.41,12/01/2016,R,RAEVAN SUPPLIES LTD           
355,Highways & Transport Services,Parking Enforcement not split,Operational Running Costs,G00331,Supplies & Services           ,Services                      ,DF95,Services from Provider                  ,"33,817.57",30/10/2015,R,REDACTED
356,Highways & Transport Services,Parking Enforcement not split,Operational Running Costs,G00331,Supplies & Services           ,Services                      ,DF95,Services from Provider                  ,"48,643.50",29/12/2015,R,REDACTED
357,Highways & Transport Services,Parking Enforcement not split,Operational Running Costs,G00331,Supplies & Services           ,Services                      ,DF04,Miscellaneous Expenses                  ,"2,221.00",30/11/2015,R,SMITH & WILLIAMSON LLP        
358,Highways & Transport Services,Repair prin/oth rds not split,Flood Risk Management,G00350,Third Party Payments          ,Private Contractors           ,EH56,Carriageway/Fway Maint                  ,"20,000.00",31/12/2015,R,FM CONWAY LTD                 
359,Highways & Transport Services,Hwys/Rds (struct) not split,Footpath Crossings.,G00390,Third Party Payments          ,Private Contractors           ,EH56,Carriageway/Fway Maint                  ,"1,489.88",15/01/2016,R,FM CONWAY LTD                 
360,Highways & Transport Services,Hwys/Rds (struct) not split,Footpath Crossings.,G00390,Third Party Payments          ,Private Contractors           ,EH56,Carriageway/Fway Maint                  ,"1,584.66",22/01/2016,R,FM CONWAY LTD                 
361,Highways & Transport Services,Hwys/Rds (struct) not split,Footpath Crossings.,G00390,Third Party Payments          ,Private Contractors           ,EH56,Carriageway/Fway Maint                  ,"3,862.73",22/01/2016,R,FM CONWAY LTD                 
362,Cultural Env Reg&Plan Services,Street Clean - Not highways,Street Cleansing (Inc. Gully),G00492,Supplies & Services           ,Equip Furniture/Materials     ,DA03,Hire of Equipment                       ,"1,390.00",29/12/2015,R,COMCIR RADIO COMMUNICATIONS LT
363,Cultural Env Reg&Plan Services,Street Clean - Not highways,Street Cleansing (Inc. Gully),G00492,Supplies & Services           ,Clothing Unfrms Laundry       ,DC02,Clothing & Uniforms                     ,961.26,06/01/2016,R,SAFETY MANAGEMENT             
364,Cultural Env Reg&Plan Services,Street Clean - Not highways,Street Cleansing (Inc. Gully),G00492,Supplies & Services           ,Clothing Unfrms Laundry       ,DC02,Clothing & Uniforms                     ,"1,500.00",06/01/2016,R,SAFETY MANAGEMENT             
365,Cultural Env Reg&Plan Services,Waste Disposal (not separated),Waste Disposal .,G00550,Third Party Payments          ,Private Contractors           ,EH04,C1 Viridor SLWP Landfill Contract       ,"344,331.15",23/12/2015,R,KINGSTON CORPORATION          
366,Cultural Env Reg&Plan Services,Waste Disposal (not separated),Waste Disposal .,G00550,Third Party Payments          ,Private Contractors           ,EH66,Clinical Waste Disposal                 ,975.83,31/12/2015,R,S.GRUNDON (WASTE) LTD.        
367,Cultural Env Reg&Plan Services,Civic Amenity Sites,Garth Road Site,G00580,Third Party Payments          ,Private Contractors           ,EH94,Waste Disposal - Alt. Site              ,525.96,23/12/2015,R,KINGSTON CORPORATION          
368,Cultural Env Reg&Plan Services,Civic Amenity Sites,Garth Road Site,G00580,Third Party Payments          ,Private Contractors           ,EH18,SLWP C3 Food Waste Gate Fees            ,"8,007.20",23/12/2015,R,KINGSTON CORPORATION          
369,Cultural Env Reg&Plan Services,Civic Amenity Sites,Garth Road Site,G00580,Third Party Payments          ,Private Contractors           ,EH61,Green Waste Disposal                    ,"10,879.04",23/12/2015,R,KINGSTON CORPORATION          
370,Cultural Env Reg&Plan Services,Civic Amenity Sites,Garth Road Site,G00580,Third Party Payments          ,Private Contractors           ,EH04,Accommodation Based Support             ,"23,302.68",23/12/2015,R,KINGSTON CORPORATION          
371,Cultural Env Reg&Plan Services,Civic Amenity Sites,Garth Road Site,G00580,Premises Related Expenditure  ,Water Services                ,BE01,Use of Water (Metered)                  ,536.09,30/12/2015,R,SUTTON & EAST SURREY WATER PLC
372,Cultural Env Reg&Plan Services,Public Health,Dog Control.,G00620,Third Party Payments          ,Private Contractors           ,EH02,Miscellaneous Hired Services            ,"1,830.50",18/01/2016,R,NOAH'S ARK ENVIRONMENTAL SERV.
373,Cultural Env Reg&Plan Services,Public Health,Dog Control.,G00620,Third Party Payments          ,Private Contractors           ,EH02,Miscellaneous Hired Services            ,"3,856.00",18/12/2015,R,NOAH'S ARK ENVIRONMENTAL SERV.
374,Cultural Env Reg&Plan Services,Recycling (Collection),Recycling Activities,G00640,Third Party Payments          ,Private Contractors           ,EH08,SLWP C1 Haulage Dry Recyclable          ,880.00,23/12/2015,R,KINGSTON CORPORATION          
375,Cultural Env Reg&Plan Services,Recycling (Collection),Recycling Activities,G00640,Third Party Payments          ,Private Contractors           ,EH94,C1 DRY RECYCLING ACCEPTANCE & BULK      ,"6,493.75",23/12/2015,R,KINGSTON CORPORATION          
376,Cultural Env Reg&Plan Services,Recycling (Collection),Recycling Activities,G00640,Third Party Payments          ,Private Contractors           ,EH08,SLWP C1 Haulage Dry Recyclable          ,"29,812.14",23/12/2015,R,KINGSTON CORPORATION          
377,Cultural Env Reg&Plan Services,Recycling (Collection),Recycling Activities,G00640,Supplies & Services           ,Equip Furniture/Materials     ,DA32,Wheeled Bins                            ,794.00,06/01/2016,R,PLASTIC OMNIUM URBAN SYSTEMS  
378,Cultural Env Reg&Plan Services,Recycling (Collection),Recycling Activities,G00640,Supplies & Services           ,Equip Furniture/Materials     ,DA32,Wheeled Bins                            ,"2,945.20",06/01/2016,R,PLASTIC OMNIUM URBAN SYSTEMS  
379,Cultural Env Reg&Plan Services,Recycling (Collection),Garden Waste Service,G00647,Third Party Payments          ,Private Contractors           ,EH61,Green Waste Disposal                    ,"4,902.15",23/12/2015,R,KINGSTON CORPORATION          
380,Cultural Env Reg&Plan Services,Recycling (Collection),Food Waste Service,G00648,Third Party Payments          ,Private Contractors           ,EH19,SLWP C3 FOOD WASTE HAULAGE              ,"2,461.28",23/12/2015,R,KINGSTON CORPORATION          
381,Cultural Env Reg&Plan Services,Recycling (Collection),Food Waste Service,G00648,Third Party Payments          ,Private Contractors           ,EH19,SLWP C3 FOOD WASTE HAULAGE              ,"3,131.40",23/12/2015,R,KINGSTON CORPORATION          
382,Cultural Env Reg&Plan Services,Recycling (Collection),Food Waste Service,G00648,Supplies & Services           ,Equip Furniture/Materials     ,DA31,Waste Sacks & Bags                      ,"2,403.65",21/12/2015,R,SPHERE PROFFESSIONAL          
383,Cultural Env Reg&Plan Services,Recycling (Collection),Food Waste Service,G00648,Supplies & Services           ,Equip Furniture/Materials     ,DA31,Waste Sacks & Bags                      ,"15,715.52",23/12/2015,R,SPHERE PROFFESSIONAL          
384,Cultural Env Reg&Plan Services,Household Waste Collection,Refuse Collection (Operations),G00661,Supplies & Services           ,Equip Furniture/Materials     ,DA32,Wheeled Bins                            ,"2,945.20",06/01/2016,R,PLASTIC OMNIUM URBAN SYSTEMS  
385,Cultural Env Reg&Plan Services,Trade Waste Collection,Commercial Waste,G00663,Supplies & Services           ,Equip Furniture/Materials     ,DA31,Waste Sacks & Bags                      ,"1,965.74",11/01/2016,R,IMPERIAL POLYTHENE PRODUCTS LT
386,Cultural Env Reg&Plan Services,Trade Waste Collection,Commercial Waste,G00663,Third Party Payments          ,Private Contractors           ,EH08,SLWP C1 Haulage Dry Recyclable          ,"1,254.05",23/12/2015,R,KINGSTON CORPORATION          
387,Cultural Env Reg&Plan Services,Trade Waste Collection,Commercial Waste,G00663,Third Party Payments          ,Private Contractors           ,EH04,C1 VIRIDOR SLWP LANDFILL CONTRACT       ,"40,277.60",23/12/2015,R,KINGSTON CORPORATION          
388,Cultural Env Reg&Plan Services,Trade Waste Collection,Commercial Waste,G00663,Supplies & Services           ,Equip Furniture/Materials     ,DA32,Wheeled Bins                            ,"2,465.00",01/12/2015,R,SPIDER UK LTD                 
389,Cultural Env Reg&Plan Services,Street Clean - Not highways,Waste Enforcement,G00680,Supplies & Services           ,Comms and Computing           ,DG14,Telephones - Mobile                     ,558.00,06/01/2016,R,EVERYTHING EVERYWHERE         
390,Cultural Env Reg&Plan Services,Street Clean - Not highways,Waste Enforcement,G00680,Third Party Payments          ,Private Contractors           ,EH02,Miscellaneous Hired Services            ,"12,836.61",29/12/2015,R,KINGDOM SECURITY              
391,Cultural Env Reg&Plan Services,Street Clean - Not highways,Waste Enforcement,G00680,Third Party Payments          ,Private Contractors           ,EH02,Miscellaneous Hired Services            ,"14,020.29",29/11/2015,R,KINGDOM SECURITY              
392,Cultural Env Reg&Plan Services,Inspect/Enforce (Consumer P),Trading Standards,G00690,Oth Grants Reimbmnts/Contribs ,Cost recharges to other bodies,QC10,Recovery of Costs (X)                   ,"11,845.00",04/01/2016,R,LONDON BOROUGH OF SUTTON      
393,Cultural Env Reg&Plan Services,Inspect/Enforce (Consumer P),Trading Standards,G00690,Oth Grants Reimbmnts/Contribs ,Cost recharges to other bodies,QC10,Recovery of Costs (X)                   ,"13,640.63",04/01/2016,R,LONDON BOROUGH OF SUTTON      
394,Cultural Env Reg&Plan Services,Inspect/Enforce (Consumer P),Trading Standards,G00690,Employees                     ,Indirect Employee Expenses    ,AB02,Recruitment Adverts                     ,840.63,21/01/2016,R,PENNA COMMUNICATIONS (NO 2 A/C
395,Cultural Env Reg&Plan Services,Food Safety,Health & Safety,G00697,Supplies & Services           ,Grants and Subscriptions      ,DJ04,Subscriptions                           ,850.00,21/01/2016,R,CHARTERED INST.OF ENVIR.HEALTH
396,Cultural Env Reg&Plan Services,Food Safety,Health & Safety,G00697,Employees                     ,Indirect Employee Expenses    ,AB02,Recruitment Adverts                     ,743.75,21/01/2016,R,PENNA COMMUNICATIONS (NO 2 A/C
397,Cultural Env Reg&Plan Services,Food Safety,Health & Safety,G00697,Supplies & Services           ,Equip Furniture/Materials     ,DA09,Equip-Purchases                         ,750.00,20/01/2016,R,TMS EUROPE LTD                
398,Cultural Env Reg&Plan Services,Housing Standards,AIR QUALITY GRANT (DEFRA) MB,G00732,Supplies & Services           ,Equip Furniture/Materials     ,DA09,Equip-Purchases                         ,"1,625.00",20/01/2016,R,DIVA CREATIVE LTD             
399,Cultural Env Reg&Plan Services,Mgt & Support (Env),Waste Management,G00900,Premises Related Expenditure  ,Water Services                ,BE01,Use of Water (Metered)                  ,679.43,30/12/2015,R,SUTTON & EAST SURREY WATER PLC
400,Central Services,SupS Env and Regen,LBR - Env. Health (Commercial)          ,G01002,Third Party Payments          ,Private Contractors           ,EH10,Contract Payments                       ,"1,205.00",31/12/2015,R,PUBLIC ANALYST SCIENTIFIC SER.
401,Central Services,SupS Env and Regen,LBR - Pollution                         ,G01004,Supplies & Services           ,Equip Furniture/Materials     ,DA09,Equip-Purchases                         ,"3,250.00",11/09/2015,R,ENVIRO TECHNOLOGY SERVICES PLC
402,Central Services,SupS Env and Regen,LBR - Pollution                         ,G01004,Supplies & Services           ,Equip Furniture/Materials     ,DA09,Equip-Purchases                         ,"3,250.00",07/12/2015,R,ENVIRO TECHNOLOGY SERVICES PLC
403,Central Services,SupS Env and Regen,LBR - Pollution                         ,G01004,Supplies & Services           ,Equip Furniture/Materials     ,DA02,Op. Leasing Equipment                   ,"1,557.83",28/12/2015,R,MARTIN CRANFIELD ASSOCIATES LT
404,Central Services,SupS Env and Regen,LBR - Pollution                         ,G01004,Supplies & Services           ,Services                      ,DF03,Consultants                             ,"4,000.00",22/10/2015,R,STM ENVIRONMENTAL CONSULTANTS 
405,Central Services,SupS Env and Regen,LBR - Pollution                         ,G01004,Supplies & Services           ,Services                      ,DF03,Consultants                             ,"4,000.00",22/10/2015,R,STM ENVIRONMENTAL CONSULTANTS 
406,Central Services,SupS Env and Regen,LBR - Pollution                         ,G01004,Supplies & Services           ,Services                      ,DF03,Consultants                             ,"4,000.00",22/10/2015,R,STM ENVIRONMENTAL CONSULTANTS 
407,Central Services,Grants - Voluntary Groups,Vestry Hall,G19290,Premises Related Expenditure  ,Cleaning and Domestic Supplies,BH03,Cleaning Services                       ,"1,849.23",31/12/2015,R,BIRKIN CLEANING SERVICES LTD  
408,Central Services,Grants - Voluntary Groups,Vestry Hall,G19290,Premises Related Expenditure  ,Energy Costs                  ,BB03,Gas (incl. Butane)                      ,557.61,11/01/2016,R,GAZPROM MARKETING&TRADING LTD 
409,Central Services,Grants - Voluntary Groups,Vestry Hall,G19290,Premises Related Expenditure  ,RepairsAlterations&MtceOfBldgs,BA01,DDM - General Building                  ,"3,163.88",10/12/2015,R,NETWORK BLINDS LIMITED        
410,Central Services,Grants - Voluntary Groups,Vestry Hall,G19290,Employees                     ,Direct Employee Expenses      ,AA17,Agency Staff & Casual Paymts            ,625.62,30/11/2015,R,REDACTED
411,Central Services,Grants - Voluntary Groups,Vestry Hall,G19290,Employees                     ,Direct Employee Expenses      ,AA17,Agency Staff & Casual Paymts            ,"5,347.61",10/12/2015,R,REDACTED
412,Central Services,Grants - Voluntary Groups,Vestry Hall,G19290,Supplies & Services           ,Equip Furniture/Materials     ,DA09,Equip-Purchases                         ,924.00,07/01/2016,R,UNIQUE OFFICE SOLUTIONS LTD   
413,Highways & Transport Services,Safe routes inc schl x patrol,School & Road Safety TFL                ,H01083,Supplies & Services           ,Equip Furniture/Materials     ,DA09,Equip-Purchases                         ,"1,537.50",21/12/2015,R,BOURNE INTERNATIONAL LTD      
414,Highways & Transport Services,Safe routes inc schl x patrol,School & Road Safety TFL                ,H01083,Supplies & Services           ,Equip Furniture/Materials     ,DA04,Materials                               ,"15,534.00",11/09/2015,R,LIVING STREETS SERVICES LTD   
415,Cultural Env Reg&Plan Services,DC Advice Apps & Reg not split,Development Control,H01130,Supplies & Services           ,Services                      ,DF02,Misc Advertising/Publicity              ,744.96,31/12/2015,R,NEWSQUEST (LONDON)LTD         
416,Cultural Env Reg&Plan Services,DC Advice Apps & Reg not split,Development Control,H01130,Supplies & Services           ,Grants and Subscriptions      ,DJ04,Subscriptions                           ,"1,530.00",02/12/2015,R,THOMSON REUTERS               
417,Cultural Env Reg&Plan Services,Planning Policy not split,REGENERATION & INVESTMENT,H01174,Third Party Payments          ,Private Contractors           ,EH10,Contract Payments                       ,560.00,12/01/2016,R,DESIGNED BY GOOD PEOPLE       
418,Cultural Env Reg&Plan Services,Planning Policy not split,HPDG - Spatial Policy,H01183,Premises Related Expenditure  ,Rents                         ,BC03,Room/venue rental hire                  ,500.00,20/01/2016,R,ST MARKS COF E ACADEMY        
419,Cultural Env Reg&Plan Services,Planning Policy not split,HPDG - Spatial Policy,H01183,Premises Related Expenditure  ,Rents                         ,BC03,Room/venue rental hire                  ,"2,730.00",20/01/2016,R,ST MARKS COF E ACADEMY        
420,Cultural Env Reg&Plan Services,Planning Policy not split,MAYOR'S AIR QUALITY                     ,H01187,Third Party Payments          ,Private Contractors           ,EH10,Contract Payments                       ,"1,751.74",28/01/2016,R,FORESTDALE BUSINESS SERVICES  
421,Cultural Env Reg&Plan Services,Economic Dev (Not separated),NHB-Morden Shopping Parades             ,H01190,Supplies & Services           ,Services                      ,DF03,Consultants                             ,925.00,23/12/2015,R,URBAN ENTERPRISE NETWORK      
422,Cultural Env Reg&Plan Services,Economic Dev (Not separated),NHB-Morden Shopping Parades             ,H01190,Supplies & Services           ,Services                      ,DF03,Consultants                             ,975.00,14/01/2016,R,URBAN ENTERPRISE NETWORK      
423,Cultural Env Reg&Plan Services,Economic Dev (Not separated),NHB-Morden Shopping Parades             ,H01190,Supplies & Services           ,Services                      ,DF03,Consultants                             ,975.00,07/01/2016,R,URBAN ENTERPRISE NETWORK      
424,Cultural Env Reg&Plan Services,Economic Dev (Not separated),NHB-Morden Shopping Parades             ,H01190,Supplies & Services           ,Services                      ,DF03,Consultants                             ,"1,250.00",28/01/2016,R,URBAN ENTERPRISE NETWORK      
425,Cultural Env Reg&Plan Services,Economic Dev (Not separated),NHB-Morden Shopping Parades             ,H01190,Supplies & Services           ,Services                      ,DF03,Consultants                             ,"1,300.00",21/06/2016,R,URBAN ENTERPRISE NETWORK      
426,Cultural Env Reg&Plan Services,Economic Dev (Not separated),(LABGI)-BUSINESS SUPPORT,H01210,Supplies & Services           ,Grants and Subscriptions      ,DJ01,Grants                                  ,900.00,06/01/2016,R,REDACTED
427,Cultural Env Reg&Plan Services,Economic Dev (Not separated),TOWN CENTRE MNGT-WIMBLEDON,H01227,Supplies & Services           ,Services                      ,DF57,Consulting Engineers Fees               ,"3,350.00",21/08/2015,R,DLA PIPER UK                  
428,Cultural Env Reg&Plan Services,Economic Dev (Not separated),TOWN CENTRE MNGT-WIMBLEDON,H01227,Third Party Payments          ,Other Local Authorities       ,EB01,Payments to OLAs                        ,"17,000.00",08/12/2015,R,TRANSPORT FOR LONDON          
429,Cultural Env Reg&Plan Services,Economic Dev (Not separated),Capt Ambition-Suburban Opprt Z,H01231,Supplies & Services           ,Expenses                      ,DH14,Prizes and Awards                       ,"1,500.00",21/12/2015,R,EVENTS AND PR LIMITED         
430,Cultural Env Reg&Plan Services,Economic Dev (Not separated),Capt Ambition-Suburban Opprt Z,H01231,Supplies & Services           ,Expenses                      ,DH14,Prizes and Awards                       ,"12,900.00",21/12/2015,R,EVENTS AND PR LIMITED         
431,Cultural Env Reg&Plan Services,Economic Dev (Not separated),Capt Ambition-Suburban Opprt Z,H01231,Supplies & Services           ,Grants and Subscriptions      ,DJ01,Grants                                  ,900.00,16/12/2015,R,REDACTED
432,Cultural Env Reg&Plan Services,Economic Dev (Not separated),Capt Ambition-Suburban Opprt Z,H01231,Supplies & Services           ,Grants and Subscriptions      ,DJ01,Grants                                  ,"5,350.00",19/01/2016,R,REDACTED
433,Cultural Env Reg&Plan Services,Economic Dev (Not separated),Capt Ambition-Suburban Opprt Z,H01231,Supplies & Services           ,Grants and Subscriptions      ,DJ01,Grants                                  ,"2,959.20",18/01/2016,R,SOUTH LONDON STATIONERS       
434,Cultural Env Reg&Plan Services,Economic Dev (Not separated),Capt Ambition-Suburban Opprt Z,H01231,Supplies & Services           ,Grants and Subscriptions      ,DJ01,Grants                                  ,"2,463.84",21/01/2016,R,TAX ASSIST ACCOUNTANTS        
435,CS -Oth Operating Inc & Expend,T/A Vehicle Maintenance etc,Transport-Contract Hire,J01374,Transport Related Expenditure ,Contract Hire and Op Leasing  ,CC67,C&H - ADULTS CABS (RK08)                ,568.00,31/12/2015,R,A STAR TRANSPORT LIMITED      
436,CS -Oth Operating Inc & Expend,T/A Vehicle Maintenance etc,Transport-Contract Hire,J01374,Transport Related Expenditure ,Contract Hire and Op Leasing  ,CC67,C&H - ADULTS CABS (RK08)                ,768.00,31/12/2015,R,A STAR TRANSPORT LIMITED      
437,CS -Oth Operating Inc & Expend,T/A Vehicle Maintenance etc,Transport-Contract Hire,J01374,Transport Related Expenditure ,Contract Hire and Op Leasing  ,CC64,CSF - SEN CABS (RK02)                   ,990.00,31/12/2015,R,A STAR TRANSPORT LIMITED      
438,CS -Oth Operating Inc & Expend,T/A Vehicle Maintenance etc,Transport-Contract Hire,J01374,Transport Related Expenditure ,Contract Hire and Op Leasing  ,CC64,CSF - SEN CABS (RK02)                   ,"1,456.00",31/12/2015,R,A STAR TRANSPORT LIMITED      
439,CS -Oth Operating Inc & Expend,T/A Vehicle Maintenance etc,Transport-Contract Hire,J01374,Transport Related Expenditure ,Contract Hire and Op Leasing  ,CC53,Plant Hire for MRCS                     ,816.00,31/12/2015,R,B&T PLANT HIRE LTD            
440,CS -Oth Operating Inc & Expend,T/A Vehicle Maintenance etc,Transport-Contract Hire,J01374,Transport Related Expenditure ,Contract Hire and Op Leasing  ,CC64,CSF - SEN CABS (RK02)                   ,864.00,31/12/2015,R,BARCLAYS ASSET & SALES FINANCE
441,CS -Oth Operating Inc & Expend,T/A Vehicle Maintenance etc,Transport-Contract Hire,J01374,Transport Related Expenditure ,Contract Hire and Op Leasing  ,CC64,CSF - SEN CABS (RK02)                   ,"1,092.00",31/12/2015,R,BARCLAYS ASSET & SALES FINANCE
442,CS -Oth Operating Inc & Expend,T/A Vehicle Maintenance etc,Transport-Contract Hire,J01374,Transport Related Expenditure ,Contract Hire and Op Leasing  ,CC64,CSF - SEN CABS (RK02)                   ,"1,248.00",31/12/2015,R,BARCLAYS ASSET & SALES FINANCE
443,CS -Oth Operating Inc & Expend,T/A Vehicle Maintenance etc,Transport-Contract Hire,J01374,Transport Related Expenditure ,Contract Hire and Op Leasing  ,CC64,CSF - SEN CABS (RK02)                   ,"1,344.00",31/12/2015,R,BARCLAYS ASSET & SALES FINANCE
444,CS -Oth Operating Inc & Expend,T/A Vehicle Maintenance etc,Transport-Contract Hire,J01374,Transport Related Expenditure ,Contract Hire and Op Leasing  ,CC64,CSF - SEN CABS (RK02)                   ,"1,495.00",31/12/2015,R,BARCLAYS ASSET & SALES FINANCE
445,CS -Oth Operating Inc & Expend,T/A Vehicle Maintenance etc,Transport-Contract Hire,J01374,Transport Related Expenditure ,Contract Hire and Op Leasing  ,CC64,CSF - SEN CABS (RK02)                   ,"1,610.00",31/12/2015,R,BARCLAYS ASSET & SALES FINANCE
446,CS -Oth Operating Inc & Expend,T/A Vehicle Maintenance etc,Transport-Contract Hire,J01374,Transport Related Expenditure ,Contract Hire and Op Leasing  ,CC64,CSF - SEN CABS (RK02)                   ,"2,100.00",31/12/2015,R,BARCLAYS ASSET & SALES FINANCE
447,CS -Oth Operating Inc & Expend,T/A Vehicle Maintenance etc,Transport-Contract Hire,J01374,Transport Related Expenditure ,Contract Hire and Op Leasing  ,CC64,CSF - SEN CABS (RK02)                   ,"2,210.00",31/12/2015,R,BARCLAYS ASSET & SALES FINANCE
448,CS -Oth Operating Inc & Expend,T/A Vehicle Maintenance etc,Transport-Contract Hire,J01374,Transport Related Expenditure ,Contract Hire and Op Leasing  ,CC64,CSF - SEN CABS (RK02)                   ,"2,210.00",31/12/2015,R,BARCLAYS ASSET & SALES FINANCE
449,CS -Oth Operating Inc & Expend,T/A Vehicle Maintenance etc,Transport-Contract Hire,J01374,Transport Related Expenditure ,Contract Hire and Op Leasing  ,CC64,CSF - SEN CABS (RK02)                   ,"2,340.00",31/12/2015,R,BARCLAYS ASSET & SALES FINANCE
450,CS -Oth Operating Inc & Expend,T/A Vehicle Maintenance etc,Transport-Contract Hire,J01374,Transport Related Expenditure ,Contract Hire and Op Leasing  ,CC64,CSF - SEN CABS (RK02)                   ,"2,470.00",31/12/2015,R,BARCLAYS ASSET & SALES FINANCE
451,CS -Oth Operating Inc & Expend,T/A Vehicle Maintenance etc,Transport-Contract Hire,J01374,Transport Related Expenditure ,Contract Hire and Op Leasing  ,CC64,CSF - SEN CABS (RK02)                   ,596.00,30/12/2015,R,BRUNSWICK CARS LTD            
452,CS -Oth Operating Inc & Expend,T/A Vehicle Maintenance etc,Transport-Contract Hire,J01374,Transport Related Expenditure ,Contract Hire and Op Leasing  ,CC67,C&H - ADULTS CABS (RK08)                ,891.00,30/12/2015,R,BRUNSWICK CARS LTD            
453,CS -Oth Operating Inc & Expend,T/A Vehicle Maintenance etc,Transport-Contract Hire,J01374,Transport Related Expenditure ,Contract Hire and Op Leasing  ,CC67,C&H - ADULTS CABS (RK08)                ,900.00,30/12/2015,R,BRUNSWICK CARS LTD            
454,CS -Oth Operating Inc & Expend,T/A Vehicle Maintenance etc,Transport-Contract Hire,J01374,Transport Related Expenditure ,Contract Hire and Op Leasing  ,CC64,CSF - SEN CABS (RK02)                   ,952.00,30/12/2015,R,BRUNSWICK CARS LTD            
455,CS -Oth Operating Inc & Expend,T/A Vehicle Maintenance etc,Transport-Contract Hire,J01374,Transport Related Expenditure ,Contract Hire and Op Leasing  ,CC64,CSF - SEN CABS (RK02)                   ,"1,056.00",30/12/2015,R,BRUNSWICK CARS LTD            
456,CS -Oth Operating Inc & Expend,T/A Vehicle Maintenance etc,Transport-Contract Hire,J01374,Transport Related Expenditure ,Contract Hire and Op Leasing  ,CC64,CSF - SEN CABS (RK02)                   ,"1,260.00",30/12/2015,R,BRUNSWICK CARS LTD            
457,CS -Oth Operating Inc & Expend,T/A Vehicle Maintenance etc,Transport-Contract Hire,J01374,Transport Related Expenditure ,Contract Hire and Op Leasing  ,CC64,CSF - SEN CABS (RK02)                   ,"1,470.00",30/12/2015,R,BRUNSWICK CARS LTD            
458,CS -Oth Operating Inc & Expend,T/A Vehicle Maintenance etc,Transport-Contract Hire,J01374,Transport Related Expenditure ,Contract Hire and Op Leasing  ,CC64,CSF - SEN CABS (RK02)                   ,"1,946.00",30/12/2015,R,BRUNSWICK CARS LTD            
459,CS -Oth Operating Inc & Expend,T/A Vehicle Maintenance etc,Transport-Contract Hire,J01374,Transport Related Expenditure ,Contract Hire and Op Leasing  ,CC64,CSF - SEN CABS (RK02)                   ,"2,002.00",30/12/2015,R,BRUNSWICK CARS LTD            
460,CS -Oth Operating Inc & Expend,T/A Vehicle Maintenance etc,Transport-Contract Hire,J01374,Transport Related Expenditure ,Contract Hire and Op Leasing  ,CC64,CSF - SEN CABS (RK02)                   ,"2,758.00",30/12/2015,R,BRUNSWICK CARS LTD            
461,CS -Oth Operating Inc & Expend,T/A Vehicle Maintenance etc,Transport-Contract Hire,J01374,Transport Related Expenditure ,Contract Hire and Op Leasing  ,CC53,Plant Hire for MRCS                     ,"1,500.00",14/12/2015,R,C P DAVIDSON & SONS LTD       
462,CS -Oth Operating Inc & Expend,T/A Vehicle Maintenance etc,Transport-Contract Hire,J01374,Transport Related Expenditure ,Contract Hire and Op Leasing  ,CC67,C&H - ADULTS CABS (RK08)                ,517.00,31/12/2015,R,CAPITAL CARS                  
463,CS -Oth Operating Inc & Expend,T/A Vehicle Maintenance etc,Transport-Contract Hire,J01374,Transport Related Expenditure ,Contract Hire and Op Leasing  ,CC64,CSF - SEN CABS (RK02)                   ,832.00,31/12/2015,R,CAPITAL CARS                  
464,CS -Oth Operating Inc & Expend,T/A Vehicle Maintenance etc,Transport-Contract Hire,J01374,Transport Related Expenditure ,Contract Hire and Op Leasing  ,CC67,C&H - ADULTS CABS (RK08)                ,944.00,31/12/2015,R,CAPITAL CARS                  
465,CS -Oth Operating Inc & Expend,T/A Vehicle Maintenance etc,Transport-Contract Hire,J01374,Transport Related Expenditure ,Contract Hire and Op Leasing  ,CC64,CSF - SEN CABS (RK02)                   ,"1,007.00",31/12/2015,R,CAPITAL CARS                  
466,CS -Oth Operating Inc & Expend,T/A Vehicle Maintenance etc,Transport-Contract Hire,J01374,Transport Related Expenditure ,Contract Hire and Op Leasing  ,CC64,CSF - SEN CABS (RK02)                   ,"1,092.00",31/12/2015,R,CAPITAL CARS                  
467,CS -Oth Operating Inc & Expend,T/A Vehicle Maintenance etc,Transport-Contract Hire,J01374,Transport Related Expenditure ,Contract Hire and Op Leasing  ,CC64,CSF - SEN CABS (RK02)                   ,"1,092.00",31/12/2015,R,CAPITAL CARS                  
468,CS -Oth Operating Inc & Expend,T/A Vehicle Maintenance etc,Transport-Contract Hire,J01374,Transport Related Expenditure ,Contract Hire and Op Leasing  ,CC67,C&H - ADULTS CABS (RK08)                ,"1,092.00",31/12/2015,R,CAPITAL CARS                  
469,CS -Oth Operating Inc & Expend,T/A Vehicle Maintenance etc,Transport-Contract Hire,J01374,Transport Related Expenditure ,Contract Hire and Op Leasing  ,CC64,CSF - SEN CABS (RK02)                   ,"1,144.00",31/12/2015,R,CAPITAL CARS                  
470,CS -Oth Operating Inc & Expend,T/A Vehicle Maintenance etc,Transport-Contract Hire,J01374,Transport Related Expenditure ,Contract Hire and Op Leasing  ,CC64,CSF - SEN CABS (RK02)                   ,"1,287.00",31/10/2015,R,CAPITAL CARS                  
471,CS -Oth Operating Inc & Expend,T/A Vehicle Maintenance etc,Transport-Contract Hire,J01374,Transport Related Expenditure ,Contract Hire and Op Leasing  ,CC64,CSF - SEN CABS (RK02)                   ,"1,316.00",31/12/2015,R,CAPITAL CARS                  
472,CS -Oth Operating Inc & Expend,T/A Vehicle Maintenance etc,Transport-Contract Hire,J01374,Transport Related Expenditure ,Contract Hire and Op Leasing  ,CC64,CSF - SEN CABS (RK02)                   ,"1,344.00",31/12/2015,R,CAPITAL CARS                  
473,CS -Oth Operating Inc & Expend,T/A Vehicle Maintenance etc,Transport-Contract Hire,J01374,Transport Related Expenditure ,Contract Hire and Op Leasing  ,CC64,CSF - SEN CABS (RK02)                   ,"1,456.00",31/12/2015,R,CAPITAL CARS                  
474,CS -Oth Operating Inc & Expend,T/A Vehicle Maintenance etc,Transport-Contract Hire,J01374,Transport Related Expenditure ,Contract Hire and Op Leasing  ,CC64,CSF - SEN CABS (RK02)                   ,"1,456.00",31/12/2015,R,CAPITAL CARS                  
475,CS -Oth Operating Inc & Expend,T/A Vehicle Maintenance etc,Transport-Contract Hire,J01374,Transport Related Expenditure ,Contract Hire and Op Leasing  ,CC64,CSF - SEN CABS (RK02)                   ,"1,596.00",31/12/2015,R,CAPITAL CARS                  
476,CS -Oth Operating Inc & Expend,T/A Vehicle Maintenance etc,Transport-Contract Hire,J01374,Transport Related Expenditure ,Contract Hire and Op Leasing  ,CC64,CSF - SEN CABS (RK02)                   ,"1,728.00",31/12/2015,R,CAPITAL CARS                  
477,CS -Oth Operating Inc & Expend,T/A Vehicle Maintenance etc,Transport-Contract Hire,J01374,Transport Related Expenditure ,Contract Hire and Op Leasing  ,CC64,CSF - SEN CABS (RK02)                   ,"1,820.00",31/12/2015,R,CAPITAL CARS                  
478,CS -Oth Operating Inc & Expend,T/A Vehicle Maintenance etc,Transport-Contract Hire,J01374,Transport Related Expenditure ,Contract Hire and Op Leasing  ,CC64,CSF - SEN CABS (RK02)                   ,"1,820.00",31/12/2015,R,CAPITAL CARS                  
479,CS -Oth Operating Inc & Expend,T/A Vehicle Maintenance etc,Transport-Contract Hire,J01374,Transport Related Expenditure ,Contract Hire and Op Leasing  ,CC64,CSF - SEN CABS (RK02)                   ,"1,904.00",31/12/2015,R,CAPITAL CARS                  
480,CS -Oth Operating Inc & Expend,T/A Vehicle Maintenance etc,Transport-Contract Hire,J01374,Transport Related Expenditure ,Contract Hire and Op Leasing  ,CC64,CSF - SEN CABS (RK02)                   ,"1,904.00",31/12/2015,R,CAPITAL CARS                  
481,CS -Oth Operating Inc & Expend,T/A Vehicle Maintenance etc,Transport-Contract Hire,J01374,Transport Related Expenditure ,Contract Hire and Op Leasing  ,CC66,CSF - CHILDREN CABS (RK09)              ,544.00,02/01/2016,R,CHEAM STATION CARS            
482,CS -Oth Operating Inc & Expend,T/A Vehicle Maintenance etc,Transport-Contract Hire,J01374,Transport Related Expenditure ,Contract Hire and Op Leasing  ,CC64,CSF - SEN CABS (RK02)                   ,608.00,02/01/2016,R,CHEAM STATION CARS            
483,CS -Oth Operating Inc & Expend,T/A Vehicle Maintenance etc,Transport-Contract Hire,J01374,Transport Related Expenditure ,Contract Hire and Op Leasing  ,CC64,CSF - SEN CABS (RK02)                   ,700.00,02/01/2016,R,CHEAM STATION CARS            
484,CS -Oth Operating Inc & Expend,T/A Vehicle Maintenance etc,Transport-Contract Hire,J01374,Transport Related Expenditure ,Contract Hire and Op Leasing  ,CC64,CSF - SEN CABS (RK02)                   ,700.00,02/01/2016,R,CHEAM STATION CARS            
485,CS -Oth Operating Inc & Expend,T/A Vehicle Maintenance etc,Transport-Contract Hire,J01374,Transport Related Expenditure ,Contract Hire and Op Leasing  ,CC64,CSF - SEN CABS (RK02)                   ,780.00,02/01/2016,R,CHEAM STATION CARS            
486,CS -Oth Operating Inc & Expend,T/A Vehicle Maintenance etc,Transport-Contract Hire,J01374,Transport Related Expenditure ,Contract Hire and Op Leasing  ,CC64,CSF - SEN CABS (RK02)                   ,840.00,02/01/2016,R,CHEAM STATION CARS            
487,CS -Oth Operating Inc & Expend,T/A Vehicle Maintenance etc,Transport-Contract Hire,J01374,Transport Related Expenditure ,Contract Hire and Op Leasing  ,CC67,C&H - ADULTS CABS (RK08)                ,"1,024.00",02/01/2016,R,CHEAM STATION CARS            
488,CS -Oth Operating Inc & Expend,T/A Vehicle Maintenance etc,Transport-Contract Hire,J01374,Transport Related Expenditure ,Contract Hire and Op Leasing  ,CC64,CSF - SEN CABS (RK02)                   ,"1,456.00",02/01/2016,R,CHEAM STATION CARS            
489,CS -Oth Operating Inc & Expend,T/A Vehicle Maintenance etc,Transport-Contract Hire,J01374,Transport Related Expenditure ,Contract Hire and Op Leasing  ,CC53,Plant Hire for MRCS                     ,"3,795.00",31/12/2015,R,COLLETT TRANSPORT SERVICES    
490,CS -Oth Operating Inc & Expend,T/A Vehicle Maintenance etc,Transport-Contract Hire,J01374,Transport Related Expenditure ,Contract Hire and Op Leasing  ,CC53,Plant Hire for MRCS                     ,"3,910.00",31/12/2015,R,COLLETT TRANSPORT SERVICES    
491,CS -Oth Operating Inc & Expend,T/A Vehicle Maintenance etc,Transport-Contract Hire,J01374,Transport Related Expenditure ,Contract Hire and Op Leasing  ,CC53,Plant Hire for MRCS                     ,815.88,20/01/2016,R,ECON ENGINEERING LTD          
492,CS -Oth Operating Inc & Expend,T/A Vehicle Maintenance etc,Transport-Contract Hire,J01374,Transport Related Expenditure ,Contract Hire and Op Leasing  ,CC53,Plant Hire for MRCS                     ,"2,062.78",20/01/2016,R,ECON ENGINEERING LTD          
493,CS -Oth Operating Inc & Expend,T/A Vehicle Maintenance etc,Transport-Contract Hire,J01374,Transport Related Expenditure ,Direct Transport Costs        ,CA01,Petrol Derv & Oil                       ,"22,177.22",11/01/2016,R,EMO OILS LTD                  
494,CS -Oth Operating Inc & Expend,T/A Vehicle Maintenance etc,Transport-Contract Hire,J01374,Transport Related Expenditure ,Direct Transport Costs        ,CA01,Petrol Derv & Oil                       ,"28,226.97",17/12/2015,R,EMO OILS LTD                  
495,CS -Oth Operating Inc & Expend,T/A Vehicle Maintenance etc,Transport-Contract Hire,J01374,Transport Related Expenditure ,Contract Hire and Op Leasing  ,CC59,HIRING TRANSPORT OPERATIONS             ,"1,518.00",31/12/2015,R,ENTERPRISE RENT-A-CAR UK LTD  
496,CS -Oth Operating Inc & Expend,T/A Vehicle Maintenance etc,Transport-Contract Hire,J01374,Transport Related Expenditure ,Contract Hire and Op Leasing  ,CC59,HIRING TRANSPORT OPERATIONS             ,"1,518.00",31/12/2015,R,ENTERPRISE RENT-A-CAR UK LTD  
497,CS -Oth Operating Inc & Expend,T/A Vehicle Maintenance etc,Transport-Contract Hire,J01374,Transport Related Expenditure ,Contract Hire and Op Leasing  ,CC59,HIRING TRANSPORT OPERATIONS             ,"1,518.00",31/12/2015,R,ENTERPRISE RENT-A-CAR UK LTD  
498,CS -Oth Operating Inc & Expend,T/A Vehicle Maintenance etc,Transport-Contract Hire,J01374,Transport Related Expenditure ,Contract Hire and Op Leasing  ,CC64,CSF - SEN CABS (RK02)                   ,763.67,31/12/2015,R,GALPINS SERVICE               
499,CS -Oth Operating Inc & Expend,T/A Vehicle Maintenance etc,Transport-Contract Hire,J01374,Transport Related Expenditure ,Contract Hire and Op Leasing  ,CC64,CSF - SEN CABS (RK02)                   ,837.00,31/12/2015,R,GALPINS SERVICE               
500,CS -Oth Operating Inc & Expend,T/A Vehicle Maintenance etc,Transport-Contract Hire,J01374,Transport Related Expenditure ,Contract Hire and Op Leasing  ,CC53,Plant Hire for MRCS                     ,745.00,11/01/2016,R,GULLIVER'S TRUCK HIRE LTD.    
501,CS -Oth Operating Inc & Expend,T/A Vehicle Maintenance etc,Transport-Contract Hire,J01374,Transport Related Expenditure ,Contract Hire and Op Leasing  ,CC53,Plant Hire for MRCS                     ,745.00,19/01/2016,R,GULLIVER'S TRUCK HIRE LTD.    
502,CS -Oth Operating Inc & Expend,T/A Vehicle Maintenance etc,Transport-Contract Hire,J01374,Transport Related Expenditure ,Contract Hire and Op Leasing  ,CC53,Plant Hire for MRCS                     ,745.00,29/12/2015,R,GULLIVER'S TRUCK HIRE LTD.    
503,CS -Oth Operating Inc & Expend,T/A Vehicle Maintenance etc,Transport-Contract Hire,J01374,Transport Related Expenditure ,Contract Hire and Op Leasing  ,CC53,Plant Hire for MRCS                     ,745.00,04/01/2016,R,GULLIVER'S TRUCK HIRE LTD.    
504,CS -Oth Operating Inc & Expend,T/A Vehicle Maintenance etc,Transport-Contract Hire,J01374,Transport Related Expenditure ,Contract Hire and Op Leasing  ,CC53,Plant Hire for MRCS                     ,875.00,19/01/2016,R,GULLIVER'S TRUCK HIRE LTD.    
505,CS -Oth Operating Inc & Expend,T/A Vehicle Maintenance etc,Transport-Contract Hire,J01374,Transport Related Expenditure ,Contract Hire and Op Leasing  ,CC53,Plant Hire for MRCS                     ,875.00,11/01/2016,R,GULLIVER'S TRUCK HIRE LTD.    
506,CS -Oth Operating Inc & Expend,T/A Vehicle Maintenance etc,Transport-Contract Hire,J01374,Transport Related Expenditure ,Contract Hire and Op Leasing  ,CC53,Plant Hire for MRCS                     ,875.00,29/12/2015,R,GULLIVER'S TRUCK HIRE LTD.    
507,CS -Oth Operating Inc & Expend,T/A Vehicle Maintenance etc,Transport-Contract Hire,J01374,Transport Related Expenditure ,Contract Hire and Op Leasing  ,CC53,Plant Hire for MRCS                     ,875.00,04/01/2016,R,GULLIVER'S TRUCK HIRE LTD.    
508,CS -Oth Operating Inc & Expend,T/A Vehicle Maintenance etc,Transport-Contract Hire,J01374,Transport Related Expenditure ,Contract Hire and Op Leasing  ,CC53,Plant Hire for MRCS                     ,"5,060.00",31/12/2015,R,JOHN HANLON & CO LTD          
509,CS -Oth Operating Inc & Expend,T/A Vehicle Maintenance etc,Transport-Contract Hire,J01374,Transport Related Expenditure ,Contract Hire and Op Leasing  ,CC64,CSF - SEN CABS (RK02)                   ,"1,344.00",31/12/2015,R,KENDALL CARS                  
510,CS -Oth Operating Inc & Expend,T/A Vehicle Maintenance etc,Transport-Contract Hire,J01374,Transport Related Expenditure ,Contract Hire and Op Leasing  ,CC66,CSF - CHILDREN CABS (RK09)              ,500.00,31/12/2015,R,KINGSTON ACCESSIBILITY TRAN LT
511,CS -Oth Operating Inc & Expend,T/A Vehicle Maintenance etc,Transport-Contract Hire,J01374,Transport Related Expenditure ,Contract Hire and Op Leasing  ,CC64,CSF - SEN CABS (RK02)                   ,639.60,31/12/2015,R,KINGSTON ACCESSIBILITY TRAN LT
512,CS -Oth Operating Inc & Expend,T/A Vehicle Maintenance etc,Transport-Contract Hire,J01374,Transport Related Expenditure ,Contract Hire and Op Leasing  ,CC64,CSF - SEN CABS (RK02)                   ,907.20,31/12/2015,R,KINGSTON ACCESSIBILITY TRAN LT
513,CS -Oth Operating Inc & Expend,T/A Vehicle Maintenance etc,Transport-Contract Hire,J01374,Transport Related Expenditure ,Contract Hire and Op Leasing  ,CC67,C&H - ADULTS CABS (RK08)                ,958.16,31/12/2015,R,KINGSTON ACCESSIBILITY TRAN LT
514,CS -Oth Operating Inc & Expend,T/A Vehicle Maintenance etc,Transport-Contract Hire,J01374,Transport Related Expenditure ,Contract Hire and Op Leasing  ,CC67,C&H - ADULTS CABS (RK08)                ,"1,039.84",31/12/2015,R,KINGSTON ACCESSIBILITY TRAN LT
515,CS -Oth Operating Inc & Expend,T/A Vehicle Maintenance etc,Transport-Contract Hire,J01374,Transport Related Expenditure ,Contract Hire and Op Leasing  ,CC67,C&H - ADULTS CABS (RK08)                ,"1,159.66",31/12/2015,R,KINGSTON ACCESSIBILITY TRAN LT
516,CS -Oth Operating Inc & Expend,T/A Vehicle Maintenance etc,Transport-Contract Hire,J01374,Transport Related Expenditure ,Contract Hire and Op Leasing  ,CC67,C&H - ADULTS CABS (RK08)                ,"1,184.00",31/12/2015,R,KINGSTON ACCESSIBILITY TRAN LT
517,CS -Oth Operating Inc & Expend,T/A Vehicle Maintenance etc,Transport-Contract Hire,J01374,Transport Related Expenditure ,Contract Hire and Op Leasing  ,CC64,CSF - SEN CABS (RK02)                   ,"1,198.12",31/12/2015,R,KINGSTON ACCESSIBILITY TRAN LT
518,CS -Oth Operating Inc & Expend,T/A Vehicle Maintenance etc,Transport-Contract Hire,J01374,Transport Related Expenditure ,Contract Hire and Op Leasing  ,CC64,CSF - SEN CABS (RK02)                   ,"1,260.00",31/12/2015,R,KINGSTON ACCESSIBILITY TRAN LT
519,CS -Oth Operating Inc & Expend,T/A Vehicle Maintenance etc,Transport-Contract Hire,J01374,Transport Related Expenditure ,Contract Hire and Op Leasing  ,CC66,CSF - CHILDREN CABS (RK09)              ,"1,340.92",31/12/2015,R,KINGSTON ACCESSIBILITY TRAN LT
520,CS -Oth Operating Inc & Expend,T/A Vehicle Maintenance etc,Transport-Contract Hire,J01374,Transport Related Expenditure ,Contract Hire and Op Leasing  ,CC64,CSF - SEN CABS (RK02)                   ,"1,357.72",31/12/2015,R,KINGSTON ACCESSIBILITY TRAN LT
521,CS -Oth Operating Inc & Expend,T/A Vehicle Maintenance etc,Transport-Contract Hire,J01374,Transport Related Expenditure ,Contract Hire and Op Leasing  ,CC64,CSF - SEN CABS (RK02)                   ,"1,399.44",31/12/2015,R,KINGSTON ACCESSIBILITY TRAN LT
522,CS -Oth Operating Inc & Expend,T/A Vehicle Maintenance etc,Transport-Contract Hire,J01374,Transport Related Expenditure ,Contract Hire and Op Leasing  ,CC64,CSF - SEN CABS (RK02)                   ,"1,400.00",31/12/2015,R,KINGSTON ACCESSIBILITY TRAN LT
523,CS -Oth Operating Inc & Expend,T/A Vehicle Maintenance etc,Transport-Contract Hire,J01374,Transport Related Expenditure ,Contract Hire and Op Leasing  ,CC64,CSF - SEN CABS (RK02)                   ,"1,464.12",31/12/2015,R,KINGSTON ACCESSIBILITY TRAN LT
524,CS -Oth Operating Inc & Expend,T/A Vehicle Maintenance etc,Transport-Contract Hire,J01374,Transport Related Expenditure ,Contract Hire and Op Leasing  ,CC64,CSF - SEN CABS (RK02)                   ,"1,497.28",31/12/2015,R,KINGSTON ACCESSIBILITY TRAN LT
525,CS -Oth Operating Inc & Expend,T/A Vehicle Maintenance etc,Transport-Contract Hire,J01374,Transport Related Expenditure ,Contract Hire and Op Leasing  ,CC64,CSF - SEN CABS (RK02)                   ,"1,646.12",31/12/2015,R,KINGSTON ACCESSIBILITY TRAN LT
526,CS -Oth Operating Inc & Expend,T/A Vehicle Maintenance etc,Transport-Contract Hire,J01374,Transport Related Expenditure ,Contract Hire and Op Leasing  ,CC64,CSF - SEN CABS (RK02)                   ,"1,652.00",31/12/2015,R,KINGSTON ACCESSIBILITY TRAN LT
527,CS -Oth Operating Inc & Expend,T/A Vehicle Maintenance etc,Transport-Contract Hire,J01374,Transport Related Expenditure ,Contract Hire and Op Leasing  ,CC64,CSF - SEN CABS (RK02)                   ,"1,673.00",31/12/2015,R,KINGSTON ACCESSIBILITY TRAN LT
528,CS -Oth Operating Inc & Expend,T/A Vehicle Maintenance etc,Transport-Contract Hire,J01374,Transport Related Expenditure ,Contract Hire and Op Leasing  ,CC64,CSF - SEN CABS (RK02)                   ,"1,706.60",31/12/2015,R,KINGSTON ACCESSIBILITY TRAN LT
529,CS -Oth Operating Inc & Expend,T/A Vehicle Maintenance etc,Transport-Contract Hire,J01374,Transport Related Expenditure ,Contract Hire and Op Leasing  ,CC64,CSF - SEN CABS (RK02)                   ,"1,763.44",31/12/2015,R,KINGSTON ACCESSIBILITY TRAN LT
530,CS -Oth Operating Inc & Expend,T/A Vehicle Maintenance etc,Transport-Contract Hire,J01374,Transport Related Expenditure ,Contract Hire and Op Leasing  ,CC64,CSF - SEN CABS (RK02)                   ,"1,959.44",31/12/2015,R,KINGSTON ACCESSIBILITY TRAN LT
531,CS -Oth Operating Inc & Expend,T/A Vehicle Maintenance etc,Transport-Contract Hire,J01374,Transport Related Expenditure ,Contract Hire and Op Leasing  ,CC64,CSF - SEN CABS (RK02)                   ,"1,968.81",31/12/2015,R,KINGSTON ACCESSIBILITY TRAN LT
532,CS -Oth Operating Inc & Expend,T/A Vehicle Maintenance etc,Transport-Contract Hire,J01374,Transport Related Expenditure ,Contract Hire and Op Leasing  ,CC64,CSF - SEN CABS (RK02)                   ,"1,976.52",31/12/2015,R,KINGSTON ACCESSIBILITY TRAN LT
533,CS -Oth Operating Inc & Expend,T/A Vehicle Maintenance etc,Transport-Contract Hire,J01374,Transport Related Expenditure ,Contract Hire and Op Leasing  ,CC64,CSF - SEN CABS (RK02)                   ,"2,079.74",31/12/2015,R,KINGSTON ACCESSIBILITY TRAN LT
534,CS -Oth Operating Inc & Expend,T/A Vehicle Maintenance etc,Transport-Contract Hire,J01374,Transport Related Expenditure ,Contract Hire and Op Leasing  ,CC64,CSF - SEN CABS (RK02)                   ,"2,088.52",31/12/2015,R,KINGSTON ACCESSIBILITY TRAN LT
535,CS -Oth Operating Inc & Expend,T/A Vehicle Maintenance etc,Transport-Contract Hire,J01374,Transport Related Expenditure ,Contract Hire and Op Leasing  ,CC64,CSF - SEN CABS (RK02)                   ,"2,098.60",31/12/2015,R,KINGSTON ACCESSIBILITY TRAN LT
536,CS -Oth Operating Inc & Expend,T/A Vehicle Maintenance etc,Transport-Contract Hire,J01374,Transport Related Expenditure ,Contract Hire and Op Leasing  ,CC64,CSF - SEN CABS (RK02)                   ,"2,099.72",31/12/2015,R,KINGSTON ACCESSIBILITY TRAN LT
537,CS -Oth Operating Inc & Expend,T/A Vehicle Maintenance etc,Transport-Contract Hire,J01374,Transport Related Expenditure ,Contract Hire and Op Leasing  ,CC64,CSF - SEN CABS (RK02)                   ,"2,290.59",31/12/2015,R,KINGSTON ACCESSIBILITY TRAN LT
538,CS -Oth Operating Inc & Expend,T/A Vehicle Maintenance etc,Transport-Contract Hire,J01374,Transport Related Expenditure ,Contract Hire and Op Leasing  ,CC64,CSF - SEN CABS (RK02)                   ,"2,508.52",31/12/2015,R,KINGSTON ACCESSIBILITY TRAN LT
539,CS -Oth Operating Inc & Expend,T/A Vehicle Maintenance etc,Transport-Contract Hire,J01374,Transport Related Expenditure ,Contract Hire and Op Leasing  ,CC53,Plant Hire for MRCS                     ,651.00,06/01/2016,R,M6 VEHICLE HIRE               
540,CS -Oth Operating Inc & Expend,T/A Vehicle Maintenance etc,Transport-Contract Hire,J01374,Transport Related Expenditure ,Contract Hire and Op Leasing  ,CC53,Plant Hire for MRCS                     ,"2,618.00",31/12/2015,R,M6 VEHICLE HIRE               
541,CS -Oth Operating Inc & Expend,T/A Vehicle Maintenance etc,Transport-Contract Hire,J01374,Transport Related Expenditure ,Contract Hire and Op Leasing  ,CC68,CSF - COLLEGES CABS (RK03)              ,500.00,31/12/2015,R,NVCAR HIRE LTD                
542,CS -Oth Operating Inc & Expend,T/A Vehicle Maintenance etc,Transport-Contract Hire,J01374,Transport Related Expenditure ,Contract Hire and Op Leasing  ,CC64,CSF - SEN CABS (RK02)                   ,780.00,31/12/2015,R,NVCAR HIRE LTD                
543,CS -Oth Operating Inc & Expend,T/A Vehicle Maintenance etc,Transport-Contract Hire,J01374,Transport Related Expenditure ,Contract Hire and Op Leasing  ,CC64,CSF - SEN CABS (RK02)                   ,834.00,31/12/2015,R,NVCAR HIRE LTD                
544,CS -Oth Operating Inc & Expend,T/A Vehicle Maintenance etc,Transport-Contract Hire,J01374,Transport Related Expenditure ,Contract Hire and Op Leasing  ,CC67,C&H - ADULTS CABS (RK08)                ,892.00,31/12/2015,R,NVCAR HIRE LTD                
545,CS -Oth Operating Inc & Expend,T/A Vehicle Maintenance etc,Transport-Contract Hire,J01374,Transport Related Expenditure ,Contract Hire and Op Leasing  ,CC64,CSF - SEN CABS (RK02)                   ,980.00,31/12/2015,R,NVCAR HIRE LTD                
546,CS -Oth Operating Inc & Expend,T/A Vehicle Maintenance etc,Transport-Contract Hire,J01374,Transport Related Expenditure ,Contract Hire and Op Leasing  ,CC64,CSF - SEN CABS (RK02)                   ,"1,092.00",31/12/2015,R,NVCAR HIRE LTD                
547,CS -Oth Operating Inc & Expend,T/A Vehicle Maintenance etc,Transport-Contract Hire,J01374,Transport Related Expenditure ,Contract Hire and Op Leasing  ,CC64,CSF - SEN CABS (RK02)                   ,"1,250.00",31/12/2015,R,NVCAR HIRE LTD                
548,CS -Oth Operating Inc & Expend,T/A Vehicle Maintenance etc,Transport-Contract Hire,J01374,Transport Related Expenditure ,Contract Hire and Op Leasing  ,CC64,CSF - SEN CABS (RK02)                   ,"1,260.00",31/12/2015,R,NVCAR HIRE LTD                
549,CS -Oth Operating Inc & Expend,T/A Vehicle Maintenance etc,Transport-Contract Hire,J01374,Transport Related Expenditure ,Contract Hire and Op Leasing  ,CC64,CSF - SEN CABS (RK02)                   ,"1,372.00",31/12/2015,R,NVCAR HIRE LTD                
550,CS -Oth Operating Inc & Expend,T/A Vehicle Maintenance etc,Transport-Contract Hire,J01374,Transport Related Expenditure ,Contract Hire and Op Leasing  ,CC64,CSF - SEN CABS (RK02)                   ,"1,624.00",31/12/2015,R,NVCAR HIRE LTD                
551,CS -Oth Operating Inc & Expend,T/A Vehicle Maintenance etc,Transport-Contract Hire,J01374,Transport Related Expenditure ,Contract Hire and Op Leasing  ,CC64,CSF - SEN CABS (RK02)                   ,"1,960.00",31/12/2015,R,NVCAR HIRE LTD                
552,CS -Oth Operating Inc & Expend,T/A Vehicle Maintenance etc,Transport-Contract Hire,J01374,Transport Related Expenditure ,Contract Hire and Op Leasing  ,CC64,CSF - SEN CABS (RK02)                   ,"2,025.00",31/12/2015,R,NVCAR HIRE LTD                
553,CS -Oth Operating Inc & Expend,T/A Vehicle Maintenance etc,Transport-Contract Hire,J01374,Transport Related Expenditure ,Contract Hire and Op Leasing  ,CC64,CSF - SEN CABS (RK02)                   ,"2,618.00",31/12/2015,R,NVCAR HIRE LTD                
554,CS -Oth Operating Inc & Expend,T/A Vehicle Maintenance etc,Transport-Contract Hire,J01374,Transport Related Expenditure ,Contract Hire and Op Leasing  ,CC53,Plant Hire for MRCS                     ,610.00,21/12/2015,R,PFB HIRE LTD                  
555,CS -Oth Operating Inc & Expend,T/A Vehicle Maintenance etc,Transport-Contract Hire,J01374,Transport Related Expenditure ,Contract Hire and Op Leasing  ,CC53,Plant Hire for MRCS                     ,610.00,23/12/2015,R,PFB HIRE LTD                  
556,CS -Oth Operating Inc & Expend,T/A Vehicle Maintenance etc,Transport-Contract Hire,J01374,Transport Related Expenditure ,Contract Hire and Op Leasing  ,CC53,Plant Hire for MRCS                     ,610.00,08/01/2016,R,PFB HIRE LTD                  
557,CS -Oth Operating Inc & Expend,T/A Vehicle Maintenance etc,Transport-Contract Hire,J01374,Transport Related Expenditure ,Contract Hire and Op Leasing  ,CC53,Plant Hire for MRCS                     ,610.00,09/11/2015,R,PFB HIRE LTD                  
558,CS -Oth Operating Inc & Expend,T/A Vehicle Maintenance etc,Transport-Contract Hire,J01374,Transport Related Expenditure ,Contract Hire and Op Leasing  ,CC53,Plant Hire for MRCS                     ,610.00,14/12/2015,R,PFB HIRE LTD                  
559,CS -Oth Operating Inc & Expend,T/A Vehicle Maintenance etc,Transport-Contract Hire,J01374,Transport Related Expenditure ,Contract Hire and Op Leasing  ,CC53,Plant Hire for MRCS                     ,610.00,31/12/2015,R,PFB HIRE LTD                  
560,CS -Oth Operating Inc & Expend,T/A Vehicle Maintenance etc,Transport-Contract Hire,J01374,Transport Related Expenditure ,Contract Hire and Op Leasing  ,CC53,Plant Hire for MRCS                     ,610.00,30/11/2015,R,PFB HIRE LTD                  
561,CS -Oth Operating Inc & Expend,T/A Vehicle Maintenance etc,Transport-Contract Hire,J01374,Transport Related Expenditure ,Contract Hire and Op Leasing  ,CC67,C&H - ADULTS CABS (RK08)                ,528.00,31/12/2015,R,PREMIER CARS                  
562,CS -Oth Operating Inc & Expend,T/A Vehicle Maintenance etc,Transport-Contract Hire,J01374,Transport Related Expenditure ,Contract Hire and Op Leasing  ,CC68,CSF - COLLEGES CABS (RK03)              ,550.00,31/12/2015,R,PREMIER CARS                  
563,CS -Oth Operating Inc & Expend,T/A Vehicle Maintenance etc,Transport-Contract Hire,J01374,Transport Related Expenditure ,Contract Hire and Op Leasing  ,CC64,CSF - SEN CABS (RK02)                   ,837.20,31/12/2015,R,PREMIER CARS                  
564,CS -Oth Operating Inc & Expend,T/A Vehicle Maintenance etc,Transport-Contract Hire,J01374,Transport Related Expenditure ,Contract Hire and Op Leasing  ,CC67,C&H - ADULTS CABS (RK08)                ,877.00,30/11/2015,R,PREMIER CARS                  
565,CS -Oth Operating Inc & Expend,T/A Vehicle Maintenance etc,Transport-Contract Hire,J01374,Transport Related Expenditure ,Contract Hire and Op Leasing  ,CC64,CSF - SEN CABS (RK02)                   ,"1,066.23",31/12/2015,R,PREMIER CARS                  
566,CS -Oth Operating Inc & Expend,T/A Vehicle Maintenance etc,Transport-Contract Hire,J01374,Transport Related Expenditure ,Contract Hire and Op Leasing  ,CC64,CSF - SEN CABS (RK02)                   ,"1,078.20",31/12/2015,R,PREMIER CARS                  
567,CS -Oth Operating Inc & Expend,T/A Vehicle Maintenance etc,Transport-Contract Hire,J01374,Transport Related Expenditure ,Contract Hire and Op Leasing  ,CC64,CSF - SEN CABS (RK02)                   ,"1,540.00",31/12/2015,R,PREMIER CARS                  
568,CS -Oth Operating Inc & Expend,T/A Vehicle Maintenance etc,Transport-Contract Hire,J01374,Transport Related Expenditure ,Contract Hire and Op Leasing  ,CC64,CSF - SEN CABS (RK02)                   ,"1,924.00",31/12/2015,R,PREMIER CARS                  
569,CS -Oth Operating Inc & Expend,T/A Vehicle Maintenance etc,Transport-Contract Hire,J01374,Employees                     ,Direct Employee Expenses      ,AA17,Agency Staff & Casual Paymts            ,"9,918.00",06/01/2016,R,REDACTED
570,CS -Oth Operating Inc & Expend,T/A Vehicle Maintenance etc,Transport-Contract Hire,J01374,Transport Related Expenditure ,Contract Hire and Op Leasing  ,CC59,HIRING TRANSPORT OPERATIONS             ,559.58,31/12/2015,R,REDACTED
571,CS -Oth Operating Inc & Expend,T/A Vehicle Maintenance etc,Transport-Contract Hire,J01374,Transport Related Expenditure ,Contract Hire and Op Leasing  ,CC59,HIRING TRANSPORT OPERATIONS             ,559.58,31/12/2015,R,REDACTED
572,CS -Oth Operating Inc & Expend,T/A Vehicle Maintenance etc,Transport-Contract Hire,J01374,Transport Related Expenditure ,Contract Hire and Op Leasing  ,CC59,HIRING TRANSPORT OPERATIONS             ,559.58,31/12/2015,R,REDACTED
573,CS -Oth Operating Inc & Expend,T/A Vehicle Maintenance etc,Transport-Contract Hire,J01374,Transport Related Expenditure ,Contract Hire and Op Leasing  ,CC59,HIRING TRANSPORT OPERATIONS             ,559.58,31/12/2015,R,REDACTED
574,CS -Oth Operating Inc & Expend,T/A Vehicle Maintenance etc,Transport-Contract Hire,J01374,Transport Related Expenditure ,Contract Hire and Op Leasing  ,CC56,Plant Hire for Leisure                  ,585.00,31/12/2015,R,REDACTED
575,CS -Oth Operating Inc & Expend,T/A Vehicle Maintenance etc,Transport-Contract Hire,J01374,Transport Related Expenditure ,Contract Hire and Op Leasing  ,CC56,Plant Hire for Leisure                  ,585.00,31/12/2015,R,REDACTED
576,CS -Oth Operating Inc & Expend,T/A Vehicle Maintenance etc,Transport-Contract Hire,J01374,Transport Related Expenditure ,Contract Hire and Op Leasing  ,CC56,Plant Hire for Leisure                  ,585.00,31/12/2015,R,REDACTED
577,CS -Oth Operating Inc & Expend,T/A Vehicle Maintenance etc,Transport-Contract Hire,J01374,Transport Related Expenditure ,Contract Hire and Op Leasing  ,CC53,Plant Hire for MRCS                     ,650.00,31/12/2015,R,REDACTED
578,CS -Oth Operating Inc & Expend,T/A Vehicle Maintenance etc,Transport-Contract Hire,J01374,Transport Related Expenditure ,Contract Hire and Op Leasing  ,CC53,Plant Hire for MRCS                     ,759.00,31/12/2015,R,REDACTED
579,CS -Oth Operating Inc & Expend,T/A Vehicle Maintenance etc,Transport-Contract Hire,J01374,Transport Related Expenditure ,Contract Hire and Op Leasing  ,CC53,Plant Hire for MRCS                     ,759.00,31/12/2015,R,REDACTED
580,CS -Oth Operating Inc & Expend,T/A Vehicle Maintenance etc,Transport-Contract Hire,J01374,Transport Related Expenditure ,Contract Hire and Op Leasing  ,CC53,Plant Hire for MRCS                     ,912.50,17/12/2015,R,REDACTED
581,CS -Oth Operating Inc & Expend,T/A Vehicle Maintenance etc,Transport-Contract Hire,J01374,Transport Related Expenditure ,Contract Hire and Op Leasing  ,CC53,Plant Hire for MRCS                     ,"3,192.00",30/11/2015,R,RIVERSIDE TRUCK RENTAL LTD    
582,CS -Oth Operating Inc & Expend,T/A Vehicle Maintenance etc,Transport-Contract Hire,J01374,Transport Related Expenditure ,Contract Hire and Op Leasing  ,CC53,Plant Hire for MRCS                     ,"3,496.00",31/12/2015,R,RIVERSIDE TRUCK RENTAL LTD    
583,CS -Oth Operating Inc & Expend,T/A Vehicle Maintenance etc,Transport-Contract Hire,J01374,Premises Related Expenditure  ,Energy Costs                  ,BB02,Electricity                             ,712.91,01/12/2015,R,SCOTTISHPOWER                 
584,CS -Oth Operating Inc & Expend,T/A Vehicle Maintenance etc,Transport-Contract Hire,J01374,Premises Related Expenditure  ,Energy Costs                  ,BB02,Electricity                             ,714.34,04/01/2016,R,SCOTTISHPOWER                 
585,CS -Oth Operating Inc & Expend,T/A Vehicle Maintenance etc,Transport-Contract Hire,J01374,Transport Related Expenditure ,Contract Hire and Op Leasing  ,CC64,CSF - SEN CABS (RK02)                   ,"1,890.00",31/12/2015,R,SHERWOOD TRANSPORT GROUP      
586,CS -Oth Operating Inc & Expend,T/A Vehicle Maintenance etc,Transport-Contract Hire,J01374,Transport Related Expenditure ,Contract Hire and Op Leasing  ,CC64,CSF - SEN CABS (RK02)                   ,567.00,20/12/2015,R,SILVERBURN FINANCE (UK) LTD   
587,CS -Oth Operating Inc & Expend,T/A Vehicle Maintenance etc,Transport-Contract Hire,J01374,Transport Related Expenditure ,Contract Hire and Op Leasing  ,CC64,CSF - SEN CABS (RK02)                   ,760.00,31/12/2015,R,SNA TRANSPORT LTD             
588,CS -Oth Operating Inc & Expend,T/A Vehicle Maintenance etc,Transport-Contract Hire,J01374,Transport Related Expenditure ,Contract Hire and Op Leasing  ,CC67,C&H - ADULTS CABS (RK08)                ,"1,400.00",31/12/2015,R,SNA TRANSPORT LTD             
589,CS -Oth Operating Inc & Expend,T/A Vehicle Maintenance etc,Transport-Contract Hire,J01374,Transport Related Expenditure ,Contract Hire and Op Leasing  ,CC53,Plant Hire for MRCS                     ,"4,279.00",15/01/2016,R,STENNETTS                     
590,CS -Oth Operating Inc & Expend,T/A Vehicle Maintenance etc,Transport-Contract Hire,J01374,Premises Related Expenditure  ,Water Services                ,BE01,Use of Water (Metered)                  ,541.86,30/12/2015,R,SUTTON AND EAST SURREY WATER  
591,CS -Oth Operating Inc & Expend,T/A Vehicle Maintenance etc,Transport-Contract Hire,J01374,Transport Related Expenditure ,Contract Hire and Op Leasing  ,CC64,CSF - SEN CABS (RK02)                   ,"1,932.00",25/12/2015,R,WALLINGTON CARS & COURIERS LTD
592,CS -Oth Operating Inc & Expend,T/A Vehicle Maintenance etc,Transport-Workshop,J01376,Transport Related Expenditure ,Contract Hire and Op Leasing  ,CC65,Vehicle Hire for Education              ,"1,400.00",31/12/2015,R,BARCLAYS ASSET & SALES FINANCE
593,CS -Oth Operating Inc & Expend,T/A Vehicle Maintenance etc,Transport-Workshop,J01376,Transport Related Expenditure ,Contract Hire and Op Leasing  ,CC60,Vehicle Hire for LB Sutton              ,"1,764.00",31/12/2015,R,BARCLAYS ASSET & SALES FINANCE
594,CS -Oth Operating Inc & Expend,T/A Vehicle Maintenance etc,Transport-Workshop,J01376,Transport Related Expenditure ,Contract Hire and Op Leasing  ,CC60,Vehicle Hire for LB Sutton              ,"4,216.00",30/12/2015,R,BARCLAYS ASSET & SALES FINANCE
595,CS -Oth Operating Inc & Expend,T/A Vehicle Maintenance etc,Transport-Workshop,J01376,Premises Related Expenditure  ,RepairsAlterations&MtceOfBldgs,BA03,DDM - Mechanical                        ,549.46,11/01/2016,R,EUROPA NATIONWIDE TECH.SER.LTD
596,CS -Oth Operating Inc & Expend,T/A Vehicle Maintenance etc,Transport-Workshop,J01376,Transport Related Expenditure ,Contract Hire and Op Leasing  ,CC60,Vehicle Hire for LB Sutton              ,840.00,19/12/2015,R,SCHOOL TRANSPORT LTD          
597,CS -Oth Operating Inc & Expend,T/A Vehicle Maintenance etc,Transport-Workshop,J01376,Transport Related Expenditure ,Contract Hire and Op Leasing  ,CC60,Vehicle Hire for LB Sutton              ,"1,596.00",19/12/2015,R,SCHOOL TRANSPORT LTD          
598,CS -Oth Operating Inc & Expend,T/A Vehicle Maintenance etc,Transport-Workshop,J01376,Transport Related Expenditure ,Contract Hire and Op Leasing  ,CC60,Vehicle Hire for LB Sutton              ,850.50,20/12/2015,R,SILVERBURN FINANCE (UK) LTD   
599,CS -Oth Operating Inc & Expend,T/A Vehicle Maintenance etc,Vehicle Workshops,J01378,Transport Related Expenditure ,Direct Transport Costs        ,CA72,Vehicle Parts                           ,532.20,25/01/2016,R,COMMERCIAL & PLANT LTD        
600,CS -Oth Operating Inc & Expend,T/A Vehicle Maintenance etc,Vehicle Workshops,J01378,Transport Related Expenditure ,Direct Transport Costs        ,CA72,Vehicle Parts                           ,880.08,12/01/2016,R,COMMERCIAL & PLANT LTD        
601,CS -Oth Operating Inc & Expend,T/A Vehicle Maintenance etc,Vehicle Workshops,J01378,Transport Related Expenditure ,Direct Transport Costs        ,CA72,Vehicle Parts                           ,592.50,19/01/2016,R,DENNIS EAGLE LIMITED          
602,CS -Oth Operating Inc & Expend,T/A Vehicle Maintenance etc,Vehicle Workshops,J01378,Transport Related Expenditure ,Direct Transport Costs        ,CA72,Vehicle Parts                           ,650.32,29/12/2015,R,DENNIS EAGLE LIMITED          
603,CS -Oth Operating Inc & Expend,T/A Vehicle Maintenance etc,Vehicle Workshops,J01378,Transport Related Expenditure ,Direct Transport Costs        ,CA72,Vehicle Parts                           ,703.27,24/12/2015,R,DENNIS EAGLE LIMITED          
604,CS -Oth Operating Inc & Expend,T/A Vehicle Maintenance etc,Vehicle Workshops,J01378,Transport Related Expenditure ,Direct Transport Costs        ,CA72,Vehicle Parts                           ,"1,262.56",20/01/2016,R,DENNIS EAGLE LIMITED          
605,CS -Oth Operating Inc & Expend,T/A Vehicle Maintenance etc,Vehicle Workshops,J01378,Transport Related Expenditure ,Direct Transport Costs        ,CA02,Tyres                                   ,"4,727.02",31/12/2015,R,DIRECT TYRE MANAGEMENT LTD    
606,CS -Oth Operating Inc & Expend,T/A Vehicle Maintenance etc,Vehicle Workshops,J01378,Supplies & Services           ,Equip Furniture/Materials     ,DA01,Equipment - R & M                       ,"1,480.38",10/11/2015,R,EUROCAR PARTS                 
607,CS -Oth Operating Inc & Expend,T/A Vehicle Maintenance etc,Vehicle Workshops,J01378,Transport Related Expenditure ,Direct Transport Costs        ,CA55,Specialist Maint. (Off Site)            ,643.14,14/01/2016,R,FIRST PARTS SOLUTIONS         
608,CS -Oth Operating Inc & Expend,T/A Vehicle Maintenance etc,Vehicle Workshops,J01378,Transport Related Expenditure ,Direct Transport Costs        ,CA04,R & M of Veh - General                  ,-649.86,21/12/2015,R,FREIGHT TRANSPORT ASSOCIATION 
609,CS -Oth Operating Inc & Expend,T/A Vehicle Maintenance etc,Vehicle Workshops,J01378,Transport Related Expenditure ,Direct Transport Costs        ,CA72,Vehicle Parts                           ,"1,250.00",10/12/2015,R,GEESINK NORBA                 
610,CS -Oth Operating Inc & Expend,T/A Vehicle Maintenance etc,Vehicle Workshops,J01378,Transport Related Expenditure ,Direct Transport Costs        ,CA56,Specialist Maint. (On Site)             ,"5,470.80",24/12/2015,R,GEESINK NORBA                 
611,CS -Oth Operating Inc & Expend,T/A Vehicle Maintenance etc,Vehicle Workshops,J01378,Transport Related Expenditure ,Direct Transport Costs        ,CA72,Vehicle Parts                           ,578.76,19/01/2016,R,JD ASSOCIATES                 
612,CS -Oth Operating Inc & Expend,T/A Vehicle Maintenance etc,Vehicle Workshops,J01378,Transport Related Expenditure ,Direct Transport Costs        ,CA72,Vehicle Parts                           ,584.05,23/12/2015,R,JD ASSOCIATES                 
613,CS -Oth Operating Inc & Expend,T/A Vehicle Maintenance etc,Vehicle Workshops,J01378,Transport Related Expenditure ,Direct Transport Costs        ,CA56,Specialist Maint. (On Site)             ,501.90,30/12/2015,R,JMN SOLUTIONS LTD             
614,CS -Oth Operating Inc & Expend,T/A Vehicle Maintenance etc,Vehicle Workshops,J01378,Supplies & Services           ,Equip Furniture/Materials     ,DA01,Equipment - R & M                       ,"1,832.25",15/01/2016,R,LIFTMASTER COMMERCIAL EQUIP   
615,CS -Oth Operating Inc & Expend,T/A Vehicle Maintenance etc,Vehicle Workshops,J01378,Transport Related Expenditure ,Direct Transport Costs        ,CA72,Vehicle Parts                           ,974.99,06/01/2016,R,MC TRUCK & BUS                
616,CS -Oth Operating Inc & Expend,T/A Vehicle Maintenance etc,Vehicle Workshops,J01378,Transport Related Expenditure ,Direct Transport Costs        ,CA56,Specialist Maint. (On Site)             ,"1,011.37",20/01/2016,R,MITCHELL POWER SYSTEMS        
617,CS -Oth Operating Inc & Expend,T/A Vehicle Maintenance etc,Vehicle Workshops,J01378,Transport Related Expenditure ,Direct Transport Costs        ,CA72,Vehicle Parts                           ,996.14,15/10/2015,R,NTM GB LIMITED                
618,CS -Oth Operating Inc & Expend,T/A Vehicle Maintenance etc,Vehicle Workshops,J01378,Transport Related Expenditure ,Direct Transport Costs        ,CA56,Specialist Maint. (On Site)             ,567.50,03/01/2016,R,R.J.H.WELDING                 
619,CS -Oth Operating Inc & Expend,T/A Vehicle Maintenance etc,Vehicle Workshops,J01378,Transport Related Expenditure ,Direct Transport Costs        ,CA56,Specialist Maint. (On Site)             ,"7,376.28",25/01/2016,R,R.J.H.WELDING                 
620,CS -Oth Operating Inc & Expend,T/A Vehicle Maintenance etc,Vehicle Workshops,J01378,Transport Related Expenditure ,Direct Transport Costs        ,CA56,Specialist Maint. (On Site)             ,571.15,05/01/2016,R,REDACTED
621,CS -Oth Operating Inc & Expend,T/A Vehicle Maintenance etc,Vehicle Workshops,J01378,Transport Related Expenditure ,Direct Transport Costs        ,CA56,Specialist Maint. (On Site)             ,605.90,05/01/2016,R,REDACTED
622,CS -Oth Operating Inc & Expend,T/A Vehicle Maintenance etc,Vehicle Workshops,J01378,Transport Related Expenditure ,Direct Transport Costs        ,CA56,Specialist Maint. (On Site)             ,908.15,05/01/2016,R,REDACTED
623,CS -Oth Operating Inc & Expend,T/A Vehicle Maintenance etc,Vehicle Workshops,J01378,Transport Related Expenditure ,Direct Transport Costs        ,CA72,Vehicle Parts                           ,857.47,04/01/2016,R,ROSSETTS COMMERCIALS          
624,CS -Oth Operating Inc & Expend,T/A Vehicle Maintenance etc,Vehicle Workshops,J01378,Transport Related Expenditure ,Direct Transport Costs        ,CA72,Vehicle Parts                           ,857.47,04/01/2016,R,ROSSETTS COMMERCIALS          
625,CS -Oth Operating Inc & Expend,T/A Vehicle Maintenance etc,Vehicle Workshops,J01378,Transport Related Expenditure ,Direct Transport Costs        ,CA72,Vehicle Parts                           ,"1,913.25",05/01/2016,R,ROSSETTS COMMERCIALS          
626,CS -Oth Operating Inc & Expend,T/A Vehicle Maintenance etc,Vehicle Workshops,J01378,Transport Related Expenditure ,Direct Transport Costs        ,CA72,Vehicle Parts                           ,"1,913.25",05/01/2016,R,ROSSETTS COMMERCIALS          
627,CS -Oth Operating Inc & Expend,T/A Vehicle Maintenance etc,Vehicle Workshops,J01378,Transport Related Expenditure ,Direct Transport Costs        ,CA72,Vehicle Parts                           ,"1,852.57",24/12/2015,R,SCARAB SWEEPERS LTD           
628,Cultural Env Reg&Plan Services,Mgt & Support (Env),Estates Mgt,J01420,Supplies & Services           ,Services                      ,DF50,Estate Management                       ,"4,000.00",31/12/2015,R,MARCUS BEALE ARCHITECTS       
629,Cultural Env Reg&Plan Services,Mgt & Support (Env),Estates Mgt,J01420,Supplies & Services           ,Services                      ,DF50,Estate Management                       ,"2,550.00",31/12/2015,R,QUINTON SCOTT                 
630,CS -Oth Operating Inc & Expend,Extraordinary Items & PY Adj.,Other Misc Props Budget,J01526,Premises Related Expenditure  ,Energy Costs                  ,BB03,GAS (INCL. BUTANE)                      ,537.04,11/01/2016,R,GAZPROM MARKETING&TRADING LTD 
631,CS -Oth Operating Inc & Expend,Extraordinary Items & PY Adj.,Other Misc Props Budget,J01526,Premises Related Expenditure  ,RepairsAlterations&MtceOfBldgs,BA01,DDM - GENERAL BUILDING                  ,760.00,07/01/2016,R,LA BELLE ROOFING CO LTD       
632,CS -Oth Operating Inc & Expend,Extraordinary Items & PY Adj.,Other Misc Props Budget,J01526,Premises Related Expenditure  ,RepairsAlterations&MtceOfBldgs,BA01,DDM - GENERAL BUILDING                  ,990.00,07/01/2016,R,LA BELLE ROOFING CO LTD       
633,CS -Oth Operating Inc & Expend,Extraordinary Items & PY Adj.,Other Misc Props Budget,J01526,Premises Related Expenditure  ,RepairsAlterations&MtceOfBldgs,BA01,DDM - GENERAL BUILDING                  ,834.82,22/12/2015,R,SALTASH ENTERPRISES LTD       
634,CS -Oth Operating Inc & Expend,Extraordinary Items & PY Adj.,Willow Lane Budget,J01575,Premises Related Expenditure  ,RepairsAlterations&MtceOfBldgs,BA06,REPAIRS & MAINTENANCE GENERAL           ,985.00,24/12/2015,R,LUCION ENVIRONMENTAL LTD      
635,CS -Oth Operating Inc & Expend,Extraordinary Items & PY Adj.,Pollards Hill Comm Cntre,J08074,Premises Related Expenditure  ,RepairsAlterations&MtceOfBldgs,BA03,DDM - Mechanical                        ,617.03,11/01/2016,R,EUROPA NATIONWIDE TECH.SER.LTD
636,Childrens & Education Services,Statutory & Regulatory Duties,Senior Mngt & Support Services,K01005,Supplies & Services           ,Services                      ,DF11,Counsel's Fees                          ,510.00,11/11/2015,R,REDACTED
637,Childrens & Education Services,Statutory & Regulatory Duties,Senior Mngt & Support Services,K01005,Supplies & Services           ,Services                      ,DF11,Counsel's Fees                          ,520.00,01/12/2015,R,REDACTED
638,Childrens & Education Services,Statutory & Regulatory Duties,Senior Mngt & Support Services,K01005,Supplies & Services           ,Services                      ,DF11,Counsel's Fees                          ,775.00,22/12/2015,R,REDACTED
639,Childrens & Education Services,Statutory & Regulatory Duties,Senior Mngt & Support Services,K01005,Supplies & Services           ,Services                      ,DF11,Counsel's Fees                          ,880.00,11/12/2015,R,REDACTED
640,Childrens & Education Services,Statutory & Regulatory Duties,Senior Mngt & Support Services,K01005,Supplies & Services           ,Services                      ,DF95,Services from Provider                  ,"2,995.00",09/11/2015,R,REDACTED
641,Childrens & Education Services,Statutory & Regulatory Duties,Central Administration,K01008,Supplies & Services           ,Grants and Subscriptions      ,DJ04,Subscriptions                           ,"2,000.00",13/01/2016,R,LONDON COUNCILS               
642,Childrens & Education Services,Statutory & Regulatory Duties,Schools IT Support,K02008,Supplies & Services           ,Comms and Computing           ,DG50,Other IT Expenditure                    ,600.00,15/01/2016,R,ATOMWIDE LTD                  
643,Childrens & Education Services,Statutory & Regulatory Duties,Teenage Pregnancy                       ,K03007,Supplies & Services           ,Equip Furniture/Materials     ,DA04,Materials                               ,650.00,15/01/2016,R,THE CREATIVE TEAM             
644,Childrens & Education Services,Education Psychology Service,Education Psychology.,K04018,Employees                     ,Direct Employee Expenses      ,AA17,Agency Staff & Casual Paymts            ,"1,600.00",16/01/2016,R,REDACTED
645,Childrens & Education Services,Education Psychology Service,Education Psychology.,K04018,Employees                     ,Direct Employee Expenses      ,AA17,Agency Staff & Casual Paymts            ,"2,000.00",03/12/2015,R,REDACTED
646,Childrens & Education Services,Education Psychology Service,Education Psychology.,K04018,Employees                     ,Direct Employee Expenses      ,AA17,Agency Staff & Casual Paymts            ,"6,400.00",03/12/2015,R,REDACTED
647,Childrens & Education Services,Support for SEN Pupils,Statementing-Transport,K04023,Transport Related Expenditure ,Public Transport              ,CD50,Home Sch/Coll Trans(Trav Exps)          ,640.00,06/01/2016,R,REDACTED
648,Childrens & Education Services,Oth U5s Provn Not Prim or Spec,Provider Support,K05078,Supplies & Services           ,Comms and Computing           ,DG02,Software Licences                       ,"1,129.01",07/01/2016,R,CACI LIMITED                  
649,Childrens & Education Services,GENERATED ACCOUNT,Children's centres,K05137,Premises Related Expenditure  ,RepairsAlterations&MtceOfBldgs,BA01,DDM - General Building                  ,"9,660.00",16/12/2015,R,DAVID BANKS DECORATING        
650,Childrens & Education Services,GENERATED ACCOUNT,Children's centres,K05137,Supplies & Services           ,Equip Furniture/Materials     ,DA09,Equip-Purchases                         ,533.30,12/01/2016,R,TTS LTD                       
651,Childrens & Education Services,GENERATED ACCOUNT,Children's centres,K05137,Supplies & Services           ,Equip Furniture/Materials     ,DA09,Equip-Purchases                         ,"2,262.20",05/01/2016,R,TTS LTD                       
652,Childrens & Education Services,GENERATED ACCOUNT,Lavender Children's Centre,K05410,Supplies & Services           ,Expenses                      ,DH02,Conferences                             ,719.00,10/02/2016,R,SAFETY FIRST AID TRAINING     
653,Childrens & Education Services,GENERATED ACCOUNT,Mitcham MAT (Premises),K05412,Premises Related Expenditure  ,Cleaning and Domestic Supplies,BH03,Cleaning Services                       ,"1,321.36",31/12/2015,R,BIRKIN CLEANING SERVICES LTD  
654,Childrens & Education Services,GENERATED ACCOUNT,Mitcham MAT (Premises),K05412,Premises Related Expenditure  ,RepairsAlterations&MtceOfBldgs,BA05,DDM - Electrical                        ,607.22,30/04/2015,R,EUROPA NATIONWIDE TECH.SER.LTD
655,Childrens & Education Services,GENERATED ACCOUNT,Morden MAT,K05413,Premises Related Expenditure  ,Cleaning and Domestic Supplies,BH03,Cleaning Services                       ,"1,212.14",31/12/2015,R,BIRKIN CLEANING SERVICES LTD  
656,Childrens & Education Services,GENERATED ACCOUNT,Morden MAT,K05413,Premises Related Expenditure  ,RepairsAlterations&MtceOfBldgs,BA79,Security of Premises                    ,"1,942.92",01/01/2016,R,SIGHT & SOUND                 
657,Childrens & Education Services,Nursery schools,E.Years-Intergenerational Cntr,K05416,Premises Related Expenditure  ,Cleaning and Domestic Supplies,BH03,Cleaning Services                       ,811.96,31/12/2015,R,BIRKIN CLEANING SERVICES LTD  
658,Childrens & Education Services,Nursery schools,EY-Support Separating Parents,K05417,Supplies & Services           ,Equip Furniture/Materials     ,DA09,Equip-Purchases                         ,"1,640.00",30/12/2015,R,COMMUNITY PRODUCTS (UK) LTD.  
659,Childrens & Education Services,Nursery schools,EY - Phase 3 Libraries,K05419,Supplies & Services           ,Equip Furniture/Materials     ,DA09,Equip-Purchases                         ,"1,019.55",17/02/2015,R,TTS LTD                       
660,Childrens & Education Services,Nursery schools,EY - Phase 3 Libraries,K05419,Supplies & Services           ,Equip Furniture/Materials     ,DA09,Equip-Purchases                         ,"1,339.81",18/01/2016,R,TTS LTD                       
661,Childrens & Education Services,Vocational - Adult Education,AE-additional learner SF,K06046,Supplies & Services           ,Services                      ,DF07,Bought in Teaching Services             ,981.76,02/01/2016,R,REDACTED
662,Childrens & Education Services,Vocational - Adult Education,AE-Adult Education Main,K06049,Supplies & Services           ,Equip Furniture/Materials     ,DA04,Materials                               ,"3,728.00",07/12/2015,R,CACHE                         
663,Childrens & Education Services,Vocational - Adult Education,AE-Adult Education Main,K06049,Premises Related Expenditure  ,Energy Costs                  ,BB03,Gas (incl. Butane)                      ,814.89,07/12/2015,R,GAZPROM MARKETING&TRADING LTD 
664,Childrens & Education Services,Vocational - Adult Education,AE-Adult Education Main,K06049,Premises Related Expenditure  ,Energy Costs                  ,BB03,Gas (incl. Butane)                      ,"1,358.21",11/01/2016,R,GAZPROM MARKETING&TRADING LTD 
665,Childrens & Education Services,Vocational - Adult Education,AE-Adult Education Main,K06049,Supplies & Services           ,Services                      ,DF27,Examination Fees                        ,632.00,12/01/2016,R,ITEC                          
666,Childrens & Education Services,Vocational - Adult Education,AE-Adult Education Main,K06049,Premises Related Expenditure  ,Cleaning and Domestic Supplies,BH03,Cleaning Services                       ,"2,828.41",31/12/2015,R,JULIUS RUTHERFOORD & CO LTD   
667,Childrens & Education Services,Vocational - Adult Education,AE-Adult Education Main,K06049,Supplies & Services           ,Services                      ,DF03,Consultants                             ,"2,007.00",31/12/2015,R,TCMD LTD                      
668,Childrens & Education Services,Vocational - Adult Education,AE-Adult Education Main,K06049,Supplies & Services           ,Services                      ,DF02,Misc Advertising/Publicity              ,835.00,01/01/2016,R,TIME & LEISURE                
669,Childrens & Education Services,Vocational - Adult Education,AE-Adult Education Main,K06049,Supplies & Services           ,Services                      ,DF27,Examination Fees                        ,"4,333.25",19/11/2015,R,UCLES                         
670,Childrens & Education Services,Vocational - Adult Education,MAE- CATERING SERVICES 2011>,K06052,Supplies & Services           ,Catering                      ,DB01,Contract Catering                       ,706.55,30/11/2015,R,COFFEE AT WORK LTD            
671,Childrens & Education Services,Youth Centres (Residential),Youth Service,K06053,Premises Related Expenditure  ,Cleaning and Domestic Supplies,BH03,Cleaning Services                       ,506.69,31/12/2015,R,BIRKIN CLEANING SERVICES LTD  
672,Childrens & Education Services,Youth Centres (Residential),Youth Office Premises Cost,K06073,Premises Related Expenditure  ,RepairsAlterations&MtceOfBldgs,BA05,DDM - Electrical                        ,"1,875.44",31/12/2015,R,EUROPA NATIONWIDE TECH.SER.LTD
673,Childrens & Education Services,Pupil Support,Young Person Substance Misuse,K06114,Supplies & Services           ,Services                      ,DF30,Activities Programme                    ,"5,750.00",07/01/2016,R,CWP RESOURCES                 
674,Childrens & Education Services,Pupil Support,Young Person Substance Misuse,K06114,Supplies & Services           ,Services                      ,DF30,Activities Programme                    ,"5,000.00",11/01/2016,R,GROWING AGAINST VIOLENCE      
675,Childrens & Education Services,Pupil Support,Young Person Substance Misuse,K06114,Supplies & Services           ,Equip Furniture/Materials     ,DA83,Projects                                ,"4,800.00",20/11/2015,R,THEATRE ADAD                  
676,Childrens & Education Services,Pupil Support,Children & Yth Participation,K06115,Supplies & Services           ,Expenses                      ,DH12,Young Peoples Expenses                  ,595.00,06/12/2015,R,ANTOINETTE HOTEL              
677,Childrens & Education Services,Pupil Support,Children & Yth Participation,K06115,Supplies & Services           ,Expenses                      ,DH12,Young Peoples Expenses                  ,"1,213.33",06/12/2015,R,ANTOINETTE HOTEL              
678,Childrens & Education Services,Pupil Referral Units,Safer Schls Police Officers             ,K06116,Third Party Payments          ,Private Contractors           ,EH02,Miscellaneous Hired Services            ,"45,415.00",25/11/2015,R,METROPOLITAN POLICE SERVICE   
679,Childrens & Education Services,Facilitating School Improvemnt,Virtual Schools (Balance),K07109,Supplies & Services           ,Grants and Subscriptions      ,DJ01,Grants                                  ,600.00,29/01/2016,R,BAY HOUSE SCHOOL              
680,Childrens & Education Services,Facilitating School Improvemnt,Virtual Schools (Balance),K07109,Supplies & Services           ,Grants and Subscriptions      ,DJ01,Grants                                  ,"1,200.00",29/01/2016,R,BURNTWOOD SCHOOL              
681,Childrens & Education Services,Facilitating School Improvemnt,Virtual Schools (Balance),K07109,Supplies & Services           ,Grants and Subscriptions      ,DJ01,Grants                                  ,"1,200.00",29/01/2016,R,CAREW ACADEMY                 
682,Childrens & Education Services,Facilitating School Improvemnt,Virtual Schools (Balance),K07109,Supplies & Services           ,Grants and Subscriptions      ,DJ01,Grants                                  ,600.00,29/01/2016,R,CARSHALTON HIGH SCH FOR GIRLS 
683,Childrens & Education Services,Facilitating School Improvemnt,Virtual Schools (Balance),K07109,Supplies & Services           ,Grants and Subscriptions      ,DJ01,Grants                                  ,"1,200.00",29/01/2016,R,CARSHALTON HIGH SCH FOR GIRLS 
684,Childrens & Education Services,Facilitating School Improvemnt,Virtual Schools (Balance),K07109,Supplies & Services           ,Grants and Subscriptions      ,DJ01,Grants                                  ,600.00,29/01/2016,R,CLIFTON HILL SCHOOL           
685,Childrens & Education Services,Facilitating School Improvemnt,Virtual Schools (Balance),K07109,Supplies & Services           ,Grants and Subscriptions      ,DJ01,Grants                                  ,"1,200.00",29/01/2016,R,COOMBE GIRLS SCHOOL           
686,Childrens & Education Services,Facilitating School Improvemnt,Virtual Schools (Balance),K07109,Supplies & Services           ,Grants and Subscriptions      ,DJ01,Grants                                  ,600.00,29/01/2016,R,CUDDINGTON COMMUNITY P. SCHOOL
687,Childrens & Education Services,Facilitating School Improvemnt,Virtual Schools (Balance),K07109,Supplies & Services           ,Grants and Subscriptions      ,DJ01,Grants                                  ,600.00,29/01/2016,R,DYMCHURCH PRIMARY SCHOOL      
688,Childrens & Education Services,Facilitating School Improvemnt,Virtual Schools (Balance),K07109,Supplies & Services           ,Grants and Subscriptions      ,DJ01,Grants                                  ,600.00,29/01/2016,R,FAIRWAY SCHL & CHILDREN'S CTR 
689,Childrens & Education Services,Facilitating School Improvemnt,Virtual Schools (Balance),K07109,Supplies & Services           ,Grants and Subscriptions      ,DJ01,Grants                                  ,600.00,29/01/2016,R,FURZEDOWN PRIMARY SCHOOL      
690,Childrens & Education Services,Facilitating School Improvemnt,Virtual Schools (Balance),K07109,Supplies & Services           ,Grants and Subscriptions      ,DJ01,Grants                                  ,600.00,29/01/2016,R,GLENTHORNE HIGH SCHOOL        
691,Childrens & Education Services,Facilitating School Improvemnt,Virtual Schools (Balance),K07109,Supplies & Services           ,Grants and Subscriptions      ,DJ01,Grants                                  ,600.00,29/01/2016,R,GLENTHORNE HIGH SCHOOL        
692,Childrens & Education Services,Facilitating School Improvemnt,Virtual Schools (Balance),K07109,Supplies & Services           ,Grants and Subscriptions      ,DJ01,Grants                                  ,600.00,29/01/2016,R,GRAVENEY SCHOOL               
693,Childrens & Education Services,Facilitating School Improvemnt,Virtual Schools (Balance),K07109,Supplies & Services           ,Grants and Subscriptions      ,DJ01,Grants                                  ,"1,870.00",04/01/2016,R,HA TUTORS LTD                 
694,Childrens & Education Services,Facilitating School Improvemnt,Virtual Schools (Balance),K07109,Supplies & Services           ,Grants and Subscriptions      ,DJ01,Grants                                  ,"3,017.50",30/11/2015,R,HA TUTORS LTD                 
695,Childrens & Education Services,Facilitating School Improvemnt,Virtual Schools (Balance),K07109,Supplies & Services           ,Grants and Subscriptions      ,DJ01,Grants                                  ,600.00,29/01/2016,R,HAWES DOWN INFANT SCHOOL      
696,Childrens & Education Services,Facilitating School Improvemnt,Virtual Schools (Balance),K07109,Supplies & Services           ,Grants and Subscriptions      ,DJ01,Grants                                  ,600.00,29/01/2016,R,IVY DALE PRIMARY              
697,Childrens & Education Services,Facilitating School Improvemnt,Virtual Schools (Balance),K07109,Supplies & Services           ,Grants and Subscriptions      ,DJ01,Grants                                  ,600.00,29/01/2016,R,IVY DALE PRIMARY              
698,Childrens & Education Services,Facilitating School Improvemnt,Virtual Schools (Balance),K07109,Supplies & Services           ,Grants and Subscriptions      ,DJ01,Grants                                  ,600.00,29/01/2016,R,LANGLEY PARK SCHOOL FOR BOYS  
699,Childrens & Education Services,Facilitating School Improvemnt,Virtual Schools (Balance),K07109,Supplies & Services           ,Grants and Subscriptions      ,DJ01,Grants                                  ,600.00,29/01/2016,R,LANGLEY PARK SCHOOL FOR GIRLS 
700,Childrens & Education Services,Facilitating School Improvemnt,Virtual Schools (Balance),K07109,Supplies & Services           ,Grants and Subscriptions      ,DJ01,Grants                                  ,600.00,29/01/2016,R,LINDEN LODGE SCHOOL           
701,Childrens & Education Services,Facilitating School Improvemnt,Virtual Schools (Balance),K07109,Supplies & Services           ,Grants and Subscriptions      ,DJ01,Grants                                  ,600.00,29/01/2016,R,LINDEN LODGE SCHOOL           
702,Childrens & Education Services,Facilitating School Improvemnt,Virtual Schools (Balance),K07109,Supplies & Services           ,Grants and Subscriptions      ,DJ01,Grants                                  ,600.00,29/01/2016,R,LONDON ACADEMY                
703,Childrens & Education Services,Facilitating School Improvemnt,Virtual Schools (Balance),K07109,Supplies & Services           ,Grants and Subscriptions      ,DJ01,Grants                                  ,600.00,29/01/2016,R,NORBURY MANOR & ENTER. COLLEGE
704,Childrens & Education Services,Facilitating School Improvemnt,Virtual Schools (Balance),K07109,Supplies & Services           ,Grants and Subscriptions      ,DJ01,Grants                                  ,600.00,29/01/2016,R,OXTED SCHOOL                  
705,Childrens & Education Services,Facilitating School Improvemnt,Virtual Schools (Balance),K07109,Supplies & Services           ,Grants and Subscriptions      ,DJ01,Grants                                  ,600.00,29/01/2016,R,ST CATHERINE'S CATHOLIC SCHOOL
706,Childrens & Education Services,Facilitating School Improvemnt,Virtual Schools (Balance),K07109,Supplies & Services           ,Grants and Subscriptions      ,DJ01,Grants                                  ,600.00,29/01/2016,R,ST JOHN FISHER CATH'LC COMP SC
707,Childrens & Education Services,Facilitating School Improvemnt,Virtual Schools (Balance),K07109,Supplies & Services           ,Grants and Subscriptions      ,DJ01,Grants                                  ,"1,200.00",29/01/2016,R,ST JOHN FISHER SCHOOL         
708,Childrens & Education Services,Facilitating School Improvemnt,Virtual Schools (Balance),K07109,Supplies & Services           ,Grants and Subscriptions      ,DJ01,Grants                                  ,"1,200.00",29/01/2016,R,ST JOHN FISHER SCHOOL         
709,Childrens & Education Services,Facilitating School Improvemnt,Virtual Schools (Balance),K07109,Supplies & Services           ,Grants and Subscriptions      ,DJ01,Grants                                  ,"1,200.00",29/01/2016,R,ST JOSEPH'S COLLEGE           
710,Childrens & Education Services,Facilitating School Improvemnt,Virtual Schools (Balance),K07109,Supplies & Services           ,Grants and Subscriptions      ,DJ01,Grants                                  ,"1,200.00",29/01/2016,R,ST MARY'S C OF E JUNIOR SCHOOL
711,Childrens & Education Services,Facilitating School Improvemnt,Virtual Schools (Balance),K07109,Supplies & Services           ,Grants and Subscriptions      ,DJ01,Grants                                  ,600.00,29/01/2016,R,THE LINK SECONDARY SCHOOL     
712,Childrens & Education Services,Facilitating School Improvemnt,Virtual Schools (Balance),K07109,Supplies & Services           ,Grants and Subscriptions      ,DJ01,Grants                                  ,600.00,29/01/2016,R,THE NORTH SCHOOL              
713,Childrens & Education Services,Facilitating School Improvemnt,Virtual Schools (Balance),K07109,Supplies & Services           ,Grants and Subscriptions      ,DJ01,Grants                                  ,600.00,29/01/2016,R,THE WATERLOO SCHOOL           
714,Childrens & Education Services,Facilitating School Improvemnt,Virtual Schools (Balance),K07109,Supplies & Services           ,Grants and Subscriptions      ,DJ01,Grants                                  ,600.00,29/01/2016,R,WOODMANSTERNE PRIMARY SCHOOL  
715,Childrens & Education Services,Asset Management,Premises and Contracts,K08069,Supplies & Services           ,Services                      ,DF03,Consultants                             ,"3,300.00",23/12/2015,R,AVL CONSULTANCY LTD           
716,Childrens & Education Services,Asset Management,S106 Bid,K08077,Premises Related Expenditure  ,Energy Costs                  ,BB03,Gas (incl. Butane)                      ,"1,932.50",01/10/2015,R,CORONA ENERGY RETAIL 2        
717,Childrens & Education Services,Asset Management,S106 Bid,K08077,Premises Related Expenditure  ,RepairsAlterations&MtceOfBldgs,BA06,Repairs & Maintenance General           ,"1,102.77",17/11/2015,R,EUROPA NATIONWIDE TECH.SER.LTD
718,Childrens & Education Services,Asset Management,S106 Bid,K08077,Premises Related Expenditure  ,RepairsAlterations&MtceOfBldgs,BA06,Repairs & Maintenance General           ,560.00,21/12/2015,R,PAUL STRANKS & SONS ROOFING   
719,Childrens & Education Services,Asset Management,Centre Commissioned Servs,K08078,Supplies & Services           ,Grants and Subscriptions      ,DJ01,Grants                                  ,"8,950.00",12/01/2016,R,BARNARDOS                     
720,Childrens & Education Services,Asset Management,Centre Commissioned Servs,K08078,Supplies & Services           ,Grants and Subscriptions      ,DJ01,Grants                                  ,"7,312.50",12/01/2016,R,COMMONSIDE COMMUNITY DEV TRUST
721,Childrens & Education Services,Asset Management,Centre Commissioned Servs,K08078,Supplies & Services           ,Grants and Subscriptions      ,DJ01,Grants                                  ,"7,875.00",11/01/2016,R,ENDEAVOUR CLUB                
722,Childrens & Education Services,Asset Management,Centre Commissioned Servs,K08078,Supplies & Services           ,Grants and Subscriptions      ,DJ01,Grants                                  ,"24,056.00",12/01/2016,R,HOME-START MERTON             
723,Childrens & Education Services,Asset Management,Centre Commissioned Servs,K08078,Supplies & Services           ,Grants and Subscriptions      ,DJ01,Grants                                  ,"1,908.00",23/12/2015,R,MERTON MENCAP                 
724,Childrens & Education Services,Asset Management,Centre Commissioned Servs,K08078,Supplies & Services           ,Grants and Subscriptions      ,DJ01,Grants                                  ,"4,000.00",22/12/2015,R,MERTON MENCAP                 
725,Childrens & Education Services,Asset Management,Centre Commissioned Servs,K08078,Supplies & Services           ,Grants and Subscriptions      ,DJ01,Grants                                  ,"9,000.00",22/12/2015,R,MERTON MENCAP                 
726,Childrens & Education Services,Asset Management,Centre Commissioned Servs,K08078,Supplies & Services           ,Grants and Subscriptions      ,DJ01,Grants                                  ,"11,015.00",22/12/2015,R,MERTON MENCAP                 
727,Childrens & Education Services,Asset Management,Centre Commissioned Servs,K08078,Supplies & Services           ,Grants and Subscriptions      ,DJ01,Grants                                  ,"15,000.00",22/12/2015,R,MERTON MENCAP                 
728,Childrens & Education Services,Asset Management,Centre Commissioned Servs,K08078,Supplies & Services           ,Grants and Subscriptions      ,DJ01,Grants                                  ,"15,000.00",22/12/2015,R,MERTON MENCAP                 
729,Childrens & Education Services,Asset Management,Centre Commissioned Servs,K08078,Supplies & Services           ,Grants and Subscriptions      ,DJ01,Grants                                  ,"23,632.00",22/12/2015,R,MERTON MENCAP                 
730,Childrens & Education Services,Asset Management,Centre Commissioned Servs,K08078,Third Party Payments          ,Private Contractors           ,EH01,Miscellaneous Contrct Services          ,"50,000.00",23/12/2015,R,MERTON MENCAP                 
731,Childrens & Education Services,Asset Management,Centre Commissioned Servs,K08078,Supplies & Services           ,Grants and Subscriptions      ,DJ01,Grants                                  ,"7,556.25",07/01/2016,R,MERTON VOLUNTARY SERV COUNCIL 
732,Childrens & Education Services,Asset Management,Centre Commissioned Servs,K08078,Supplies & Services           ,Grants and Subscriptions      ,DJ01,Grants                                  ,"9,875.00",07/01/2016,R,MERTON VOLUNTARY SERV COUNCIL 
733,Childrens & Education Services,Asset Management,Centre Commissioned Servs,K08078,Supplies & Services           ,Grants and Subscriptions      ,DJ01,Grants                                  ,"6,093.75",13/01/2016,R,PRE SCHOOL LEARNING ALLIANCE  
734,Childrens & Education Services,Asset Management,Centre Commissioned Servs,K08078,Supplies & Services           ,Grants and Subscriptions      ,DJ01,Grants                                  ,"1,180.00",10/01/2016,R,SOUTH LONDON REFUGEE ASSOC.   
735,Childrens & Education Services,Asset Management,Centre Commissioned Servs,K08078,Supplies & Services           ,Grants and Subscriptions      ,DJ01,Grants                                  ,"2,000.00",10/01/2016,R,SOUTH LONDON REFUGEE ASSOC.   
736,Childrens & Education Services,Asset Management,Centre Commissioned Servs,K08078,Supplies & Services           ,Grants and Subscriptions      ,DJ01,Grants                                  ,"12,480.00",01/01/2016,R,WIMBLEDON GUILD               
737,Childrens & Education Services,Asset Management,Centre Commissioned Servs,K08078,Supplies & Services           ,Grants and Subscriptions      ,DJ01,Grants                                  ,"7,151.25",12/01/2016,R,YMCA LONDON SOUTH WEST        
738,Childrens & Education Services,Asset Management,Centre Commissioned Servs,K08078,Supplies & Services           ,Grants and Subscriptions      ,DJ01,Grants                                  ,"7,151.25",12/01/2016,R,YMCA LONDON SOUTH WEST        
739,Childrens & Education Services,Asset Management,Centre Commissioned Servs,K08078,Supplies & Services           ,Grants and Subscriptions      ,DJ01,Grants                                  ,"5,000.00",20/01/2016,R,YOUTH EMPOWERMENT SERVICES    
740,Childrens & Education Services,Facilitating School Improvemnt,SSQ,K09077,Supplies & Services           ,Equip Furniture/Materials     ,DA58,Educn Matrls (Grant Aided)              ,"7,175.00",16/12/2015,R,DOUBLESTRUCK LTD              
741,Childrens & Education Services,Facilitating School Improvemnt,SSQ,K09077,Supplies & Services           ,Expenses                      ,DH02,Conferences                             ,"1,987.00",12/01/2016,R,LONDON BOROUGH OF SUTTON      
742,Childrens & Education Services,Statutory & Regulatory Duties,Governor Support,K09081,Supplies & Services           ,Equip Furniture/Materials     ,DA58,Educn Matrls (Grant Aided)              ,"1,270.00",22/12/2015,R,EASTERN LEADERSHIP CENTRE     
743,Childrens & Education Services,Asset Management,Stouthall,K09082,Premises Related Expenditure  ,Ground Maintenance Costs      ,BL03,Maintenance of Grounds                  ,"1,000.00",31/12/2015,R,A Y LANDSCAPES LTD            
744,Childrens & Education Services,Sch Meals & Milk-Not Delegated,Free School Meals,K90002,Premises Related Expenditure  ,RepairsAlterations&MtceOfBldgs,BA01,DDM - General Building                  ,930.00,21/01/2016,R,DF20 LTD                      
745,Childrens & Education Services,Facilitating School Improvemnt,Virtual Schools - PEA's,K90016,Supplies & Services           ,Expenses                      ,DH12,Young Peoples Expenses                  ,"1,035.00",15/11/2015,R,CASTLE HOMES LTD              
746,Childrens & Education Services,Facilitating School Improvemnt,Virtual Schools - PEA's,K90016,Supplies & Services           ,Expenses                      ,DH12,Young Peoples Expenses                  ,887.50,18/12/2015,R,KINGSTON COLLEGE              
747,Childrens & Education Services,Support for SEN Pupils,Non-Delegated Statements,K90024,Third Party Payments          ,Other Local Authorities       ,EB50,OLA-Payments - Day Schools              ,"90,840.00",27/01/2016,R,BEORMUND PRIMARY SCHOOL       
748,Childrens & Education Services,Support for SEN Pupils,Non-Delegated Statements,K90024,Third Party Payments          ,Other Establishments          ,EG50,Ind Day Schs Payments                   ,"14,800.00",04/01/2016,R,CARETRADE CHARITABLE TRUST    
749,Childrens & Education Services,Support for SEN Pupils,Non-Delegated Statements,K90024,Third Party Payments          ,Other Local Authorities       ,EB48,OLA PAYMENTS-STATEMENTS                 ,"1,553.00",26/01/2016,R,CHEAM HIGH SCHOOL             
750,Childrens & Education Services,Support for SEN Pupils,Non-Delegated Statements,K90024,Third Party Payments          ,Other Local Authorities       ,EB48,OLA PAYMENTS-STATEMENTS                 ,"1,553.00",26/01/2016,R,CHEAM HIGH SCHOOL             
751,Childrens & Education Services,Support for SEN Pupils,Non-Delegated Statements,K90024,Third Party Payments          ,Other Local Authorities       ,EB51,OLA Payments - Special Units            ,"3,554.00",26/01/2016,R,CHEAM HIGH SCHOOL             
752,Childrens & Education Services,Support for SEN Pupils,Non-Delegated Statements,K90024,Supplies & Services           ,Services                      ,DF09,Miscellaneous Fees                      ,"5,512.00",12/01/2016,R,CLIFTON HILL SCHOOL           
753,Childrens & Education Services,Support for SEN Pupils,Non-Delegated Statements,K90024,Third Party Payments          ,Other Establishments          ,EG50,Ind Day Schs Payments                   ,"6,290.00",24/12/2015,R,COLLINGHAM COLLEGE            
754,Childrens & Education Services,Support for SEN Pupils,Non-Delegated Statements,K90024,Supplies & Services           ,Services                      ,DF09,Miscellaneous Fees                      ,"5,599.20",23/12/2015,R,DONHEAD SCHOOL                
755,Childrens & Education Services,Support for SEN Pupils,Non-Delegated Statements,K90024,Third Party Payments          ,Other Establishments          ,EG50,Ind Day Schs Payments                   ,"14,377.93",20/01/2016,R,EAGLE HOUSE SCHOOL            
756,Childrens & Education Services,Support for SEN Pupils,Non-Delegated Statements,K90024,Third Party Payments          ,Other Establishments          ,EG50,Ind Day Schs Payments                   ,"15,867.33",05/01/2016,R,EAGLE HOUSE SCHOOL            
757,Childrens & Education Services,Support for SEN Pupils,Non-Delegated Statements,K90024,Third Party Payments          ,Other Establishments          ,EG50,Ind Day Schs Payments                   ,"16,618.33",05/01/2016,R,EAGLE HOUSE SCHOOL (SUTTON)   
758,Childrens & Education Services,Support for SEN Pupils,Non-Delegated Statements,K90024,Third Party Payments          ,Other Establishments          ,EG50,Ind Day Schs Payments                   ,"16,618.33",05/01/2016,R,EAGLE HOUSE SCHOOL (SUTTON)   
759,Childrens & Education Services,Support for SEN Pupils,Non-Delegated Statements,K90024,Third Party Payments          ,Other Establishments          ,EG50,Ind Day Schs Payments                   ,"16,618.33",01/10/2015,R,EAGLE HOUSE SCHOOL (SUTTON)   
760,Childrens & Education Services,Support for SEN Pupils,Non-Delegated Statements,K90024,Third Party Payments          ,Other Establishments          ,EG50,Ind Day Schs Payments                   ,"16,618.33",05/01/2016,R,EAGLE HOUSE SCHOOL (SUTTON)   
761,Childrens & Education Services,Support for SEN Pupils,Non-Delegated Statements,K90024,Third Party Payments          ,Other Establishments          ,EG50,Ind Day Schs Payments                   ,"5,894.72",18/12/2015,R,FACE YOUTH                    
762,Childrens & Education Services,Support for SEN Pupils,Non-Delegated Statements,K90024,Third Party Payments          ,Other Establishments          ,EG50,Ind Day Schs Payments                   ,"10,947.82",18/12/2015,R,FACE YOUTH                    
763,Childrens & Education Services,Support for SEN Pupils,Non-Delegated Statements,K90024,Third Party Payments          ,Other Establishments          ,EG50,Ind Day Schs Payments                   ,"10,947.82",18/12/2015,R,FACE YOUTH                    
764,Childrens & Education Services,Support for SEN Pupils,Non-Delegated Statements,K90024,Third Party Payments          ,Other Local Authorities       ,EB51,OLA Payments - Special Units            ,"2,491.00",26/01/2016,R,FORESTERS PRIM'Y SCH SPEC UNIT
765,Childrens & Education Services,Support for SEN Pupils,Non-Delegated Statements,K90024,Third Party Payments          ,Other Establishments          ,EG01,Alternative SEN Provision               ,697.50,04/01/2016,R,HA TUTORS LTD                 
766,Childrens & Education Services,Support for SEN Pupils,Non-Delegated Statements,K90024,Third Party Payments          ,Other Establishments          ,EG01,Alternative SEN Provision               ,855.00,04/01/2016,R,HA TUTORS LTD                 
767,Childrens & Education Services,Support for SEN Pupils,Non-Delegated Statements,K90024,Third Party Payments          ,Other Establishments          ,EG01,Alternative SEN Provision               ,"1,330.00",04/01/2016,R,HA TUTORS LTD                 
768,Childrens & Education Services,Support for SEN Pupils,Non-Delegated Statements,K90024,Third Party Payments          ,Other Establishments          ,EG01,Alternative SEN Provision               ,"1,390.00",04/01/2016,R,HA TUTORS LTD                 
769,Childrens & Education Services,Support for SEN Pupils,Non-Delegated Statements,K90024,Third Party Payments          ,Other Establishments          ,EG01,Alternative SEN Provision               ,"1,735.00",04/01/2016,R,HA TUTORS LTD                 
770,Childrens & Education Services,Support for SEN Pupils,Non-Delegated Statements,K90024,Third Party Payments          ,Other Establishments          ,EG01,Alternative SEN Provision               ,"1,800.00",04/01/2016,R,HA TUTORS LTD                 
771,Childrens & Education Services,Support for SEN Pupils,Non-Delegated Statements,K90024,Third Party Payments          ,Other Establishments          ,EG01,Alternative SEN Provision               ,"2,068.75",29/10/2015,R,HA TUTORS LTD                 
772,Childrens & Education Services,Support for SEN Pupils,Non-Delegated Statements,K90024,Third Party Payments          ,Other Establishments          ,EG01,Alternative SEN Provision               ,"2,475.00",04/01/2016,R,HA TUTORS LTD                 
773,Childrens & Education Services,Support for SEN Pupils,Non-Delegated Statements,K90024,Third Party Payments          ,Other Local Authorities       ,EB50,OLA-Payments - Day Schools              ,"17,443.50",13/03/2015,R,LONDON BOROUGH OF CROYDON     
774,Childrens & Education Services,Support for SEN Pupils,Non-Delegated Statements,K90024,Third Party Payments          ,Other Local Authorities       ,EB50,OLA-Payments - Day Schools              ,"20,922.88",13/03/2015,R,LONDON BOROUGH OF CROYDON     
775,Childrens & Education Services,Support for SEN Pupils,Non-Delegated Statements,K90024,Third Party Payments          ,Other Establishments          ,EG50,Ind Day Schs Payments                   ,"5,847.00",20/12/2015,R,PARAYHOUSE SCHOOL             
776,Childrens & Education Services,Support for SEN Pupils,Non-Delegated Statements,K90024,Supplies & Services           ,Services                      ,DF11,Counsel's Fees                          ,866.67,06/01/2016,R,REDACTED
777,Childrens & Education Services,Support for SEN Pupils,Non-Delegated Statements,K90024,Supplies & Services           ,Services                      ,DF30,Activities Programme                    ,"1,890.00",26/11/2015,R,REDACTED
778,Childrens & Education Services,Support for SEN Pupils,Non-Delegated Statements,K90024,Third Party Payments          ,Other Establishments          ,EG01,Alternative SEN Provision               ,"2,302.00",31/12/2015,R,REDACTED
779,Childrens & Education Services,Support for SEN Pupils,Non-Delegated Statements,K90024,Supplies & Services           ,Services                      ,DF09,Miscellaneous Fees                      ,770.00,18/01/2016,R,RIVER COUNSELLING AGENCY      
780,Childrens & Education Services,Support for SEN Pupils,Non-Delegated Statements,K90024,Supplies & Services           ,Services                      ,DF09,Miscellaneous Fees                      ,940.00,11/01/2016,R,RIVER COUNSELLING AGENCY      
781,Childrens & Education Services,Support for SEN Pupils,Non-Delegated Statements,K90024,Third Party Payments          ,Other Local Authorities       ,EB48,OLA PAYMENTS-STATEMENTS                 ,"23,983.64",27/01/2016,R,ST CECILIA'S CATHOLIC P.SCHOOL
782,Childrens & Education Services,Support for SEN Pupils,Non-Delegated Statements,K90024,Third Party Payments          ,Other Local Authorities       ,EB48,OLA PAYMENTS-STATEMENTS                 ,"1,472.01",29/01/2016,R,ST PHILOMENA'S SCHOOL         
783,Childrens & Education Services,Support for SEN Pupils,Non-Delegated Statements,K90024,Third Party Payments          ,Other Establishments          ,EG50,Ind Day Schs Payments                   ,"1,085.00",16/12/2015,R,ST TERESA'S SCHOOL            
784,Childrens & Education Services,Support for SEN Pupils,Non-Delegated Statements,K90024,Third Party Payments          ,Other Establishments          ,EG50,Ind Day Schs Payments                   ,"6,450.00",16/12/2015,R,ST TERESA'S SCHOOL            
785,Childrens & Education Services,Support for SEN Pupils,Non-Delegated Statements,K90024,Third Party Payments          ,Other Local Authorities       ,EB48,OLA PAYMENTS-STATEMENTS                 ,"1,575.00",22/01/2016,R,STANLEY PARK HIGH             
786,Childrens & Education Services,Support for SEN Pupils,Non-Delegated Statements,K90024,Third Party Payments          ,Other Local Authorities       ,EB51,OLA Payments - Special Units            ,"2,379.04",22/01/2016,R,STANLEY PARK HIGH             
787,Childrens & Education Services,Support for SEN Pupils,Non-Delegated Statements,K90024,Third Party Payments          ,Other Establishments          ,EG01,Alternative SEN Provision               ,645.00,30/11/2015,R,THE COMPLETE WORKS LTD        
788,Childrens & Education Services,Support for SEN Pupils,Non-Delegated Statements,K90024,Third Party Payments          ,Other Establishments          ,EG01,Alternative SEN Provision               ,927.50,31/07/2015,R,THE COMPLETE WORKS LTD        
789,Childrens & Education Services,Support for SEN Pupils,Non-Delegated Statements,K90024,Third Party Payments          ,Other Establishments          ,EG01,Alternative SEN Provision               ,"1,767.50",30/10/2015,R,THE COMPLETE WORKS LTD        
790,Childrens & Education Services,Support for SEN Pupils,Non-Delegated Statements,K90024,Third Party Payments          ,Other Establishments          ,EG01,Alternative SEN Provision               ,"2,085.00",30/11/2015,R,THE COMPLETE WORKS LTD        
791,Childrens & Education Services,Support for SEN Pupils,Non-Delegated Statements,K90024,Third Party Payments          ,Other Establishments          ,EG01,Alternative SEN Provision               ,"2,485.00",31/12/2015,R,THE COMPLETE WORKS LTD        
792,Childrens & Education Services,Support for SEN Pupils,Non-Delegated Statements,K90024,Third Party Payments          ,Other Establishments          ,EG50,Ind Day Schs Payments                   ,"6,692.00",08/01/2016,R,THE LINK PRIMARY DAY SCHOOL   
793,Childrens & Education Services,Support for SEN Pupils,Non-Delegated Statements,K90024,Third Party Payments          ,Other Establishments          ,EG50,Ind Day Schs Payments                   ,"10,559.00",08/01/2016,R,THE LINK PRIMARY DAY SCHOOL   
794,Childrens & Education Services,Support for SEN Pupils,Non-Delegated Statements,K90024,Third Party Payments          ,Other Establishments          ,EG50,Ind Day Schs Payments                   ,"1,685.00",09/12/2015,R,THE LINK SECONDARY SCHOOL     
795,Childrens & Education Services,Support for SEN Pupils,Non-Delegated Statements,K90024,Third Party Payments          ,Other Establishments          ,EG50,Ind Day Schs Payments                   ,"1,685.00",06/01/2016,R,THE LINK SECONDARY SCHOOL     
796,Childrens & Education Services,Support for SEN Pupils,Non-Delegated Statements,K90024,Third Party Payments          ,Other Establishments          ,EG50,Ind Day Schs Payments                   ,"6,848.33",06/01/2016,R,THE LINK SECONDARY SCHOOL     
797,Childrens & Education Services,Support for SEN Pupils,Non-Delegated Statements,K90024,Third Party Payments          ,Other Establishments          ,EG50,Ind Day Schs Payments                   ,"6,848.33",06/01/2016,R,THE LINK SECONDARY SCHOOL     
798,Childrens & Education Services,Support for SEN Pupils,Non-Delegated Statements,K90024,Third Party Payments          ,Other Establishments          ,EG50,Ind Day Schs Payments                   ,"6,848.33",06/01/2016,R,THE LINK SECONDARY SCHOOL     
799,Childrens & Education Services,Support for SEN Pupils,Non-Delegated Statements,K90024,Third Party Payments          ,Other Establishments          ,EG50,Ind Day Schs Payments                   ,"7,217.33",06/01/2016,R,THE LINK SECONDARY SCHOOL     
800,Childrens & Education Services,Support for SEN Pupils,Non-Delegated Statements,K90024,Third Party Payments          ,Other Establishments          ,EG50,Ind Day Schs Payments                   ,"7,217.33",06/01/2016,R,THE LINK SECONDARY SCHOOL     
801,Childrens & Education Services,Support for SEN Pupils,Non-Delegated Statements,K90024,Third Party Payments          ,Other Establishments          ,EG50,Ind Day Schs Payments                   ,"7,217.33",06/01/2016,R,THE LINK SECONDARY SCHOOL     
802,Childrens & Education Services,Support for SEN Pupils,Non-Delegated Statements,K90024,Third Party Payments          ,Other Establishments          ,EG50,Ind Day Schs Payments                   ,"7,566.67",06/01/2016,R,THE LINK SECONDARY SCHOOL     
803,Childrens & Education Services,Support for SEN Pupils,Non-Delegated Statements,K90024,Third Party Payments          ,Other Establishments          ,EG50,Ind Day Schs Payments                   ,"7,566.67",06/01/2016,R,THE LINK SECONDARY SCHOOL     
804,Childrens & Education Services,Support for SEN Pupils,Non-Delegated Statements,K90024,Third Party Payments          ,Other Local Authorities       ,EB48,OLA PAYMENTS-STATEMENTS                 ,"2,201.06",22/01/2016,R,THE LONDON ORATORY SCHOOL     
805,Childrens & Education Services,Support for SEN Pupils,Non-Delegated Statements,K90024,Third Party Payments          ,Other Establishments          ,EG50,Ind Day Schs Payments                   ,"9,600.00",31/12/2015,R,THE MOAT SCHOOL               
806,Childrens & Education Services,Behavioural Support,Sensory Team,K90026,Supplies & Services           ,Services                      ,DF03,Consultants                             ,"2,750.00",10/01/2016,R,EWING FOUNDATION              
807,Childrens & Education Services,Admissions & Planning Sch Prov,Retained Schools Budgets,K90030,Supplies & Services           ,Prntng Stnry Gen Off Exp      ,DE22,Marketing                               ,"2,450.00",31/12/2015,R,GREBOT DONNELLY  ASSOCIAT. LTD
808,Childrens & Education Services,Facilitating School Improvemnt,SSQ CORE OFFER (DSG),K90040,Supplies & Services           ,Services                      ,DF03,Consultants                             ,"3,500.00",30/11/2015,R,REDACTED
809,Childrens & Education Services,Nursery schools,EARLY YEARS NURSERY GRANTS,K90042,Supplies & Services           ,Grants and Subscriptions      ,DJ57,Nursery Grant Payment-4yr olds          ,"1,143.36",13/01/2016,R,ACORN NURSERY                 
810,Childrens & Education Services,Nursery schools,EARLY YEARS NURSERY GRANTS,K90042,Supplies & Services           ,Grants and Subscriptions      ,DJ57,Nursery Grant Payment-4yr olds          ,"5,315.26",13/01/2016,R,ARK AT SHERWOOD LTD           
811,Childrens & Education Services,Nursery schools,EARLY YEARS NURSERY GRANTS,K90042,Supplies & Services           ,Grants and Subscriptions      ,DJ57,Nursery Grant Payment-4yr olds          ,"3,430.08",15/01/2016,R,BANANA MOON DAY NURSERY       
812,Childrens & Education Services,Nursery schools,EARLY YEARS NURSERY GRANTS,K90042,Supplies & Services           ,Grants and Subscriptions      ,DJ57,Nursery Grant Payment-4yr olds          ,"7,431.84",13/01/2016,R,BLOOMING YEARS DAY NURSERY    
813,Childrens & Education Services,Nursery schools,EARLY YEARS NURSERY GRANTS,K90042,Supplies & Services           ,Grants and Subscriptions      ,DJ57,Nursery Grant Payment-4yr olds          ,"1,068.48",13/01/2016,R,BLOSSOM HOUSE SCHOOL          
814,Childrens & Education Services,Nursery schools,EARLY YEARS NURSERY GRANTS,K90042,Supplies & Services           ,Grants and Subscriptions      ,DJ57,Nursery Grant Payment-4yr olds          ,"7,279.39",13/01/2016,R,BOW LANE PRE-SCHOOL           
815,Childrens & Education Services,Nursery schools,EARLY YEARS NURSERY GRANTS,K90042,Supplies & Services           ,Grants and Subscriptions      ,DJ57,Nursery Grant Payment-4yr olds          ,571.68,13/01/2016,R,BUILDING BLOCKS KIDS CLUB PLUS
816,Childrens & Education Services,Nursery schools,EARLY YEARS NURSERY GRANTS,K90042,Supplies & Services           ,Grants and Subscriptions      ,DJ57,Nursery Grant Payment-4yr olds          ,"21,207.21",14/01/2016,R,BUILDING BLOCKS NURSERY       
817,Childrens & Education Services,Nursery schools,EARLY YEARS NURSERY GRANTS,K90042,Supplies & Services           ,Grants and Subscriptions      ,DJ57,Nursery Grant Payment-4yr olds          ,"5,283.05",13/01/2016,R,BUMBLE BEES'S DAY NURSERY-COCC
818,Childrens & Education Services,Nursery schools,EARLY YEARS NURSERY GRANTS,K90042,Supplies & Services           ,Grants and Subscriptions      ,DJ57,Nursery Grant Payment-4yr olds          ,"5,716.80",13/01/2016,R,BUMPSA-DAISIES NURSERY        
819,Childrens & Education Services,Nursery schools,EARLY YEARS NURSERY GRANTS,K90042,Supplies & Services           ,Grants and Subscriptions      ,DJ57,Nursery Grant Payment-4yr olds          ,"6,288.48",13/01/2016,R,BUTTERFLIES CHILDCARE LIMITED 
820,Childrens & Education Services,Nursery schools,EARLY YEARS NURSERY GRANTS,K90042,Supplies & Services           ,Grants and Subscriptions      ,DJ57,Nursery Grant Payment-4yr olds          ,"10,861.92",13/01/2016,R,CAROUSEL DAY NURSERY          
821,Childrens & Education Services,Nursery schools,EARLY YEARS NURSERY GRANTS,K90042,Supplies & Services           ,Grants and Subscriptions      ,DJ57,Nursery Grant Payment-4yr olds          ,"9,146.88",13/01/2016,R,CAROUSEL LTD                  
822,Childrens & Education Services,Nursery schools,EARLY YEARS NURSERY GRANTS,K90042,Supplies & Services           ,Grants and Subscriptions      ,DJ57,Nursery Grant Payment-4yr olds          ,"21,247.44",14/01/2016,R,CASTLE KINDERGARTEN           
823,Childrens & Education Services,Nursery schools,EARLY YEARS NURSERY GRANTS,K90042,Supplies & Services           ,Grants and Subscriptions      ,DJ57,Nursery Grant Payment-4yr olds          ,"1,945.56",14/01/2016,R,CHERUBS @ NEWMINSTER          
824,Childrens & Education Services,Nursery schools,EARLY YEARS NURSERY GRANTS,K90042,Supplies & Services           ,Grants and Subscriptions      ,DJ57,Nursery Grant Payment-4yr olds          ,"4,573.44",14/01/2016,R,CHERUBS @ ST THOMAS           
825,Childrens & Education Services,Nursery schools,EARLY YEARS NURSERY GRANTS,K90042,Supplies & Services           ,Grants and Subscriptions      ,DJ57,Nursery Grant Payment-4yr olds          ,"3,920.09",13/01/2016,R,CHERUBS CHILDCARE LTD         
826,Childrens & Education Services,Nursery schools,EARLY YEARS NURSERY GRANTS,K90042,Supplies & Services           ,Grants and Subscriptions      ,DJ57,Nursery Grant Payment-4yr olds          ,"10,844.33",13/01/2016,R,COLLIERS WOOD VILLAGE DAY NUR.
827,Childrens & Education Services,Nursery schools,EARLY YEARS NURSERY GRANTS,K90042,Supplies & Services           ,Grants and Subscriptions      ,DJ57,Nursery Grant Payment-4yr olds          ,"8,308.42",13/01/2016,R,COOPERATIVE CHILDCARE         
828,Childrens & Education Services,Nursery schools,EARLY YEARS NURSERY GRANTS,K90042,Supplies & Services           ,Grants and Subscriptions      ,DJ57,Nursery Grant Payment-4yr olds          ,"22,758.62",14/01/2016,R,DATE VALLEY SCHOOL            
829,Childrens & Education Services,Nursery schools,EARLY YEARS NURSERY GRANTS,K90042,Supplies & Services           ,Grants and Subscriptions      ,DJ57,Nursery Grant Payment-4yr olds          ,"8,575.20",13/01/2016,R,DEE'S DAY NURSERY             
830,Childrens & Education Services,Nursery schools,EARLY YEARS NURSERY GRANTS,K90042,Supplies & Services           ,Grants and Subscriptions      ,DJ57,Nursery Grant Payment-4yr olds          ,"2,608.79",13/01/2016,R,DEE'S DAYS NURSERY            
831,Childrens & Education Services,Nursery schools,EARLY YEARS NURSERY GRANTS,K90042,Supplies & Services           ,Grants and Subscriptions      ,DJ57,Nursery Grant Payment-4yr olds          ,"15,435.36",13/01/2016,R,DICKY BIRDS DAY NURSERIES     
832,Childrens & Education Services,Nursery schools,EARLY YEARS NURSERY GRANTS,K90042,Supplies & Services           ,Grants and Subscriptions      ,DJ57,Nursery Grant Payment-4yr olds          ,"14,803.93",13/01/2016,R,DICKY BIRDS PRE SCHOOL NURSERY
